Workbook

Sheet 1. INFORMACION ACUMULADA
A2: VEEDURIA DISTRITAL - INFORMACIÓN GESTION CONTRACTUAL
A3: DEL 1 DE ENERO AL 31 DE DICIEMBRE DE 2023
A5: 1. Entidad | H5: 2. Sector
A6: 3. Presupuesto Disponible Inversión Directa PREDIS (BOGDATA) | E6: 58690572510 | H6: 5. Presupuesto Disponible Funcionamiento PREDIS (BOGDATA) | I6: 2510565000 | AI6: 7. Nombre de quien diligencia el formato
A7: 4. Presupuesto Comprometido de Inversión Directa según PREDIS (BOGDATA) | E7: 57833492618 | H7: 6. Presupuesto Comprometido Funcionamiento según PREDIS (BOGDATA) | I7: 2490760649 | AI7: Cargo
AI8: Dependencia
AI9: Teléfono
AI10: Correo Electrónico
A11: 1- INFORMACION GENERAL | V11: 2- INFORMACION FINANCIERA | AC11: 3 - PLAZOS | AI11: 4. CESION | AM11: 4. CESION | AQ11: 5. ESTADO | AR11: 6. % Avance y/o cumplimiento
A12: 1 | B12: 2 | C12: 3 | E12: 4 | F12: 5 | G12: 6 | H12: 7 | I12: 8 | N12: 9 | O12: 10 | P12: 11 | V12: 12 | W12: 13 | X12: 14 | Y12: 15 | Z12: 16 | AA12: 17 | AB12: 18 | AC12: 19 | AD12: 20 | AE12: 21 | AF12: 22 | AG12: 23 | AH12: 24 | AI12: 25 | AJ12: 26 | AK12: 27 | AL12: 28 | AM12: 29 | AN12: 30 | AO12: 31 | AP12: 32 | AQ12: 33 | AR12: 34
A13: Número Contrato | B13: Año | C13: Número de proceso contractual SECOP | D13: Link proceso SECOP | E13: Tipo de contrato | F13: Modalidad de Selección | G13: Procedimiento o causal | H13: Objeto | I13: Afectación | J13: Plan de Desarrollo Distrital | K13: Número Programa | L13: Equivalencia número de programa | M13: Propósito | N13: Número Proyecto | O13: Número de proponentes | P13: Número de Identificación del contratista (Cédula o NIT sin puntos, comas ni caracteres especiales y sin digito de verificación) | Q13: Nombre del contratista (según el caso: nombres y apellidos o Razón social y Tipo societario) | R13: Naturaleza Jurídica | S13: Número de Identificación del integrante del Consorcio o U.T. (Cédula o NIT sin puntos, comas ni caracteres especiales y sin digito de verificación) | T13: Nombre del Integrante del Consorcio o U.T. y Tipo societario (Según el caso: nombres y apellidos o razón social y tipo societario) | U13: % Participación (indicar solo el numero del porcentaje, sin caracteres especiales) | V13: Vigencias futuras | W13: Valor Inicial del contrato | X13: Valor total reducciones (En valor negativo) | Y13: Número de adiciones | Z13: Valor total de adiciones | AA13: Valor Final | AB13: Giros (Valor en pesos) | AC13: Fecha de suscripción (DD/MM/AAAA) | AD13: Fecha de inicio (DD/MM/AAAA) | AE13: Fecha de terminación (DD/MM/AAAA) | AF13: Plazo en días | AG13: Número de prórrogas | AH13: Prorroga en días | AI13: Número de Identificación del cesionario (NIT sin digito de verificación) | AJ13: Nombre cesionario | AK13: Fecha cesión (DD/MM/AAAA) | AL13: Valor cesión | AM13: Número de Identificación del cesionario (NIT sin digito de verificación) | AN13: Nombre cesionario | AO13: Fecha cesión (DD/MM/AAAA) | AP13: Valor cesión | AQ13: Estado | AR13: % Avance y/o Cumplimiento
A14: CPS-001-2023 | B14: 2023 | C14: FDRS-CD-001-2023 | D14: https://community.secop.gov.co/Public/Tendering/ContractNoticePhases/View?PPI=CO1.PPI.22507590&isFromPublicArea=True&isModal=False | E14: Contratos de prestación de servicios profesionales y de apoyo a la gestión | F14: Contratación directa | G14: Prestación de servicios profesionales y de apoyo a la gestión, o para la ejecución de trabajos artísticos que sólo puedan encomendarse a determinadas personas naturales | H14: PRESTACIÓN DE SERVICIOS PROFESIONALES Y/O APOYO A LA GESTIÓN | I14: Inversión | J14: Un nuevo contrato social y ambiental para la Bogotá del Siglo XXI | K14: 57 | L14: =IF(ISERROR(VLOOKUP(K14,Proposito_programa!$C$2:$E$59,2,FALSE))," ",VLOOKUP(K14,Proposito_programa!$C$2:$E$59,2,FALSE)) -> Gestión pública local | M14: =IF(ISERROR(VLOOKUP(K14,Proposito_programa!$C$2:$E$59,3,FALSE))," ",VLOOKUP(K14,Proposito_programa!$C$2:$E$59,3,FALSE)) -> Propósito 5: Construir Bogotá - Región con gobierno abierto, transparente y ciudadanía consciente | N14: 1696 | O14: 1 | P14: 52809596 | Q14: MARTHA LILIANA CARRERO VILLAMIL | R14: Persona Natural | W14: 44000000 | Y14: 1 | Z14: 12000000 | AA14: =+W14+X14+Z14 -> 56000000 | AB14: 42000000 | AC14: 13/01/2023 | AD14: 2023-01-16 | AE14: 2023-12-15 | AF14: 330 | AG14: 1 | AH14: 90 | AQ14: En ejecución | AR14: =IF(ISERROR(AB14/AA14),"-",(AB14/AA14)) -> 0.75
A15: CPS-002-2023 | B15: 2023 | C15: FDRS-CD-002-2023 | D15: https://community.secop.gov.co/Public/Tendering/ContractNoticePhases/View?PPI=CO1.PPI.22508806&isFromPublicArea=True&isModal=False | E15: Contratos de prestación de servicios profesionales y de apoyo a la gestión | F15: Contratación directa | G15: Prestación de servicios profesionales y de apoyo a la gestión, o para la ejecución de trabajos artísticos que sólo puedan encomendarse a determinadas personas naturales | H15: PRESTACIÓN DE SERVICIOS PROFESIONALES Y/O APOYO A LA GESTIÓN | I15: Inversión | J15: Un nuevo contrato social y ambiental para la Bogotá del Siglo XXI | K15: 20 | L15: =IF(ISERROR(VLOOKUP(K15,Proposito_programa!$C$2:$E$59,2,FALSE))," ",VLOOKUP(K15,Proposito_programa!$C$2:$E$59,2,FALSE)) -> Bogotá, referente en cultura, deporte, recreación y actividad física, con parques para el desarrollo y la salud | M15: =IF(ISERROR(VLOOKUP(K15,Proposito_programa!$C$2:$E$59,3,FALSE))," ",VLOOKUP(K15,Proposito_programa!$C$2:$E$59,3,FALSE)) -> Propósito 1: Hacer un nuevo contrato social para incrementar la inclusión social, productiva y política | N15: 1590 | O15: 1 | P15: 1016062253 | Q15: JENNY MARCELA GONZALEZ MARTIN | R15: Persona Natural | W15: 66000000 | AA15: =+W15+X15+Z15 -> 66000000 | AB15: 63000000 | AC15: 13/01/2023 | AD15: 2023-01-16 | AE15: 2023-12-15 | AF15: 330 | AQ15: Terminado | AR15: =IF(ISERROR(AB15/AA15),"-",(AB15/AA15)) -> 0.9545454545
A16: CPS-003-2023 | B16: 2023 | C16: FDRS-CD-003-2023 | D16: https://community.secop.gov.co/Public/Tendering/OpportunityDetail/Index?noticeUID=CO1.NTC.3766830&isFromPublicArea=True&isModal=False | E16: Contratos de prestación de servicios profesionales y de apoyo a la gestión | F16: Contratación directa | G16: Prestación de servicios profesionales y de apoyo a la gestión, o para la ejecución de trabajos artísticos que sólo puedan encomendarse a determinadas personas naturales | H16: PRESTACIÓN DE SERVICIOS PROFESIONALES Y/O APOYO A LA GESTIÓN | I16: Inversión | J16: Un nuevo contrato social y ambiental para la Bogotá del Siglo XXI | K16: 57 | L16: =IF(ISERROR(VLOOKUP(K16,Proposito_programa!$C$2:$E$59,2,FALSE))," ",VLOOKUP(K16,Proposito_programa!$C$2:$E$59,2,FALSE)) -> Gestión pública local | M16: =IF(ISERROR(VLOOKUP(K16,Proposito_programa!$C$2:$E$59,3,FALSE))," ",VLOOKUP(K16,Proposito_programa!$C$2:$E$59,3,FALSE)) -> Propósito 5: Construir Bogotá - Región con gobierno abierto, transparente y ciudadanía consciente | N16: 1696 | O16: 1 | P16: 1075685625 | Q16: GINA PAOLA PINILLA MONTIEL | R16: Persona Natural | W16: 12600000 | AA16: 12600000 | AB16: 12600000 | AC16: 16/01/2023 | AD16: 2023-01-16 | AE16: 2023-05-15 | AF16: 120 | AQ16: Terminado | AR16: 1
A17: CPS-004-2023 | B17: 2023 | C17: FDRS-CD-004-2023 | D17: https://community.secop.gov.co/Public/Tendering/OpportunityDetail/Index?noticeUID=CO1.NTC.3777282&isFromPublicArea=True&isModal=False | E17: Contratos de prestación de servicios profesionales y de apoyo a la gestión | F17: Contratación directa | G17: Prestación de servicios profesionales y de apoyo a la gestión, o para la ejecución de trabajos artísticos que sólo puedan encomendarse a determinadas personas naturales | H17: PRESTACIÓN DE SERVICIOS PROFESIONALES Y/O APOYO A LA GESTIÓN | I17: Inversión | J17: Un nuevo contrato social y ambiental para la Bogotá del Siglo XXI | K17: 57 | L17: =IF(ISERROR(VLOOKUP(K17,Proposito_programa!$C$2:$E$59,2,FALSE))," ",VLOOKUP(K17,Proposito_programa!$C$2:$E$59,2,FALSE)) -> Gestión pública local | M17: =IF(ISERROR(VLOOKUP(K17,Proposito_programa!$C$2:$E$59,3,FALSE))," ",VLOOKUP(K17,Proposito_programa!$C$2:$E$59,3,FALSE)) -> Propósito 5: Construir Bogotá - Región con gobierno abierto, transparente y ciudadanía consciente | N17: 1696 | O17: 1 | P17: 80016995 | Q17: JHOJAN ANDRES CASTAÑEDA SANCHEZ | R17: Persona Natural | W17: 18000000 | AA17: 18000000 | AB17: 18000000 | AC17: 17/01/2023 | AD17: 2023-01-18 | AE17: 2023-04-17 | AF17: 90 | AQ17: Terminado | AR17: 1
A18: CPS-005-2023 | B18: 2023 | C18: FDRS-CD-005-2023 | D18: https://community.secop.gov.co/Public/Tendering/OpportunityDetail/Index?noticeUID=CO1.NTC.3786524&isFromPublicArea=True&isModal=False | E18: Contratos de prestación de servicios profesionales y de apoyo a la gestión | F18: Contratación directa | G18: Prestación de servicios profesionales y de apoyo a la gestión, o para la ejecución de trabajos artísticos que sólo puedan encomendarse a determinadas personas naturales | H18: PRESTACIÓN DE SERVICIOS PROFESIONALES Y/O APOYO A LA GESTIÓN | I18: Inversión | J18: Un nuevo contrato social y ambiental para la Bogotá del Siglo XXI | K18: 57 | L18: =IF(ISERROR(VLOOKUP(K18,Proposito_programa!$C$2:$E$59,2,FALSE))," ",VLOOKUP(K18,Proposito_programa!$C$2:$E$59,2,FALSE)) -> Gestión pública local | M18: =IF(ISERROR(VLOOKUP(K18,Proposito_programa!$C$2:$E$59,3,FALSE))," ",VLOOKUP(K18,Proposito_programa!$C$2:$E$59,3,FALSE)) -> Propósito 5: Construir Bogotá - Región con gobierno abierto, transparente y ciudadanía consciente | N18: 1696 | O18: 1 | P18: 51876508 | Q18: DORIS CRISTINA GARCIA ADARVE | R18: Persona Natural | W18: 29700000 | Y18: 1 | Z18: 5400000 | AA18: =+W18+X18+Z18 -> 35100000 | AB18: 27990000 | AC18: 18/01/2023 | AD18: 2023-01-20 | AE18: 2023-12-19 | AF18: 330 | AG18: 1 | AH18: 60 | AQ18: En ejecución | AR18: 0.7974358974
A19: CPS-006-2023 | B19: 2023 | C19: FDRS-CD-006-2023 | D19: https://community.secop.gov.co/Public/Tendering/OpportunityDetail/Index?noticeUID=CO1.NTC.3794358&isFromPublicArea=True&isModal=False | E19: Contratos de prestación de servicios profesionales y de apoyo a la gestión | F19: Contratación directa | G19: Prestación de servicios profesionales y de apoyo a la gestión, o para la ejecución de trabajos artísticos que sólo puedan encomendarse a determinadas personas naturales | H19: PRESTACIÓN DE SERVICIOS PROFESIONALES Y/O APOYO A LA GESTIÓN | I19: Inversión | J19: Un nuevo contrato social y ambiental para la Bogotá del Siglo XXI | K19: 38 | L19: =IF(ISERROR(VLOOKUP(K19,Proposito_programa!$C$2:$E$59,2,FALSE))," ",VLOOKUP(K19,Proposito_programa!$C$2:$E$59,2,FALSE)) -> Ecoeficiencia, reciclaje, manejo de residuos e inclusión de la población recicladora | M19: =IF(ISERROR(VLOOKUP(K19,Proposito_programa!$C$2:$E$59,3,FALSE))," ",VLOOKUP(K19,Proposito_programa!$C$2:$E$59,3,FALSE)) -> Propósito 2 : Cambiar Nuestros Hábitos de Vida para Reverdecer a Bogotá y Adaptarnos y Mitigar la Crisis Climática | N19: 1669 | O19: 1 | P19: 1026277892 | Q19: WILLIAM ANDRES HERRERA PABON | R19: Persona Natural | W19: 66000000 | Y19: 1 | Z19: 6000000 | AA19: =+W19+X19+Z19 -> 72000000 | AB19: 66000000 | AC19: 19/01/2023 | AD19: 2023-01-23 | AE19: 2023-12-22 | AF19: 330 | AG19: 1 | AH19: 30 | AQ19: En ejecución | AR19: 0.9166666667
A20: CPS-007-2023 | B20: 2023 | C20: FDRS-CD-007-2023 | D20: https://community.secop.gov.co/Public/Tendering/OpportunityDetail/Index?noticeUID=CO1.NTC.3789083&isFromPublicArea=True&isModal=False | E20: Contratos de prestación de servicios profesionales y de apoyo a la gestión | F20: Contratación directa | G20: Prestación de servicios profesionales y de apoyo a la gestión, o para la ejecución de trabajos artísticos que sólo puedan encomendarse a determinadas personas naturales | H20: PRESTACIÓN DE SERVICIOS PROFESIONALES Y/O APOYO A LA GESTIÓN | I20: Inversión | J20: Un nuevo contrato social y ambiental para la Bogotá del Siglo XXI | K20: 57 | L20: =IF(ISERROR(VLOOKUP(K20,Proposito_programa!$C$2:$E$59,2,FALSE))," ",VLOOKUP(K20,Proposito_programa!$C$2:$E$59,2,FALSE)) -> Gestión pública local | M20: =IF(ISERROR(VLOOKUP(K20,Proposito_programa!$C$2:$E$59,3,FALSE))," ",VLOOKUP(K20,Proposito_programa!$C$2:$E$59,3,FALSE)) -> Propósito 5: Construir Bogotá - Región con gobierno abierto, transparente y ciudadanía consciente | N20: 1696 | O20: 1 | P20: 80172113 | Q20: OMAR OCTAVIO CASTAÑO PAEZ | R20: Persona Natural | W20: 49500000 | Y20: 1 | Z20: 13500000 | AA20: 63000000 | AB20: 45000000 | AC20: 18/01/2023 | AD20: 2023-02-01 | AE20: 2023-12-31 | AF20: 330 | AG20: 1 | AH20: 90 | AQ20: Terminado | AR20: 0.7142857143
A21: CPS-009-2023 | B21: 2023 | C21: FDRS-CD-009-2023 | D21: https://community.secop.gov.co/Public/Tendering/OpportunityDetail/Index?noticeUID=CO1.NTC.3795306&isFromPublicArea=True&isModal=False | E21: Contratos de prestación de servicios profesionales y de apoyo a la gestión | F21: Contratación directa | G21: Prestación de servicios profesionales y de apoyo a la gestión, o para la ejecución de trabajos artísticos que sólo puedan encomendarse a determinadas personas naturales | H21: PRESTAR LOS SERVICIOS PROFESIONALES PARA LA OPERACIÓN, PRESTACIÓN, SEGUIMIENTO Y CUMPLIMIENTO DE LOS PROCEDIMIENTOS ADMINISTRATIVOS, OPERATIVOS Y PROGRAMÁTICOS DEL SERVICIO APOYO ECONÓMICO TIPO C, QUE CONTRIBUYAN A LA GARANTÍA DE LOS DERECHOS DE LA POBLACIÓN MAYOR EN EL MARCO DE LA POLÍTICA PÚBLICA SOCIAL PARA EL ENVEJECIMIENTO Y LA VEJEZ EN EL DISTRITO CAPITAL A CARGO DE LA ALCALDÍA LOCAL DE SUMAPAZ-1583 | I21: Inversión | J21: Un nuevo contrato social y ambiental para la Bogotá del Siglo XXI | K21: 1 | L21: =IF(ISERROR(VLOOKUP(K21,Proposito_programa!$C$2:$E$59,2,FALSE))," ",VLOOKUP(K21,Proposito_programa!$C$2:$E$59,2,FALSE)) -> Subsidios y transferencias para la equidad | M21: =IF(ISERROR(VLOOKUP(K21,Proposito_programa!$C$2:$E$59,3,FALSE))," ",VLOOKUP(K21,Proposito_programa!$C$2:$E$59,3,FALSE)) -> Propósito 1: Hacer un nuevo contrato social para incrementar la inclusión social, productiva y política | N21: 1583 | O21: 1 | P21: 52372021 | Q21: MILENY HILARION RIOS | R21: Persona Natural | W21: 55000000 | X21: -32500000 | AA21: =+W21+X21+Z21 -> 22500000 | AB21: 22500000 | AC21: 19/01/2023 | AD21: 2023-01-23 | AE21: 2023-06-07 | AF21: 330 | AQ21: Terminado | AR21: 1
A22: CPS-010-2023 | B22: 2023 | C22: FDRS-CD-010-2023 | D22: https://community.secop.gov.co/Public/Tendering/OpportunityDetail/Index?noticeUID=CO1.NTC.3805160&isFromPublicArea=True&isModal=False | E22: Contratos de prestación de servicios profesionales y de apoyo a la gestión | F22: Contratación directa | G22: Prestación de servicios profesionales y de apoyo a la gestión, o para la ejecución de trabajos artísticos que sólo puedan encomendarse a determinadas personas naturales | H22: PRESTAR LOS SERVICIOS PROFESIONALES PARA APOYAR EL PROCESO DE PLANEACIÓN Y SEGUIMIENTO DE LOS PROGRAMAS Y PROYECTOS DE INVERSIÓN DE TRANSFORMACIÓN PRODUCTIVA DEL FONDO DE DESARROLLO RURAL DE SUMAPAZ. | I22: Inversión | J22: Un nuevo contrato social y ambiental para la Bogotá del Siglo XXI | K22: 6 | L22: =IF(ISERROR(VLOOKUP(K22,Proposito_programa!$C$2:$E$59,2,FALSE))," ",VLOOKUP(K22,Proposito_programa!$C$2:$E$59,2,FALSE)) -> Sistema Distrital de Cuidado | M22: =IF(ISERROR(VLOOKUP(K22,Proposito_programa!$C$2:$E$59,3,FALSE))," ",VLOOKUP(K22,Proposito_programa!$C$2:$E$59,3,FALSE)) -> Propósito 1: Hacer un nuevo contrato social para incrementar la inclusión social, productiva y política | N22: 1637 | O22: 1 | P22: 1016101268 | Q22: BRAND SEBASTIAN MORENO GARCIA | R22: Persona Natural | W22: 55000000 | X22: -32833333 | AA22: 22166667 | AB22: 22166667 | AC22: 20/01/2023 | AD22: 2023-02-01 | AE22: 2023-06-13 | AF22: 330 | AQ22: Terminado | AR22: 1
A23: CPS-011-2023 | B23: 2023 | C23: FDRS-CD-011-2023 | D23: https://community.secop.gov.co/Public/Tendering/OpportunityDetail/Index?noticeUID=CO1.NTC.3821716&isFromPublicArea=True&isModal=False | E23: Contratos de prestación de servicios profesionales y de apoyo a la gestión | F23: Contratación directa | G23: Prestación de servicios profesionales y de apoyo a la gestión, o para la ejecución de trabajos artísticos que sólo puedan encomendarse a determinadas personas naturales | H23: PRESTAR LOS SERVICIOS PROFESIONALES PARA APOYAR JURÍDICAMENTE LAS RESPUESTAS A LAS SOLICITUDES RADICADAS POR ENTES DE CONTROL, CONCEJO DE BOGOTÁ Y TEMAS RELACIONADOS CON PLANES DE MEJORAMIENTO | I23: Inversión | J23: Un nuevo contrato social y ambiental para la Bogotá del Siglo XXI | K23: 57 | L23: =IF(ISERROR(VLOOKUP(K23,Proposito_programa!$C$2:$E$59,2,FALSE))," ",VLOOKUP(K23,Proposito_programa!$C$2:$E$59,2,FALSE)) -> Gestión pública local | M23: =IF(ISERROR(VLOOKUP(K23,Proposito_programa!$C$2:$E$59,3,FALSE))," ",VLOOKUP(K23,Proposito_programa!$C$2:$E$59,3,FALSE)) -> Propósito 5: Construir Bogotá - Región con gobierno abierto, transparente y ciudadanía consciente | N23: 1696 | O23: 1 | P23: 1014185465 | Q23: ANIBAL ANDRES ARAGONES ARROYAVE | R23: Persona Natural | W23: 66000000 | AA23: 66000000 | AB23: 60000000 | AC23: 23/01/2023 | AD23: 2023-02-01 | AE23: 2023-12-31 | AF23: 330 | AQ23: Terminado | AR23: 0.9090909091
A24: CPS-012-2023 | B24: 2023 | C24: FDRS-CD-012-2023 | D24: https://community.secop.gov.co/Public/Tendering/OpportunityDetail/Index?noticeUID=CO1.NTC.3812881&isFromPublicArea=True&isModal=False | E24: Contratos de prestación de servicios profesionales y de apoyo a la gestión | F24: Contratación directa | G24: Prestación de servicios profesionales y de apoyo a la gestión, o para la ejecución de trabajos artísticos que sólo puedan encomendarse a determinadas personas naturales | H24: PRESTAR LOS SERVICIOS PROFESIONALES AL ÁREA DE GESTIÓN DE DESARROLLO LOCAL, EN TEMAS RELACIONADOS CON EMPLEABILIDAD Y ATENCIÓN A LA POBLACIÓN VULNERABLE, DE LA ALCALDÍA LOCAL DE SUMAPAZ | I24: Inversión | J24: Un nuevo contrato social y ambiental para la Bogotá del Siglo XXI | K24: 1 | L24: =IF(ISERROR(VLOOKUP(K24,Proposito_programa!$C$2:$E$59,2,FALSE))," ",VLOOKUP(K24,Proposito_programa!$C$2:$E$59,2,FALSE)) -> Subsidios y transferencias para la equidad | M24: =IF(ISERROR(VLOOKUP(K24,Proposito_programa!$C$2:$E$59,3,FALSE))," ",VLOOKUP(K24,Proposito_programa!$C$2:$E$59,3,FALSE)) -> Propósito 1: Hacer un nuevo contrato social para incrementar la inclusión social, productiva y política | N24: 1583 | O24: 1 | P24: 52110765 | Q24: INDIRA FARIDE ELJACH BELTRAN | R24: Persona Natural | W24: 66000000 | Y24: 1 | Z24: 12000000 | AA24: 78000000 | AB24: 60800000 | AC24: 20/01/2023 | AD24: 2023-01-27 | AE24: 2024-02-26 | AF24: 330 | AG24: 1 | AH24: 60 | AQ24: En ejecución | AR24: 0.7794871795
A25: CPS-013-2023 | B25: 2023 | C25: FDRS-CD-013-2023 | D25: https://community.secop.gov.co/Public/Tendering/OpportunityDetail/Index?noticeUID=CO1.NTC.3811577&isFromPublicArea=True&isModal=False | E25: Contratos de prestación de servicios profesionales y de apoyo a la gestión | F25: Contratación directa | G25: Prestación de servicios profesionales y de apoyo a la gestión, o para la ejecución de trabajos artísticos que sólo puedan encomendarse a determinadas personas naturales | H25: PRESTAR SUS SERVICIOS COMO DOCENTE DEPORTIVO TÉCNICO PARA LA FORMACIÓN INTEGRAL Y DEPORTIVA DE LAS NIÑAS, NIÑOS Y ADOLESCENTES Y APOYAR LOS TEMAS DE RECREACIÓN Y DEPORTE QUE EJECUTE EL FONDO DE DESARROLLO DE SUMAPAZ | I25: Inversión | J25: Un nuevo contrato social y ambiental para la Bogotá del Siglo XXI | K25: 20 | L25: =IF(ISERROR(VLOOKUP(K25,Proposito_programa!$C$2:$E$59,2,FALSE))," ",VLOOKUP(K25,Proposito_programa!$C$2:$E$59,2,FALSE)) -> Bogotá, referente en cultura, deporte, recreación y actividad física, con parques para el desarrollo y la salud | M25: =IF(ISERROR(VLOOKUP(K25,Proposito_programa!$C$2:$E$59,3,FALSE))," ",VLOOKUP(K25,Proposito_programa!$C$2:$E$59,3,FALSE)) -> Propósito 1: Hacer un nuevo contrato social para incrementar la inclusión social, productiva y política | N25: 1590 | O25: 1 | P25: 1022997317 | Q25: OMAR ISRAEL CASTELLANOS MORALES | R25: Persona Natural | W25: 50600000 | AA25: 50600000 | AB25: 45693333 | AC25: 23/01/2023 | AD25: 2023-02-03 | AE25: 2024-01-02 | AF25: 330 | AQ25: Terminado | AR25: 0.9030302964
A26: CPS-014-2023 | B26: 2023 | C26: FDRS-CD-014-2023 | D26: https://community.secop.gov.co/Public/Tendering/OpportunityDetail/Index?noticeUID=CO1.NTC.3811427&isFromPublicArea=True&isModal=False | E26: Contratos de prestación de servicios profesionales y de apoyo a la gestión | F26: Contratación directa | G26: Prestación de servicios profesionales y de apoyo a la gestión, o para la ejecución de trabajos artísticos que sólo puedan encomendarse a determinadas personas naturales | H26: PRESTAR SUS SERVICIOS COMO DOCENTE DEPORTIVO TÉCNICO PARA LA FORMACIÓN INTEGRAL Y DEPORTIVA DE LAS NIÑAS, NIÑOS Y ADOLESCENTES Y APOYAR LOS TEMAS DE RECREACIÓN Y DEPORTE QUE EJECUTE EL FONDO DE DESARROLLO DE SUMAPAZ | I26: Inversión | J26: Un nuevo contrato social y ambiental para la Bogotá del Siglo XXI | K26: 20 | L26: =IF(ISERROR(VLOOKUP(K26,Proposito_programa!$C$2:$E$59,2,FALSE))," ",VLOOKUP(K26,Proposito_programa!$C$2:$E$59,2,FALSE)) -> Bogotá, referente en cultura, deporte, recreación y actividad física, con parques para el desarrollo y la salud | M26: =IF(ISERROR(VLOOKUP(K26,Proposito_programa!$C$2:$E$59,3,FALSE))," ",VLOOKUP(K26,Proposito_programa!$C$2:$E$59,3,FALSE)) -> Propósito 1: Hacer un nuevo contrato social para incrementar la inclusión social, productiva y política | N26: 1590 | O26: 1 | P26: 1069230460 | Q26: LEONARDO MARTINEZ VARELA | R26: Persona Natural | W26: 50600000 | AA26: 50600000 | AB26: 45693332 | AC26: 2023-01-20 | AD26: 2023-02-03 | AE26: 2024-01-02 | AF26: 330 | AI26: 1069740374 | AJ26: JEISSON AUGUSTO CASTELLANOS SANABRIA | AK26: 2023-05-17 | AL26: 34653334 | AM26: 1022972848 | AN26: LUIS ALFREDO MORALES TORRES | AO26: 2023-07-26 | AP26: 24073334 | AQ26: Terminado | AR26: 0.9030302767
A27: CPS-015-2023 | B27: 2023 | C27: FDRS-CD-015-2023 | D27: https://community.secop.gov.co/Public/Tendering/OpportunityDetail/Index?noticeUID=CO1.NTC.3820168&isFromPublicArea=True&isModal=False | E27: Contratos de prestación de servicios profesionales y de apoyo a la gestión | F27: Contratación directa | G27: Prestación de servicios profesionales y de apoyo a la gestión, o para la ejecución de trabajos artísticos que sólo puedan encomendarse a determinadas personas naturales | H27: PRESTAR LOS SERVICIOS PROFESIONALES PARA BRINDAR APOYO PSICOSOCIAL Y EMOCIONAL A LAS VÍCTIMAS DEL CONFLICTO ARMADO DE LA LOCALIDAD DE SUMAPAZ EN EL MARCO DEL SIVJRNR | I27: Inversión | J27: Un nuevo contrato social y ambiental para la Bogotá del Siglo XXI | K27: 39 | L27: =IF(ISERROR(VLOOKUP(K27,Proposito_programa!$C$2:$E$59,2,FALSE))," ",VLOOKUP(K27,Proposito_programa!$C$2:$E$59,2,FALSE)) -> Bogotá territorio de paz y atención integral a las víctimas del conflicto armado | M27: =IF(ISERROR(VLOOKUP(K27,Proposito_programa!$C$2:$E$59,3,FALSE))," ",VLOOKUP(K27,Proposito_programa!$C$2:$E$59,3,FALSE)) -> Propósito 3: Inspirar confianza y legitimidad para vivir sin miedo y ser epicentro de cultura ciudadana, paz y reconciliación | N27: 1672 | O27: 1 | P27: 1073170778 | Q27: MARIA CAMILA RAMIREZ QUIÑONEZ | R27: Persona Natural | W27: 62700000 | Y27: 1 | Z27: 11400000 | AA27: 74100000 | AB27: 57760000 | AC27: 2023-01-23 | AD27: 2023-01-27 | AE27: 2024-02-26 | AF27: 330 | AG27: 1 | AH27: 60 | AQ27: En ejecución | AR27: 0.7794871795
A28: CPS-016-2023 | B28: 2023 | C28: FDRS-CD-016-2023 | D28: https://community.secop.gov.co/Public/Tendering/OpportunityDetail/Index?noticeUID=CO1.NTC.3829449&isFromPublicArea=True&isModal=False | E28: Contratos de prestación de servicios profesionales y de apoyo a la gestión | F28: Contratación directa | G28: Prestación de servicios profesionales y de apoyo a la gestión, o para la ejecución de trabajos artísticos que sólo puedan encomendarse a determinadas personas naturales | H28: PRESTAR LOS SERVICIOS PROFESIONALES PARA APOYAR LAPLANEACIÓN, EJECUCIÓN Y SEGUIMIENTO DEL PROYECTO DE INVERSIÓN DEDOTACIÓN PEDAGÓGICA A COLEGIOS QUE EJECUTE EL FONDO DE DESARROLLO RURALDE SUMAPAZ. PROYECTO 1586. REEMPLAZA RP 466 | I28: Inversión | J28: Un nuevo contrato social y ambiental para la Bogotá del Siglo XXI | K28: 14 | L28: =IF(ISERROR(VLOOKUP(K28,Proposito_programa!$C$2:$E$59,2,FALSE))," ",VLOOKUP(K28,Proposito_programa!$C$2:$E$59,2,FALSE)) -> Formación integral: más y mejor tiempo en los colegios | M28: =IF(ISERROR(VLOOKUP(K28,Proposito_programa!$C$2:$E$59,3,FALSE))," ",VLOOKUP(K28,Proposito_programa!$C$2:$E$59,3,FALSE)) -> Propósito 1: Hacer un nuevo contrato social para incrementar la inclusión social, productiva y política | N28: 1586 | P28: 1022996683 | Q28: DEYSY VERONICA ZAPATA QUEVEDO | R28: Persona Natural | W28: 49833335 | AA28: 49833335 | AB28: 41400000 | AC28: 24/01/2023 | AD28: 2023-01-26 | AE28: 2023-12-01 | AF28: 330 | AQ28: Terminado | AR28: 0.830769203
A29: CPS-016-2023 | B29: 2023 | C29: FDRS-CD-016-2023 | D29: https://community.secop.gov.co/Public/Tendering/OpportunityDetail/Index?noticeUID=CO1.NTC.3829449&isFromPublicArea=True&isModal=False | E29: Contratos de prestación de servicios profesionales y de apoyo a la gestión | F29: Contratación directa | G29: Prestación de servicios profesionales y de apoyo a la gestión, o para la ejecución de trabajos artísticos que sólo puedan encomendarse a determinadas personas naturales | H29: PRESTAR LOS SERVICIOS PROFESIONALES PARA APOYAR LA PLANEACIÓN, EJECUCIÓN Y SEGUIMIENTO DEL PROYECTO DE INVERSIÓN DE DOTACIÓN PEDAGÓGICA A COLEGIOS QUE EJECUTE EL FONDO DE DESARROLLO RURAL DE SUMAPAZ | I29: Inversión | J29: Un nuevo contrato social y ambiental para la Bogotá del Siglo XXI | K29: 18 | L29: =IF(ISERROR(VLOOKUP(K29,Proposito_programa!$C$2:$E$59,2,FALSE))," ",VLOOKUP(K29,Proposito_programa!$C$2:$E$59,2,FALSE)) -> Cierre de brechas para la inclusión productiva urbano rural | M29: =IF(ISERROR(VLOOKUP(K29,Proposito_programa!$C$2:$E$59,3,FALSE))," ",VLOOKUP(K29,Proposito_programa!$C$2:$E$59,3,FALSE)) -> Propósito 1: Hacer un nuevo contrato social para incrementar la inclusión social, productiva y política | N29: 1587 | O29: 1 | P29: 1022996683 | Q29: DEYSY VERONICA ZAPATA QUEVEDO | R29: Persona Natural | W29: 50600000 | X29: -49833335 | AA29: 766665 | AB29: 766665 | AC29: 24/01/2023 | AD29: 2023-01-26 | AE29: 2023-12-01 | AF29: 330 | AQ29: Terminado | AR29: 1
A30: CPS-017-2023 | B30: 2023 | C30: FDRS-CD-017-2023 | D30: https://community.secop.gov.co/Public/Tendering/ContractNoticePhases/View?PPI=CO1.PPI.22667442&isFromPublicArea=True&isModal=False | E30: Contratos de prestación de servicios profesionales y de apoyo a la gestión | F30: Contratación directa | G30: Prestación de servicios profesionales y de apoyo a la gestión, o para la ejecución de trabajos artísticos que sólo puedan encomendarse a determinadas personas naturales | H30: PRESTAR LOS SERVICIOS PROFESIONALES PARA APOYAR LA PLANEACIÓN, EJECUCIÓN Y SEGUIMIENTO DE LOS PROYECTOS DE INVERSIÓN EN TEMAS DE CULTURA QUE EJECUTE EL FONDO DE DESARROLLO LOCAL DE SUMAPAZ - 1633 | I30: Inversión | J30: Un nuevo contrato social y ambiental para la Bogotá del Siglo XXI | K30: 21 | L30: =IF(ISERROR(VLOOKUP(K30,Proposito_programa!$C$2:$E$59,2,FALSE))," ",VLOOKUP(K30,Proposito_programa!$C$2:$E$59,2,FALSE)) -> Creación y vida cotidiana: Apropiación ciudadana del arte, la cultura y el patrimonio, para la democracia cultural | M30: =IF(ISERROR(VLOOKUP(K30,Proposito_programa!$C$2:$E$59,3,FALSE))," ",VLOOKUP(K30,Proposito_programa!$C$2:$E$59,3,FALSE)) -> Propósito 1: Hacer un nuevo contrato social para incrementar la inclusión social, productiva y política | N30: 1633 | O30: 1 | P30: 28723701 | Q30: LUZ YOLANDA LEON FLOREZ | R30: Persona Natural | W30: 66000000 | AA30: 66000000 | AB30: 60800000 | AC30: 23/01/2023 | AD30: 2023-01-27 | AE30: 2023-12-26 | AF30: 330 | AQ30: Terminado | AR30: 0.9212121212
A31: CPS-018-2023 | B31: 2023 | C31: FDRS-CD-018-2023 | D31: https://community.secop.gov.co/Public/Tendering/OpportunityDetail/Index?noticeUID=CO1.NTC.3820094&isFromPublicArea=True&isModal=False | E31: Contratos de prestación de servicios profesionales y de apoyo a la gestión | F31: Contratación directa | G31: Prestación de servicios profesionales y de apoyo a la gestión, o para la ejecución de trabajos artísticos que sólo puedan encomendarse a determinadas personas naturales | H31: PRESTAR LOS SERVICIOS DE APOYO ADMINISTRATIVO Y LOGÍSTICO EN LA EJECUCIÓN DE LOS PROYECTOS DE INVERSIÓN RELACIONADOS CON EL ACCESO A LA JUSTICIA INTEGRAL, DE LA ALCALDÍA LOCAL DE SUMAPAZ | I31: Inversión | J31: Un nuevo contrato social y ambiental para la Bogotá del Siglo XXI | K31: 48 | L31: =IF(ISERROR(VLOOKUP(K31,Proposito_programa!$C$2:$E$59,2,FALSE))," ",VLOOKUP(K31,Proposito_programa!$C$2:$E$59,2,FALSE)) -> Plataforma institucional para la seguridad y justicia | M31: =IF(ISERROR(VLOOKUP(K31,Proposito_programa!$C$2:$E$59,3,FALSE))," ",VLOOKUP(K31,Proposito_programa!$C$2:$E$59,3,FALSE)) -> Propósito 3: Inspirar confianza y legitimidad para vivir sin miedo y ser epicentro de cultura ciudadana, paz y reconciliación | N31: 1683 | O31: 1 | P31: 1030531958 | Q31: FREDY ALEXANDER RUIZ CASTRO | R31: Persona Natural | W31: 29700000 | AA31: 29700000 | AB31: 27450000 | AC31: 23/01/2023 | AD31: 2023-01-26 | AE31: 2023-12-25 | AF31: 330 | AQ31: Terminado | AR31: 0.9242424242
A32: CPS-019-2023 | B32: 2023 | C32: FDRS-CD-019-2023 | D32: https://community.secop.gov.co/Public/Tendering/OpportunityDetail/Index?noticeUID=CO1.NTC.3821770&isFromPublicArea=True&isModal=False | E32: Contratos de prestación de servicios profesionales y de apoyo a la gestión | F32: Contratación directa | G32: Prestación de servicios profesionales y de apoyo a la gestión, o para la ejecución de trabajos artísticos que sólo puedan encomendarse a determinadas personas naturales | H32: PRESTAR SUS SERVICIOS TÉCNICOS PARA APOYAR LA GESTIÓN DE PRENSA Y COMUNICACIONES DE LA ALCALDÍA LOCAL, EN LA ELABORACIÓN DE PIEZAS GRÁFICAS DIGITALES PARA DIFUSIÓN DE LAS ACTIVIDADES QUE ADELANTA EL FDRS | I32: Inversión | J32: Un nuevo contrato social y ambiental para la Bogotá del Siglo XXI | K32: 57 | L32: =IF(ISERROR(VLOOKUP(K32,Proposito_programa!$C$2:$E$59,2,FALSE))," ",VLOOKUP(K32,Proposito_programa!$C$2:$E$59,2,FALSE)) -> Gestión pública local | M32: =IF(ISERROR(VLOOKUP(K32,Proposito_programa!$C$2:$E$59,3,FALSE))," ",VLOOKUP(K32,Proposito_programa!$C$2:$E$59,3,FALSE)) -> Propósito 5: Construir Bogotá - Región con gobierno abierto, transparente y ciudadanía consciente | N32: 1696 | O32: 1 | P32: 80897743 | Q32: JHONATAN ALVAREZ MORA | R32: Persona Natural | W32: 34650000 | Y32: 1 | Z32: 6300000 | AA32: 40950000 | AB32: 31500000 | AC32: 23/01/2023 | AD32: 2023-01-31 | AE32: 2024-02-29 | AF32: 330 | AG32: 1 | AH32: 60 | AQ32: En ejecución | AR32: 0.7692307692
A33: CPS-020-2023 | B33: 2023 | C33: FDRS-CD-020-2023 | D33: https://community.secop.gov.co/Public/Tendering/OpportunityDetail/Index?noticeUID=CO1.NTC.3827721&isFromPublicArea=True&isModal=False | E33: Contratos de prestación de servicios profesionales y de apoyo a la gestión | F33: Contratación directa | G33: Prestación de servicios profesionales y de apoyo a la gestión, o para la ejecución de trabajos artísticos que sólo puedan encomendarse a determinadas personas naturales | H33: PRESTAR LOS SERVICIOS DE APOYO ADMINISTRATIVO EN EL MA-NEJO DE LA INFORMACIÓN RELACIONADA CON LA GESTIÓN CON-TRACTUAL DE LA ALCALDÍA LOCAL DE SUMAPAZ. | I33: Inversión | J33: Un nuevo contrato social y ambiental para la Bogotá del Siglo XXI | K33: 57 | L33: =IF(ISERROR(VLOOKUP(K33,Proposito_programa!$C$2:$E$59,2,FALSE))," ",VLOOKUP(K33,Proposito_programa!$C$2:$E$59,2,FALSE)) -> Gestión pública local | M33: =IF(ISERROR(VLOOKUP(K33,Proposito_programa!$C$2:$E$59,3,FALSE))," ",VLOOKUP(K33,Proposito_programa!$C$2:$E$59,3,FALSE)) -> Propósito 5: Construir Bogotá - Región con gobierno abierto, transparente y ciudadanía consciente | N33: 1696 | O33: 1 | P33: 1053323847 | Q33: OLGA ESPERANZA MARTINEZ GUEVARA | R33: Persona Natural | W33: 29700000 | AA33: 29700000 | AB33: 27360000 | AC33: 2023-01-24 | AD33: 2023-01-27 | AE33: 2023-12-26 | AF33: 330 | AQ33: Terminado | AR33: 0.9212121212
A34: CPS-021-2023 | B34: 2023 | C34: FDRS-CD-021-2023 | D34: https://community.secop.gov.co/Public/Tendering/OpportunityDetail/Index?noticeUID=CO1.NTC.3823296&isFromPublicArea=True&isModal=False | E34: Contratos de prestación de servicios profesionales y de apoyo a la gestión | F34: Contratación directa | G34: Prestación de servicios profesionales y de apoyo a la gestión, o para la ejecución de trabajos artísticos que sólo puedan encomendarse a determinadas personas naturales | H34: PRESTAR LOS SERVICIOS PROFESIONALES PARA APOYAR LA PLANEACIÓN, EJECUCIÓN Y SEGUIMIENTO DE LOS PROYECTOS DE INVERSIÓN EN TEMAS DE EDUCACIÓN QUE EJECUTE EL FONDO DE DESARROLLO RURAL DE SUMAPAZ | I34: Inversión | J34: Un nuevo contrato social y ambiental para la Bogotá del Siglo XXI | K34: 18 | L34: =IF(ISERROR(VLOOKUP(K34,Proposito_programa!$C$2:$E$59,2,FALSE))," ",VLOOKUP(K34,Proposito_programa!$C$2:$E$59,2,FALSE)) -> Cierre de brechas para la inclusión productiva urbano rural | M34: =IF(ISERROR(VLOOKUP(K34,Proposito_programa!$C$2:$E$59,3,FALSE))," ",VLOOKUP(K34,Proposito_programa!$C$2:$E$59,3,FALSE)) -> Propósito 1: Hacer un nuevo contrato social para incrementar la inclusión social, productiva y política | N34: 1587 | O34: 1 | P34: 9770381 | Q34: JULIAN ANDRES CARVAJAL ZAMORA | R34: Persona Natural | W34: 77000000 | Y34: 1 | Z34: 14000000 | AA34: 91000000 | AB34: 70000000 | AC34: 2023-01-23 | AD34: 2023-02-01 | AE34: 2024-02-29 | AF34: 330 | AG34: 1 | AH34: 60 | AQ34: En ejecución | AR34: 0.7692307692
A35: CPS-022-2023 | B35: 2023 | C35: FDRS-CD-022-2023 | D35: https://community.secop.gov.co/Public/Tendering/OpportunityDetail/Index?noticeUID=CO1.NTC.3827505&isFromPublicArea=True&isModal=False | E35: Contratos de prestación de servicios profesionales y de apoyo a la gestión | F35: Contratación directa | G35: Prestación de servicios profesionales y de apoyo a la gestión, o para la ejecución de trabajos artísticos que sólo puedan encomendarse a determinadas personas naturales | H35: PRESTAR LOS SERVICIOS PROFESIONALES PARA APOYAR EL PROCESO DE PLANEACIÓN Y SEGUIMIENTO DE LOS PLANES, PROGRAMAS Y PROYECTOS DE INVERSIÓN DEL FONDO DE DESARROLLO RURAL DE SUMAPAZ. | I35: Inversión | J35: Un nuevo contrato social y ambiental para la Bogotá del Siglo XXI | K35: 57 | L35: =IF(ISERROR(VLOOKUP(K35,Proposito_programa!$C$2:$E$59,2,FALSE))," ",VLOOKUP(K35,Proposito_programa!$C$2:$E$59,2,FALSE)) -> Gestión pública local | M35: =IF(ISERROR(VLOOKUP(K35,Proposito_programa!$C$2:$E$59,3,FALSE))," ",VLOOKUP(K35,Proposito_programa!$C$2:$E$59,3,FALSE)) -> Propósito 5: Construir Bogotá - Región con gobierno abierto, transparente y ciudadanía consciente | N35: 1696 | O35: 1 | P35: 79519356 | Q35: MILTON ROBERTO TORRES TORRES | R35: Persona Natural | W35: 71500000 | Y35: 1 | Z35: 6500000 | AA35: 78000000 | AB35: 65866666 | AC35: 2023-01-24 | AD35: 2023-01-27 | AE35: 2024-01-26 | AF35: 330 | AG35: 1 | AH35: 30 | AQ35: En ejecución | AR35: 0.8444444359
A36: CPS-023-2023 | B36: 2023 | C36: FDRS-CD-023-202 | D36: https://community.secop.gov.co/Public/Tendering/OpportunityDetail/Index?noticeUID=CO1.NTC.3836109&isFromPublicArea=True&isModal=False | E36: Contratos de prestación de servicios profesionales y de apoyo a la gestión | F36: Contratación directa | G36: Prestación de servicios profesionales y de apoyo a la gestión, o para la ejecución de trabajos artísticos que sólo puedan encomendarse a determinadas personas naturales | H36: PRESTAR LOS SERVICIOS DE APOYO ADMINISTRATIVO EN LOS PROCESOS QUE SE ADELANTAN EN EL ALMACÉN DE LA ALCALDÍA LOCAL DE SUMAPAZ. | I36: Inversión | J36: Un nuevo contrato social y ambiental para la Bogotá del Siglo XXI | K36: 57 | L36: =IF(ISERROR(VLOOKUP(K36,Proposito_programa!$C$2:$E$59,2,FALSE))," ",VLOOKUP(K36,Proposito_programa!$C$2:$E$59,2,FALSE)) -> Gestión pública local | M36: =IF(ISERROR(VLOOKUP(K36,Proposito_programa!$C$2:$E$59,3,FALSE))," ",VLOOKUP(K36,Proposito_programa!$C$2:$E$59,3,FALSE)) -> Propósito 5: Construir Bogotá - Región con gobierno abierto, transparente y ciudadanía consciente | N36: 1696 | O36: 1 | P36: 1032656434 | Q36: SERGIO DANIEL MORA MACANA | R36: Persona Natural | W36: 29700000 | Y36: 1 | Z36: 5400000 | AA36: 35100000 | AB36: 26370000 | AC36: 2023-01-24 | AD36: 2023-02-08 | AE36: 2024-03-07 | AF36: 330 | AG36: 1 | AH36: 60 | AQ36: En ejecución | AR36: 0.7512820513
A37: CPS-024-2023 | B37: 2023 | C37: FDRS-CD-024-2023 | D37: https://community.secop.gov.co/Public/Tendering/OpportunityDetail/Index?noticeUID=CO1.NTC.3831833&isFromPublicArea=True&isModal=False | E37: Contratos de prestación de servicios profesionales y de apoyo a la gestión | F37: Contratación directa | G37: Prestación de servicios profesionales y de apoyo a la gestión, o para la ejecución de trabajos artísticos que sólo puedan encomendarse a determinadas personas naturales | H37: PRESTAR LOS SERVICIOS PROFESIONALES PARA APOYAR LA PLANEACIÓN, EJECUCIÓN Y SEGUIMIENTO DE LOS PROYECTOS DE INVERSIÓN Y RUBROS DE FUNCIONAMIENTO QUE LE SEAN DESIGNADOS, DEL FONDO DE DESARROLLO RURAL DE SUMAPAZ | I37: Inversión | J37: Un nuevo contrato social y ambiental para la Bogotá del Siglo XXI | K37: 57 | L37: =IF(ISERROR(VLOOKUP(K37,Proposito_programa!$C$2:$E$59,2,FALSE))," ",VLOOKUP(K37,Proposito_programa!$C$2:$E$59,2,FALSE)) -> Gestión pública local | M37: =IF(ISERROR(VLOOKUP(K37,Proposito_programa!$C$2:$E$59,3,FALSE))," ",VLOOKUP(K37,Proposito_programa!$C$2:$E$59,3,FALSE)) -> Propósito 5: Construir Bogotá - Región con gobierno abierto, transparente y ciudadanía consciente | N37: 1696 | O37: 1 | P37: 80062594 | Q37: MARIO FERNANDO NIÑO LEAL | R37: Persona Natural | W37: 66000000 | Y37: 1 | Z37: 12000000 | AA37: 78000000 | AB37: 60200000 | AC37: 2023-01-25 | AD37: 2023-01-30 | AE37: 2024-02-29 | AF37: 330 | AG37: 1 | AH37: 60 | AQ37: En ejecución | AR37: 0.7717948718
A38: CPS-025-2023 | B38: 2023 | C38: FDRS-CD-025-2023 | D38: https://community.secop.gov.co/Public/Tendering/OpportunityDetail/Index?noticeUID=CO1.NTC.3852124&isFromPublicArea=True&isModal=False | E38: Contratos de prestación de servicios profesionales y de apoyo a la gestión | F38: Contratación directa | G38: Prestación de servicios profesionales y de apoyo a la gestión, o para la ejecución de trabajos artísticos que sólo puedan encomendarse a determinadas personas naturales | H38: PRESTAR LOS SERVICIOS COMO CONDUCTOR DE VOLQUETAS (VEHÍCULOS PESADOS) DE PROPIEDAD O TENENCIA DEL FONDO DE DESARROLLO LOCAL DE SUMAPAZ | I38: Inversión | J38: Un nuevo contrato social y ambiental para la Bogotá del Siglo XXI | K38: 49 | L38: =IF(ISERROR(VLOOKUP(K38,Proposito_programa!$C$2:$E$59,2,FALSE))," ",VLOOKUP(K38,Proposito_programa!$C$2:$E$59,2,FALSE)) -> Movilidad segura, sostenible y accesible | M38: =IF(ISERROR(VLOOKUP(K38,Proposito_programa!$C$2:$E$59,3,FALSE))," ",VLOOKUP(K38,Proposito_programa!$C$2:$E$59,3,FALSE)) -> Propósito 4: Hacer de Bogotá Región un modelo de movilidad multimodal, incluyente y sostenible | N38: 1688 | O38: 1 | P38: 1022924525 | Q38: MOISES DELGADO VERGARA | R38: Persona Natural | W38: 10800000 | AA38: 10800000 | AB38: 10800000 | AC38: 2023-01-26 | AD38: 2023-02-01 | AE38: 2023-06-30 | AF38: 120 | AQ38: Terminado | AR38: 1
A39: CPS-026-2023 | B39: 2023 | C39: FDRS-CD-026-2023 | D39: https://community.secop.gov.co/Public/Tendering/OpportunityDetail/Index?noticeUID=CO1.NTC.3831814&isFromPublicArea=True&isModal=False | E39: Contratos de prestación de servicios profesionales y de apoyo a la gestión | F39: Contratación directa | G39: Prestación de servicios profesionales y de apoyo a la gestión, o para la ejecución de trabajos artísticos que sólo puedan encomendarse a determinadas personas naturales | H39: PRESTAR SUS SERVICIOS PROFESIONALES DE APOYO AL ÁREA DE GESTIÓN DEL DESARROLLO LOCAL EN LA GESTIÓN CONTRACTUAL DEL FONDO DE DESARROLLO LOCAL DE SUMAPAZ. PROYECTO 1696. | I39: Inversión | J39: Un nuevo contrato social y ambiental para la Bogotá del Siglo XXI | K39: 57 | L39: =IF(ISERROR(VLOOKUP(K39,Proposito_programa!$C$2:$E$59,2,FALSE))," ",VLOOKUP(K39,Proposito_programa!$C$2:$E$59,2,FALSE)) -> Gestión pública local | M39: =IF(ISERROR(VLOOKUP(K39,Proposito_programa!$C$2:$E$59,3,FALSE))," ",VLOOKUP(K39,Proposito_programa!$C$2:$E$59,3,FALSE)) -> Propósito 5: Construir Bogotá - Región con gobierno abierto, transparente y ciudadanía consciente | N39: 1696 | O39: 1 | P39: 16377907 | Q39: OSCAR ANDRES CONTECHA PANIAGUA | R39: Persona Natural | W39: 13800000 | AA39: 13800000 | AB39: 13800000 | AC39: 2023-01-25 | AD39: 2023-01-30 | AE39: 2023-04-29 | AF39: 90 | AQ39: Terminado | AR39: 1
A40: CPS-027-2023 | B40: 2023 | C40: FDRS-CD-027-2023 | D40: https://community.secop.gov.co/Public/Tendering/OpportunityDetail/Index?noticeUID=CO1.NTC.3835865&isFromPublicArea=True&isModal=False | E40: Contratos de prestación de servicios profesionales y de apoyo a la gestión | F40: Contratación directa | G40: Prestación de servicios profesionales y de apoyo a la gestión, o para la ejecución de trabajos artísticos que sólo puedan encomendarse a determinadas personas naturales | H40: PRESTAR LOS SERVICIOS PROFESIONALES PARA APOYAR LA PLANEACIÓN DE LOS PROYECTOS DE INVERSIÓN DE PARTICIPACIÓN QUE EJECUTE EL FONDO DE DESARROLLO RURAL DE SUMAPAZ. PROYECTO 1691. | I40: Inversión | J40: Un nuevo contrato social y ambiental para la Bogotá del Siglo XXI | K40: 55 | L40: =IF(ISERROR(VLOOKUP(K40,Proposito_programa!$C$2:$E$59,2,FALSE))," ",VLOOKUP(K40,Proposito_programa!$C$2:$E$59,2,FALSE)) -> Fortalecimiento de cultura ciudadana y su institucionalidad | M40: =IF(ISERROR(VLOOKUP(K40,Proposito_programa!$C$2:$E$59,3,FALSE))," ",VLOOKUP(K40,Proposito_programa!$C$2:$E$59,3,FALSE)) -> Propósito 5: Construir Bogotá - Región con gobierno abierto, transparente y ciudadanía consciente | N40: 1691 | O40: 1 | P40: 1015415370 | Q40: ANGIE CAROLINA PRIETO ALVARADO | R40: Persona Natural | W40: 66000000 | Y40: 1 | Z40: 12000000 | AA40: 78000000 | AB40: 60200000 | AC40: 2023-01-25 | AD40: 2023-01-30 | AE40: 2024-02-29 | AF40: 330 | AG40: 1 | AH40: 60 | AQ40: En ejecución | AR40: 0.7717948718
A41: CPS-028-2023 | B41: 2023 | C41: FDRS-CD-028-2023 | D41: https://community.secop.gov.co/Public/Tendering/OpportunityDetail/Index?noticeUID=CO1.NTC.3849614&isFromPublicArea=True&isModal=False | E41: Contratos de prestación de servicios profesionales y de apoyo a la gestión | F41: Contratación directa | G41: Prestación de servicios profesionales y de apoyo a la gestión, o para la ejecución de trabajos artísticos que sólo puedan encomendarse a determinadas personas naturales | H41: PRESTAR LOS SERVICIOS PROFESIONALES PARA QUE APOYE LA EJECUCIÓN Y REALICE SEGUIMIENTO A LOS CONVENIOS QUE SE HAN SUSCRITO CON RECURSOS DE LOS PROYECTOS DE INVERSIÓN DEL FONDO DE DESARROLLO RURAL DE SUMAPAZ | I41: Inversión | J41: Un nuevo contrato social y ambiental para la Bogotá del Siglo XXI | K41: 21 | L41: =IF(ISERROR(VLOOKUP(K41,Proposito_programa!$C$2:$E$59,2,FALSE))," ",VLOOKUP(K41,Proposito_programa!$C$2:$E$59,2,FALSE)) -> Creación y vida cotidiana: Apropiación ciudadana del arte, la cultura y el patrimonio, para la democracia cultural | M41: =IF(ISERROR(VLOOKUP(K41,Proposito_programa!$C$2:$E$59,3,FALSE))," ",VLOOKUP(K41,Proposito_programa!$C$2:$E$59,3,FALSE)) -> Propósito 1: Hacer un nuevo contrato social para incrementar la inclusión social, productiva y política | N41: 1633 | O41: 1 | P41: 52793358 | Q41: INGIRD JOHANNA CUBIDES PUENTES | R41: Persona Natural | W41: 28000000 | AA41: 28000000 | AB41: 22693332 | AC41: 2023-01-31 | AD41: 2023-02-08 | AE41: 2023-06-07 | AF41: 120 | AI41: 79391798 | AJ41: PEDRO ALEJANDRO CORTES MALAVER | AK41: 2023-04-01 | AL41: 14000000 | AQ41: Terminado | AR41: 0.8104761429
A42: CPS-029-2023 | B42: 2023 | C42: FDRS-CD-025-2023 | D42: https://community.secop.gov.co/Public/Tendering/OpportunityDetail/Index?noticeUID=CO1.NTC.3852124&isFromPublicArea=True&isModal=False | E42: Contratos de prestación de servicios profesionales y de apoyo a la gestión | F42: Contratación directa | G42: Prestación de servicios profesionales y de apoyo a la gestión, o para la ejecución de trabajos artísticos que sólo puedan encomendarse a determinadas personas naturales | H42: PRESTAR LOS SERVICIOS COMO CONDUCTOR DE VOLQUETAS (VEHÍCULOS PESADOS) DE PROPIEDAD O TENENCIA DEL FONDO DE DESARROLLO LOCAL DE SUMAPAZ | I42: Inversión | J42: Un nuevo contrato social y ambiental para la Bogotá del Siglo XXI | K42: 49 | L42: =IF(ISERROR(VLOOKUP(K42,Proposito_programa!$C$2:$E$59,2,FALSE))," ",VLOOKUP(K42,Proposito_programa!$C$2:$E$59,2,FALSE)) -> Movilidad segura, sostenible y accesible | M42: =IF(ISERROR(VLOOKUP(K42,Proposito_programa!$C$2:$E$59,3,FALSE))," ",VLOOKUP(K42,Proposito_programa!$C$2:$E$59,3,FALSE)) -> Propósito 4: Hacer de Bogotá Región un modelo de movilidad multimodal, incluyente y sostenible | N42: 1688 | O42: 1 | P42: 1007829181 | Q42: ELKIN ANDRES GARCIA CIFUENTES | R42: Persona Natural | W42: 10800000 | AA42: 10800000 | AB42: 10800000 | AC42: 2023-01-26 | AD42: 2023-02-01 | AE42: 2023-05-30 | AF42: 120 | AQ42: Terminado | AR42: 1
A43: CPS-030-2023 | B43: 2023 | C43: FDRS-CD-029-2023 | D43: https://community.secop.gov.co/Public/Tendering/OpportunityDetail/Index?noticeUID=CO1.NTC.3850036&isFromPublicArea=True&isModal=False | E43: Contratos de prestación de servicios profesionales y de apoyo a la gestión | F43: Contratación directa | G43: Prestación de servicios profesionales y de apoyo a la gestión, o para la ejecución de trabajos artísticos que sólo puedan encomendarse a determinadas personas naturales | H43: PRESTAR LOS SERVICIOS PROFESIONALES PARA APOYAR LA PLANEACIÓN, SEGUIMIENTO, EJECUCIÓN Y CONTROL DE LAS ACTIVIDADES AGROPECUARIAS ENFOCADAS A PROMOVER EL DESARROLLO RURAL SOSTENIBLE, EN LA LOCALIDAD DE SUMAPAZ | I43: Inversión | J43: Un nuevo contrato social y ambiental para la Bogotá del Siglo XXI | K43: 6 | L43: =IF(ISERROR(VLOOKUP(K43,Proposito_programa!$C$2:$E$59,2,FALSE))," ",VLOOKUP(K43,Proposito_programa!$C$2:$E$59,2,FALSE)) -> Sistema Distrital de Cuidado | M43: =IF(ISERROR(VLOOKUP(K43,Proposito_programa!$C$2:$E$59,3,FALSE))," ",VLOOKUP(K43,Proposito_programa!$C$2:$E$59,3,FALSE)) -> Propósito 1: Hacer un nuevo contrato social para incrementar la inclusión social, productiva y política | N43: 1637 | O43: 1 | P43: 79266150 | Q43: GUILLERMO ENRRIQUE MONTAÑO CALDERON | R43: Persona Natural | W43: 66000000 | AA43: 66000000 | AB43: 57400000 | AC43: 2023-01-26 | AD43: 2023-02-14 | AE43: 2024-01-13 | AF43: 330 | AQ43: Terminado | AR43: 0.8696969697
A44: CPS-031-2023 | B44: 2023 | C44: FDRS-CD-030-2023 | D44: https://community.secop.gov.co/Public/Tendering/OpportunityDetail/Index?noticeUID=CO1.NTC.3851711&isFromPublicArea=True&isModal=False | E44: Contratos de prestación de servicios profesionales y de apoyo a la gestión | F44: Contratación directa | G44: Prestación de servicios profesionales y de apoyo a la gestión, o para la ejecución de trabajos artísticos que sólo puedan encomendarse a determinadas personas naturales | H44: PRESTAR LOS SERVICIOS PROFESIONALES PARA COORDINAR LA ARTICULACIÓN, ASISTENCIA Y ACOMPAÑAMIENTO DE LOS PROCESOS DE PLANEACIÓN LOCAL, PARA LA PROMOCIÓN DE LA PARTICIPACIÓN DE LAS MUJERES Y DE LA EQUIDAD DE GÉNERO, PARA MATERIALIZAR EN LA LOCALIDAD LAS ESTRATEGIAS DE TERRITORIALIZACIÓN Y TRANSVERSALIZACIÓN DE LA POLÍTICA PUBLICA DE MUJERES Y EQUIDAD DE GÉNERO, PPMYEG. | I44: Inversión | J44: Un nuevo contrato social y ambiental para la Bogotá del Siglo XXI | K44: 40 | L44: =IF(ISERROR(VLOOKUP(K44,Proposito_programa!$C$2:$E$59,2,FALSE))," ",VLOOKUP(K44,Proposito_programa!$C$2:$E$59,2,FALSE)) -> Más mujeres viven una vida libre de violencias, se sienten seguras y acceden con confianza al sistema de justicia | M44: =IF(ISERROR(VLOOKUP(K44,Proposito_programa!$C$2:$E$59,3,FALSE))," ",VLOOKUP(K44,Proposito_programa!$C$2:$E$59,3,FALSE)) -> Propósito 3: Inspirar confianza y legitimidad para vivir sin miedo y ser epicentro de cultura ciudadana, paz y reconciliación | N44: 1674 | O44: 1 | P44: 52008301 | Q44: ANA ROSA BAUTISTA RINCON | R44: Persona Natural | W44: 66000000 | Y44: 1 | Z44: 12000000 | AA44: 78000000 | AB44: 60000000 | AC44: 2023-01-26 | AD44: 2023-02-01 | AE44: 2024-02-29 | AF44: 330 | AG44: 1 | AH44: 60 | AQ44: En ejecución | AR44: 0.7692307692
A45: CPS-032-2023 | B45: 2023 | C45: FDRS-CD-031-2023 | D45: https://community.secop.gov.co/Public/Tendering/OpportunityDetail/Index?noticeUID=CO1.NTC.3841113&isFromPublicArea=True&isModal=False | E45: Contratos de prestación de servicios profesionales y de apoyo a la gestión | F45: Contratación directa | G45: Prestación de servicios profesionales y de apoyo a la gestión, o para la ejecución de trabajos artísticos que sólo puedan encomendarse a determinadas personas naturales | H45: PRESTAR LOS SERVICIOS PARA EL MANEJO Y/O CONDUCCIÓN DE LOS VEHÍCULOS LIVIANOS DE PROPIEDAD O TENENCIA DEL FONDO DE DESARROLLO RURAL DE SUMAPAZ | I45: Inversión | J45: Un nuevo contrato social y ambiental para la Bogotá del Siglo XXI | K45: 57 | L45: =IF(ISERROR(VLOOKUP(K45,Proposito_programa!$C$2:$E$59,2,FALSE))," ",VLOOKUP(K45,Proposito_programa!$C$2:$E$59,2,FALSE)) -> Gestión pública local | M45: =IF(ISERROR(VLOOKUP(K45,Proposito_programa!$C$2:$E$59,3,FALSE))," ",VLOOKUP(K45,Proposito_programa!$C$2:$E$59,3,FALSE)) -> Propósito 5: Construir Bogotá - Región con gobierno abierto, transparente y ciudadanía consciente | N45: 1696 | O45: 1 | P45: 1022938966 | Q45: OSCAR JAVIER CIFUENTES VERGARA | R45: Persona Natural | W45: 29700000 | Y45: 1 | Z45: 5400000 | AA45: =+W45+X45+Z45 -> 35100000 | AB45: 27090000 | AC45: 2023-01-25 | AD45: 2023-01-30 | AE45: 2024-02-29 | AF45: 330 | AG45: 1 | AH45: 60 | AQ45: En ejecución | AR45: 0.7717948718
A46: CPS-033-2023 | B46: 2023 | C46: FDRS-CD-025-2023 | D46: https://community.secop.gov.co/Public/Tendering/OpportunityDetail/Index?noticeUID=CO1.NTC.3852124&isFromPublicArea=True&isModal=False | E46: Contratos de prestación de servicios profesionales y de apoyo a la gestión | F46: Contratación directa | G46: Prestación de servicios profesionales y de apoyo a la gestión, o para la ejecución de trabajos artísticos que sólo puedan encomendarse a determinadas personas naturales | H46: PRESTAR LOS SERVICIOS COMO CONDUCTOR DE VOLQUETAS (VEHÍCULOS PESADOS) DE PROPIEDAD O TENENCIA DEL FONDO DE DESARROLLO LOCAL DE SUMAPAZ | I46: Inversión | J46: Un nuevo contrato social y ambiental para la Bogotá del Siglo XXI | K46: 49 | L46: =IF(ISERROR(VLOOKUP(K46,Proposito_programa!$C$2:$E$59,2,FALSE))," ",VLOOKUP(K46,Proposito_programa!$C$2:$E$59,2,FALSE)) -> Movilidad segura, sostenible y accesible | M46: =IF(ISERROR(VLOOKUP(K46,Proposito_programa!$C$2:$E$59,3,FALSE))," ",VLOOKUP(K46,Proposito_programa!$C$2:$E$59,3,FALSE)) -> Propósito 4: Hacer de Bogotá Región un modelo de movilidad multimodal, incluyente y sostenible | N46: 1688 | O46: 1 | P46: 79632409 | Q46: GERMAN ROMERO ROMAN | R46: Persona Natural | W46: 10800000 | AA46: 10800000 | AB46: 10800000 | AC46: 2023-01-26 | AD46: 2023-02-01 | AE46: 2023-05-30 | AF46: 120 | AQ46: Terminado | AR46: 1
A47: CPS-034-2023 | B47: 2023 | C47: FDRS-CD-032-2023 | D47: https://community.secop.gov.co/Public/Tendering/OpportunityDetail/Index?noticeUID=CO1.NTC.3841069&isFromPublicArea=True&isModal=False | E47: Contratos de prestación de servicios profesionales y de apoyo a la gestión | F47: Contratación directa | G47: Prestación de servicios profesionales y de apoyo a la gestión, o para la ejecución de trabajos artísticos que sólo puedan encomendarse a determinadas personas naturales | H47: PRESTAR SUS SERVICIOS DE APOYO PARA DESARROLLAR ACTIVIDADES LOGÍSTICAS Y OPERATIVAS, EN LOS BIENES Y/O PREDIOS EN DONDE FUNCIONA LA ALCALDÍA LOCAL DE SUMAPAZ | I47: Inversión | J47: Un nuevo contrato social y ambiental para la Bogotá del Siglo XXI | K47: 56 | L47: =IF(ISERROR(VLOOKUP(K47,Proposito_programa!$C$2:$E$59,2,FALSE))," ",VLOOKUP(K47,Proposito_programa!$C$2:$E$59,2,FALSE)) -> Gestión pública efectiva | M47: =IF(ISERROR(VLOOKUP(K47,Proposito_programa!$C$2:$E$59,3,FALSE))," ",VLOOKUP(K47,Proposito_programa!$C$2:$E$59,3,FALSE)) -> Propósito 5: Construir Bogotá - Región con gobierno abierto, transparente y ciudadanía consciente | N47: 1693 | O47: 1 | P47: 80559448 | Q47: PEDRO ALFONSO CASTRO MORALES | R47: Persona Natural | W47: 29700000 | AA47: 29700000 | AB47: 27360000 | AC47: 2023-01-25 | AD47: 2023-01-27 | AE47: 2023-12-26 | AF47: 330 | AQ47: Terminado | AR47: 0.9212121212
A48: CPS-035-2023 | B48: 2023 | C48: FDRS-CD-033-2023 | D48: https://community.secop.gov.co/Public/Tendering/OpportunityDetail/Index?noticeUID=CO1.NTC.3841070&isFromPublicArea=True&isModal=False | E48: Contratos de prestación de servicios profesionales y de apoyo a la gestión | F48: Contratación directa | G48: Prestación de servicios profesionales y de apoyo a la gestión, o para la ejecución de trabajos artísticos que sólo puedan encomendarse a determinadas personas naturales | H48: PRESTAR LOS SERVICIOS PROFESIONALES AL ÁREA DE GESTIÓN DE DESARROLLO LOCAL BRINDANDO APOYO TÉCNICO EN LA PLANEACIÓN, EJECUCIÓN Y SEGUIMIENTO DEL PROYECTO DE INVERSIÓN DE CONSTRUCCIÓN DE SEDES. | I48: Inversión | J48: Un nuevo contrato social y ambiental para la Bogotá del Siglo XXI | K48: 56 | L48: =IF(ISERROR(VLOOKUP(K48,Proposito_programa!$C$2:$E$59,2,FALSE))," ",VLOOKUP(K48,Proposito_programa!$C$2:$E$59,2,FALSE)) -> Gestión pública efectiva | M48: =IF(ISERROR(VLOOKUP(K48,Proposito_programa!$C$2:$E$59,3,FALSE))," ",VLOOKUP(K48,Proposito_programa!$C$2:$E$59,3,FALSE)) -> Propósito 5: Construir Bogotá - Región con gobierno abierto, transparente y ciudadanía consciente | N48: 1693 | O48: 1 | P48: 1015443462 | Q48: JUAN SEBASTIAN JARAMILLO GAITAN | R48: Persona Natural | W48: 15000000 | AA48: 15000000 | AB48: 15000000 | AC48: 2023-01-25 | AD48: 2023-01-30 | AE48: 2023-04-29 | AF48: 90 | AQ48: Terminado | AR48: 1
A49: CPS-036-2023 | B49: 2023 | C49: FDRS-CD-034-2023 | D49: https://community.secop.gov.co/Public/Tendering/OpportunityDetail/Index?noticeUID=CO1.NTC.3843060&isFromPublicArea=True&isModal=False | E49: Contratos de prestación de servicios profesionales y de apoyo a la gestión | F49: Contratación directa | G49: Prestación de servicios profesionales y de apoyo a la gestión, o para la ejecución de trabajos artísticos que sólo puedan encomendarse a determinadas personas naturales | H49: PRESTAR LOS SERVICIOS PROFESIONALES PARA APOYAR EL DESARROLLO DE LOS PROYECTOS DE MITIGACIÓN Y GESTIÓN DEL RIESGO Y ADAPTACIÓN AL CAMBIO CLIMÁTICO PARA LA CONSERVACIÓN DEL MEDIO AMBIENTE Y LOS RECURSOS NATURALES RENOVABLES EXISTENTES EN LA LOCALIDAD DE SUMAPAZ | I49: Inversión | J49: Un nuevo contrato social y ambiental para la Bogotá del Siglo XXI | K49: 30 | L49: =IF(ISERROR(VLOOKUP(K49,Proposito_programa!$C$2:$E$59,2,FALSE))," ",VLOOKUP(K49,Proposito_programa!$C$2:$E$59,2,FALSE)) -> Eficiencia en la atención de emergencias | M49: =IF(ISERROR(VLOOKUP(K49,Proposito_programa!$C$2:$E$59,3,FALSE))," ",VLOOKUP(K49,Proposito_programa!$C$2:$E$59,3,FALSE)) -> Propósito 2 : Cambiar Nuestros Hábitos de Vida para Reverdecer a Bogotá y Adaptarnos y Mitigar la Crisis Climática | N49: 1652 | O49: 1 | P49: 1032656281 | Q49: WILMAR GILDARDO TORRES TORRES | R49: Persona Natural | W49: 66000000 | Y49: 1 | Z49: 6000000 | AA49: 72000000 | AB49: 60000000 | AC49: 2023-01-25 | AD49: 2023-02-01 | AE49: 2024-01-31 | AF49: 330 | AG49: 1 | AH49: 30 | AQ49: En ejecución | AR49: 0.8333333333
A50: CPS-037-2023 | B50: 2023 | C50: FDRS-CD-035-2023 | D50: https://community.secop.gov.co/Public/Tendering/OpportunityDetail/Index?noticeUID=CO1.NTC.3843914&isFromPublicArea=True&isModal=False | E50: Contratos de prestación de servicios profesionales y de apoyo a la gestión | F50: Contratación directa | G50: Prestación de servicios profesionales y de apoyo a la gestión, o para la ejecución de trabajos artísticos que sólo puedan encomendarse a determinadas personas naturales | H50: PRESTAR SUS SERVICIOS COMO DOCENTE DEPORTIVO TÉCNICO PARA LA FORMACIÓN INTEGRAL Y DEPORTIVA DE LAS NIÑAS, NIÑOS Y ADOLESCENTES Y APOYAR LOS TEMAS DE RECREACIÓN Y DEPORTE QUE EJECUTE EL FONDO DE DESARROLLO DE SUMAPAZ | I50: Inversión | J50: Un nuevo contrato social y ambiental para la Bogotá del Siglo XXI | K50: 20 | L50: =IF(ISERROR(VLOOKUP(K50,Proposito_programa!$C$2:$E$59,2,FALSE))," ",VLOOKUP(K50,Proposito_programa!$C$2:$E$59,2,FALSE)) -> Bogotá, referente en cultura, deporte, recreación y actividad física, con parques para el desarrollo y la salud | M50: =IF(ISERROR(VLOOKUP(K50,Proposito_programa!$C$2:$E$59,3,FALSE))," ",VLOOKUP(K50,Proposito_programa!$C$2:$E$59,3,FALSE)) -> Propósito 1: Hacer un nuevo contrato social para incrementar la inclusión social, productiva y política | N50: 1590 | O50: 1 | P50: 1072896239 | Q50: NORBEY DANILO MARTINEZ MORALES | R50: Persona Natural | W50: 50600000 | AA50: =+W50+X50+Z50 -> 50600000 | AB50: 46000000 | AC50: 2023-01-25 | AD50: 2023-02-01 | AE50: 2023-12-31 | AF50: 330 | AQ50: Terminado | AR50: 0.9090909091
A51: CPS-038-2023 | B51: 2023 | C51: FDRS-CD-036-2023 | D51: https://community.secop.gov.co/Public/Tendering/OpportunityDetail/Index?noticeUID=CO1.NTC.3844070&isFromPublicArea=True&isModal=False | E51: Contratos de prestación de servicios profesionales y de apoyo a la gestión | F51: Contratación directa | G51: Prestación de servicios profesionales y de apoyo a la gestión, o para la ejecución de trabajos artísticos que sólo puedan encomendarse a determinadas personas naturales | H51: PRESTAR LOS SERVICIOS PROFESIONALES PARA APOYAR LOS PROCESOS ADMINISTRATIVOS, CONTABLES Y FINANCIEROS DEL ÁREA DE GESTIÓN DE DESARROLLO LOCAL, DE LA ALCALDÍA LOCAL DE SUMAPAZ. PROYECTO | I51: Inversión | J51: Un nuevo contrato social y ambiental para la Bogotá del Siglo XXI | K51: 57 | L51: =IF(ISERROR(VLOOKUP(K51,Proposito_programa!$C$2:$E$59,2,FALSE))," ",VLOOKUP(K51,Proposito_programa!$C$2:$E$59,2,FALSE)) -> Gestión pública local | M51: =IF(ISERROR(VLOOKUP(K51,Proposito_programa!$C$2:$E$59,3,FALSE))," ",VLOOKUP(K51,Proposito_programa!$C$2:$E$59,3,FALSE)) -> Propósito 5: Construir Bogotá - Región con gobierno abierto, transparente y ciudadanía consciente | N51: 1696 | O51: 1 | P51: 1056802356 | Q51: MARICELA GIL RAMIREZ | R51: Persona Natural | W51: 13800000 | AA51: 13800000 | AB51: 13800000 | AC51: 2023-01-26 | AD51: 2023-02-01 | AE51: 2023-04-29 | AF51: 90 | AQ51: Terminado | AR51: 1
A52: CPS-039-2023 | B52: 2023 | C52: FDRS-CD-037-2023 | D52: https://community.secop.gov.co/Public/Tendering/OpportunityDetail/Index?noticeUID=CO1.NTC.3850124&isFromPublicArea=True&isModal=False | E52: Contratos de prestación de servicios profesionales y de apoyo a la gestión | F52: Contratación directa | G52: Prestación de servicios profesionales y de apoyo a la gestión, o para la ejecución de trabajos artísticos que sólo puedan encomendarse a determinadas personas naturales | H52: PRESTAR LOS SERVICIOS TÉCNICOS PARA APOYAR LAS RESPUESTAS A LAS SOLICITUDES RADICADAS POR ENTES DE CONTROL, CONCEJO DE BOGOTÁ RELACIONADAS CON LA INFRAESTRUCTURA VIAL | I52: Inversión | J52: Un nuevo contrato social y ambiental para la Bogotá del Siglo XXI | K52: 49 | L52: =IF(ISERROR(VLOOKUP(K52,Proposito_programa!$C$2:$E$59,2,FALSE))," ",VLOOKUP(K52,Proposito_programa!$C$2:$E$59,2,FALSE)) -> Movilidad segura, sostenible y accesible | M52: =IF(ISERROR(VLOOKUP(K52,Proposito_programa!$C$2:$E$59,3,FALSE))," ",VLOOKUP(K52,Proposito_programa!$C$2:$E$59,3,FALSE)) -> Propósito 4: Hacer de Bogotá Región un modelo de movilidad multimodal, incluyente y sostenible | N52: 1688 | O52: 1 | P52: 1017258647 | Q52: MICHAEL STEVEN RENGIFO MAHECHA | R52: Persona Natural | W52: 33000000 | Y52: 1 | Z52: 3000000 | AA52: 36000000 | AB52: 30000000 | AC52: 2023-01-26 | AD52: 2023-02-01 | AE52: 2024-01-31 | AF52: 330 | AG52: 1 | AH52: 30 | AQ52: En ejecución | AR52: 0.8333333333
A53: CPS-040-2023 | B53: 2023 | C53: FDRS-CD-038-2023 | D53: https://community.secop.gov.co/Public/Tendering/OpportunityDetail/Index?noticeUID=CO1.NTC.3849854&isFromPublicArea=True&isModal=False | E53: Contratos de prestación de servicios profesionales y de apoyo a la gestión | F53: Contratación directa | G53: Prestación de servicios profesionales y de apoyo a la gestión, o para la ejecución de trabajos artísticos que sólo puedan encomendarse a determinadas personas naturales | H53: PRESTAR LOS SERVICIOS PARA OPERAR Y/O MANEJAR UN TRACTOCAMIÓN DE PROPIEDAD O TENENCIA DEL FONDO DE DESARROLLO LOCAL DE SUMAPAZ | I53: Inversión | J53: Un nuevo contrato social y ambiental para la Bogotá del Siglo XXI | K53: 49 | L53: =IF(ISERROR(VLOOKUP(K53,Proposito_programa!$C$2:$E$59,2,FALSE))," ",VLOOKUP(K53,Proposito_programa!$C$2:$E$59,2,FALSE)) -> Movilidad segura, sostenible y accesible | M53: =IF(ISERROR(VLOOKUP(K53,Proposito_programa!$C$2:$E$59,3,FALSE))," ",VLOOKUP(K53,Proposito_programa!$C$2:$E$59,3,FALSE)) -> Propósito 4: Hacer de Bogotá Región un modelo de movilidad multimodal, incluyente y sostenible | N53: 1688 | O53: 1 | P53: 79819241 | Q53: CARLOS JULIO PALACIOS RAMIREZ | R53: Persona Natural | W53: 10800000 | AA53: 10800000 | AB53: 10260000 | AC53: 2023-01-26 | AD53: 2023-02-07 | AE53: 2023-06-06 | AF53: 120 | AQ53: Terminado | AR53: 0.95
A54: CPS-041-2023 | B54: 2023 | C54: FDRS-CD-039-2023 | D54: https://community.secop.gov.co/Public/Tendering/OpportunityDetail/Index?noticeUID=CO1.NTC.3849373&isFromPublicArea=True&isModal=False | E54: Contratos de prestación de servicios profesionales y de apoyo a la gestión | F54: Contratación directa | G54: Prestación de servicios profesionales y de apoyo a la gestión, o para la ejecución de trabajos artísticos que sólo puedan encomendarse a determinadas personas naturales | H54: PRESTAR SUS SERVICIOS PROFESIONALES COMO ADMINISTRADOR DE LA RED DE LA ALCALDÍA LOCAL DE SUMAPAZ Y REALIZAR LA ACTUALIZACIÓN DE LOS DATOS EN LOS DIFERENTES SISTEMAS DE INFORMACIÓN | I54: Inversión | J54: Un nuevo contrato social y ambiental para la Bogotá del Siglo XXI | K54: 57 | L54: =IF(ISERROR(VLOOKUP(K54,Proposito_programa!$C$2:$E$59,2,FALSE))," ",VLOOKUP(K54,Proposito_programa!$C$2:$E$59,2,FALSE)) -> Gestión pública local | M54: =IF(ISERROR(VLOOKUP(K54,Proposito_programa!$C$2:$E$59,3,FALSE))," ",VLOOKUP(K54,Proposito_programa!$C$2:$E$59,3,FALSE)) -> Propósito 5: Construir Bogotá - Región con gobierno abierto, transparente y ciudadanía consciente | N54: 1696 | O54: 1 | P54: 72311499 | Q54: ALONSO RAFAEL OCAMPO ARRIETA | R54: Persona Natural | W54: 77000000 | Y54: 1 | Z54: 14000000 | AA54: 91000000 | AB54: 70000000 | AC54: 2023-01-26 | AD54: 2023-02-01 | AE54: 2024-02-29 | AF54: 330 | AG54: 1 | AH54: 60 | AQ54: En ejecución | AR54: 0.7692307692
A55: CPS-042-2023 | B55: 2023 | C55: FDRS-CD-025-2023 | D55: https://community.secop.gov.co/Public/Tendering/OpportunityDetail/Index?noticeUID=CO1.NTC.3852124&isFromPublicArea=True&isModal=False | E55: Contratos de prestación de servicios profesionales y de apoyo a la gestión | F55: Contratación directa | G55: Prestación de servicios profesionales y de apoyo a la gestión, o para la ejecución de trabajos artísticos que sólo puedan encomendarse a determinadas personas naturales | H55: PRESTAR LOS SERVICIOS COMO CONDUCTOR DE VOLQUETAS (VEHÍCULOS PESADOS) DE PROPIEDAD O TENENCIA DEL FONDO DE DESARROLLO LOCAL DE SUMAPAZ | I55: Inversión | J55: Un nuevo contrato social y ambiental para la Bogotá del Siglo XXI | K55: 49 | L55: =IF(ISERROR(VLOOKUP(K55,Proposito_programa!$C$2:$E$59,2,FALSE))," ",VLOOKUP(K55,Proposito_programa!$C$2:$E$59,2,FALSE)) -> Movilidad segura, sostenible y accesible | M55: =IF(ISERROR(VLOOKUP(K55,Proposito_programa!$C$2:$E$59,3,FALSE))," ",VLOOKUP(K55,Proposito_programa!$C$2:$E$59,3,FALSE)) -> Propósito 4: Hacer de Bogotá Región un modelo de movilidad multimodal, incluyente y sostenible | N55: 1688 | O55: 1 | P55: 80452901 | Q55: NILSON LOPEZ RAMIREZ | R55: Persona Natural | W55: 10800000 | AA55: 10800000 | AB55: 10800000 | AC55: 2023-01-26 | AD55: 2023-02-01 | AE55: 2023-05-30 | AF55: 120 | AQ55: Terminado | AR55: 1
A56: CPS-043-2023 | B56: 2023 | C56: FDRS-CD-025-2023 | D56: https://community.secop.gov.co/Public/Tendering/OpportunityDetail/Index?noticeUID=CO1.NTC.3852124&isFromPublicArea=True&isModal=False | E56: Contratos de prestación de servicios profesionales y de apoyo a la gestión | F56: Contratación directa | G56: Prestación de servicios profesionales y de apoyo a la gestión, o para la ejecución de trabajos artísticos que sólo puedan encomendarse a determinadas personas naturales | H56: PRESTAR LOS SERVICIOS COMO CONDUCTOR DE VOLQUETAS (VEHÍCULOS PESADOS) DE PROPIEDAD O TENENCIA DEL FONDO DE DESARROLLO LOCAL DE SUMAPAZ | I56: Inversión | J56: Un nuevo contrato social y ambiental para la Bogotá del Siglo XXI | K56: 49 | L56: =IF(ISERROR(VLOOKUP(K56,Proposito_programa!$C$2:$E$59,2,FALSE))," ",VLOOKUP(K56,Proposito_programa!$C$2:$E$59,2,FALSE)) -> Movilidad segura, sostenible y accesible | M56: =IF(ISERROR(VLOOKUP(K56,Proposito_programa!$C$2:$E$59,3,FALSE))," ",VLOOKUP(K56,Proposito_programa!$C$2:$E$59,3,FALSE)) -> Propósito 4: Hacer de Bogotá Región un modelo de movilidad multimodal, incluyente y sostenible | N56: 1688 | O56: 1 | P56: 1032656045 | Q56: EDUARDO DIMATE RICO | R56: Persona Natural | W56: 10800000 | AA56: 10800000 | AB56: 10800000 | AC56: 2023-01-26 | AD56: 2023-02-01 | AE56: 2023-05-30 | AF56: 120 | AQ56: Terminado | AR56: 1
A57: CPS-044-2023 | B57: 2023 | C57: FDRS-CD-040-2023 | D57: https://community.secop.gov.co/Public/Tendering/OpportunityDetail/Index?noticeUID=CO1.NTC.3847341&isFromPublicArea=True&isModal=False | E57: Contratos de prestación de servicios profesionales y de apoyo a la gestión | F57: Contratación directa | G57: Prestación de servicios profesionales y de apoyo a la gestión, o para la ejecución de trabajos artísticos que sólo puedan encomendarse a determinadas personas naturales | H57: PRESTAR LOS SERVICIOS PARA CONDUCIR Y/O MANEJAR Y/O OPERAR EL CARROTANQUE DE PROPIEDAD DEL FONDO DE DESARROLLO LOCAL DE SUMAPAZ | I57: Inversión | J57: Un nuevo contrato social y ambiental para la Bogotá del Siglo XXI | K57: 49 | L57: =IF(ISERROR(VLOOKUP(K57,Proposito_programa!$C$2:$E$59,2,FALSE))," ",VLOOKUP(K57,Proposito_programa!$C$2:$E$59,2,FALSE)) -> Movilidad segura, sostenible y accesible | M57: =IF(ISERROR(VLOOKUP(K57,Proposito_programa!$C$2:$E$59,3,FALSE))," ",VLOOKUP(K57,Proposito_programa!$C$2:$E$59,3,FALSE)) -> Propósito 4: Hacer de Bogotá Región un modelo de movilidad multimodal, incluyente y sostenible | N57: 1688 | O57: 1 | P57: 1032656406 | Q57: FABIAN LEONARDO PULIDO MORENO | R57: Persona Natural | W57: 10800000 | AA57: 10800000 | AB57: 10800000 | AC57: 2023-01-27 | AD57: 2023-02-06 | AE57: 2023-06-05 | AF57: 120 | AQ57: Terminado | AR57: 1
A58: CPS-045-2023 | B58: 2023 | C58: FDRS-CD-025-2023 | D58: https://community.secop.gov.co/Public/Tendering/OpportunityDetail/Index?noticeUID=CO1.NTC.3852124&isFromPublicArea=True&isModal=False | E58: Contratos de prestación de servicios profesionales y de apoyo a la gestión | F58: Contratación directa | G58: Prestación de servicios profesionales y de apoyo a la gestión, o para la ejecución de trabajos artísticos que sólo puedan encomendarse a determinadas personas naturales | H58: PRESTAR LOS SERVICIOS COMO CONDUCTOR DE VOLQUETAS (VEHÍCULOS PESADOS) DE PROPIEDAD O TENENCIA DEL FONDO DE DESARROLLO LOCAL DE SUMAPAZ | I58: Inversión | J58: Un nuevo contrato social y ambiental para la Bogotá del Siglo XXI | K58: 49 | L58: =IF(ISERROR(VLOOKUP(K58,Proposito_programa!$C$2:$E$59,2,FALSE))," ",VLOOKUP(K58,Proposito_programa!$C$2:$E$59,2,FALSE)) -> Movilidad segura, sostenible y accesible | M58: =IF(ISERROR(VLOOKUP(K58,Proposito_programa!$C$2:$E$59,3,FALSE))," ",VLOOKUP(K58,Proposito_programa!$C$2:$E$59,3,FALSE)) -> Propósito 4: Hacer de Bogotá Región un modelo de movilidad multimodal, incluyente y sostenible | N58: 1688 | O58: 1 | P58: 80747512 | Q58: HERNAN DARIO HERRERA MORALES | R58: Persona Natural | W58: 10800000 | AA58: 10800000 | AB58: 10800000 | AC58: 2023-01-26 | AD58: 2023-02-01 | AE58: 2023-05-30 | AF58: 120 | AQ58: Terminado | AR58: 1
A59: CPS-046-2023 | B59: 2023 | C59: FDRS-CD-041-2023 | D59: https://community.secop.gov.co/Public/Tendering/OpportunityDetail/Index?noticeUID=CO1.NTC.3852899&isFromPublicArea=True&isModal=False | E59: Contratos de prestación de servicios profesionales y de apoyo a la gestión | F59: Contratación directa | G59: Prestación de servicios profesionales y de apoyo a la gestión, o para la ejecución de trabajos artísticos que sólo puedan encomendarse a determinadas personas naturales | H59: PRESTAR LOS SERVICIOS PROFESIONALES PARA EL DESARROLLO DE ACCIONES DE PLANEACIÓN, SEGUIMIENTO, EJECUCIÓN Y ACOMPAÑAMIENTO DE LOS PROCESOS Y ACTIVIDADES RELACIONADAS CON LOS ACUEDUCTOS VEREDALES QUE SE ADELANTEN POR EL FONDO DE DESARROLLO RURAL DE SUMAPAZ | I59: Inversión | J59: Un nuevo contrato social y ambiental para la Bogotá del Siglo XXI | K59: 37 | L59: =IF(ISERROR(VLOOKUP(K59,Proposito_programa!$C$2:$E$59,2,FALSE))," ",VLOOKUP(K59,Proposito_programa!$C$2:$E$59,2,FALSE)) -> Provisión y mejoramiento de servicios públicos | M59: =IF(ISERROR(VLOOKUP(K59,Proposito_programa!$C$2:$E$59,3,FALSE))," ",VLOOKUP(K59,Proposito_programa!$C$2:$E$59,3,FALSE)) -> Propósito 2 : Cambiar Nuestros Hábitos de Vida para Reverdecer a Bogotá y Adaptarnos y Mitigar la Crisis Climática | N59: 1668 | O59: 1 | P59: 52432694 | Q59: LUISA FERNANDA LOZANO GRACIA | R59: Persona Natural | W59: 66000000 | AA59: 66000000 | AB59: 60000000 | AC59: 2023-01-26 | AD59: 2023-02-01 | AE59: 2024-02-29 | AF59: 330 | AG59: 1 | AH59: 60 | AQ59: En ejecución | AR59: 0.9090909091
A60: CPS-046-2023 | B60: 2023 | C60: FDRS-CD-041-2023 | D60: https://community.secop.gov.co/Public/Tendering/OpportunityDetail/Index?noticeUID=CO1.NTC.3852899&isFromPublicArea=True&isModal=False | E60: Contratos de prestación de servicios profesionales y de apoyo a la gestión | F60: Contratación directa | G60: Prestación de servicios profesionales y de apoyo a la gestión, o para la ejecución de trabajos artísticos que sólo puedan encomendarse a determinadas personas naturales | H60: Adición y prorroga por 2 meses al contrato CPS-046-2023, Cuyo Objeto es, Prestar Los Servicios Profesionales Para El Desarrollo De Acciones De Planeación, Seguimiento, Ejecución Y Acompañamiento De Los Procesos Y Actividades Relacionadas Con Los Acueductos Veredales Que Se Adelanten Por El Fondo De Desarrollo Rural De Sumapaz. 1668. | I60: Inversión | J60: Un nuevo contrato social y ambiental para la Bogotá del Siglo XXI | K60: 49 | L60: =IF(ISERROR(VLOOKUP(K60,Proposito_programa!$C$2:$E$59,2,FALSE))," ",VLOOKUP(K60,Proposito_programa!$C$2:$E$59,2,FALSE)) -> Movilidad segura, sostenible y accesible | M60: =IF(ISERROR(VLOOKUP(K60,Proposito_programa!$C$2:$E$59,3,FALSE))," ",VLOOKUP(K60,Proposito_programa!$C$2:$E$59,3,FALSE)) -> Propósito 4: Hacer de Bogotá Región un modelo de movilidad multimodal, incluyente y sostenible | N60: 1688 | P60: 52432694 | Q60: LUISA FERNANDA LOZANO GRACIA | R60: Persona Natural | W60: 12000000 | AA60: 12000000 | AB60: 0 | AR60: 0
A61: CPS-047-2023 | B61: 2023 | C61: FDRS-CD-025-2023 | D61: https://community.secop.gov.co/Public/Tendering/OpportunityDetail/Index?noticeUID=CO1.NTC.3852124&isFromPublicArea=True&isModal=False | E61: Contratos de prestación de servicios profesionales y de apoyo a la gestión | F61: Contratación directa | G61: Prestación de servicios profesionales y de apoyo a la gestión, o para la ejecución de trabajos artísticos que sólo puedan encomendarse a determinadas personas naturales | H61: PRESTAR LOS SERVICIOS COMO CONDUCTOR DE VOLQUETAS (VEHÍCULOS PESADOS) DE PROPIEDAD O TENENCIA DEL FONDO DE DESARROLLO LOCAL DE SUMAPAZ | I61: Inversión | J61: Un nuevo contrato social y ambiental para la Bogotá del Siglo XXI | K61: 49 | L61: =IF(ISERROR(VLOOKUP(K61,Proposito_programa!$C$2:$E$59,2,FALSE))," ",VLOOKUP(K61,Proposito_programa!$C$2:$E$59,2,FALSE)) -> Movilidad segura, sostenible y accesible | M61: =IF(ISERROR(VLOOKUP(K61,Proposito_programa!$C$2:$E$59,3,FALSE))," ",VLOOKUP(K61,Proposito_programa!$C$2:$E$59,3,FALSE)) -> Propósito 4: Hacer de Bogotá Región un modelo de movilidad multimodal, incluyente y sostenible | N61: 1688 | O61: 1 | P61: 11448287 | Q61: WILLIAM ESNEIDER CHINGATE PULIDO | R61: Persona Natural | W61: 10800000 | AA61: 10800000 | AB61: 10800000 | AC61: 2023-01-26 | AD61: 2023-02-01 | AE61: 2023-05-30 | AF61: 120 | AQ61: Terminado | AR61: 1
A62: CPS-048-2023 | B62: 2023 | C62: FDRS-CD-042-2023 | D62: https://community.secop.gov.co/Public/Tendering/OpportunityDetail/Index?noticeUID=CO1.NTC.3854257&isFromPublicArea=True&isModal=False | E62: Contratos de prestación de servicios profesionales y de apoyo a la gestión | F62: Contratación directa | G62: Prestación de servicios profesionales y de apoyo a la gestión, o para la ejecución de trabajos artísticos que sólo puedan encomendarse a determinadas personas naturales | H62: PRESTAR LOS SERVICIOS PROFESIONALES JURÍDICOS PARA APOYAR LOS ASUNTOS PRECONTRACTUALES, CONTRACTUALES Y POST-CONTRACTUALES DEL ÁREA DE GESTIÓN DE DESARROLLO LOCAL DE LA ALCALDÍA LOCAL DE SUMAPAZ. | I62: Inversión | J62: Un nuevo contrato social y ambiental para la Bogotá del Siglo XXI | K62: 57 | L62: =IF(ISERROR(VLOOKUP(K62,Proposito_programa!$C$2:$E$59,2,FALSE))," ",VLOOKUP(K62,Proposito_programa!$C$2:$E$59,2,FALSE)) -> Gestión pública local | M62: =IF(ISERROR(VLOOKUP(K62,Proposito_programa!$C$2:$E$59,3,FALSE))," ",VLOOKUP(K62,Proposito_programa!$C$2:$E$59,3,FALSE)) -> Propósito 5: Construir Bogotá - Región con gobierno abierto, transparente y ciudadanía consciente | N62: 1696 | O62: 1 | P62: 51940675 | Q62: CLARA MARIA MOJICA CORTES | R62: Persona Natural | W62: 66000000 | AA62: 66000000 | AB62: 60000000 | AC62: 2023-01-27 | AD62: 2023-02-01 | AE62: 2024-01-29 | AF62: 330 | AQ62: En ejecución | AR62: 0.9090909091
A63: CPS-049-2023 | B63: 2023 | C63: FDRS-CD-043-2023 | D63: https://community.secop.gov.co/Public/Tendering/OpportunityDetail/Index?noticeUID=CO1.NTC.3855574&isFromPublicArea=True&isModal=False | E63: Contratos de prestación de servicios profesionales y de apoyo a la gestión | F63: Contratación directa | G63: Prestación de servicios profesionales y de apoyo a la gestión, o para la ejecución de trabajos artísticos que sólo puedan encomendarse a determinadas personas naturales | H63: PRESTAR LOS SERVICIOS PROFESIONALES EN PRODUCCIÓN AGRÍCOLA PARA EL FORTALECIMIENTO DEL SERVICIO DE ASISTENCIA TÉCNICA AGROPECUARIA EN LA LOCALIDAD DE SUMAPAZ | I63: Inversión | J63: Un nuevo contrato social y ambiental para la Bogotá del Siglo XXI | K63: 23 | L63: =IF(ISERROR(VLOOKUP(K63,Proposito_programa!$C$2:$E$59,2,FALSE))," ",VLOOKUP(K63,Proposito_programa!$C$2:$E$59,2,FALSE)) -> Bogotá rural | M63: =IF(ISERROR(VLOOKUP(K63,Proposito_programa!$C$2:$E$59,3,FALSE))," ",VLOOKUP(K63,Proposito_programa!$C$2:$E$59,3,FALSE)) -> Propósito 1: Hacer un nuevo contrato social para incrementar la inclusión social, productiva y política | N63: 1634 | O63: 1 | P63: 11256912 | Q63: YON FERNANDO VILLALOBOS | R63: Persona Natural | W63: 60500000 | AA63: 60500000 | AB63: 55000000 | AC63: 2023-01-26 | AD63: 2023-02-01 | AE63: 2023-12-31 | AF63: 330 | AQ63: Terminado | AR63: 0.9090909091
A64: CPS-050-2023 | B64: 2023 | C64: FDRS-CD-043-2023 | D64: https://community.secop.gov.co/Public/Tendering/OpportunityDetail/Index?noticeUID=CO1.NTC.3855574&isFromPublicArea=True&isModal=False | E64: Contratos de prestación de servicios profesionales y de apoyo a la gestión | F64: Contratación directa | G64: Prestación de servicios profesionales y de apoyo a la gestión, o para la ejecución de trabajos artísticos que sólo puedan encomendarse a determinadas personas naturales | H64: PRESTAR LOS SERVICIOS PROFESIONALES EN PRODUCCIÓN AGRÍCOLA PARA EL FORTALECIMIENTO DEL SERVICIO DE ASISTENCIA TÉCNICA AGROPECUARIA EN LA LOCALIDAD DE SUMAPAZ | I64: Inversión | J64: Un nuevo contrato social y ambiental para la Bogotá del Siglo XXI | K64: 23 | L64: =IF(ISERROR(VLOOKUP(K64,Proposito_programa!$C$2:$E$59,2,FALSE))," ",VLOOKUP(K64,Proposito_programa!$C$2:$E$59,2,FALSE)) -> Bogotá rural | M64: =IF(ISERROR(VLOOKUP(K64,Proposito_programa!$C$2:$E$59,3,FALSE))," ",VLOOKUP(K64,Proposito_programa!$C$2:$E$59,3,FALSE)) -> Propósito 1: Hacer un nuevo contrato social para incrementar la inclusión social, productiva y política | N64: 1634 | O64: 1 | P64: 1069751551 | Q64: KEILY MILENA GONZÁLEZ SUSA | R64: Persona Natural | W64: 60500000 | Y64: 1 | Z64: 5500000 | AA64: 66000000 | AB64: 55000000 | AC64: 2023-01-26 | AD64: 2023-02-01 | AE64: 2024-01-31 | AF64: 330 | AG64: 1 | AH64: 30 | AQ64: En ejecución | AR64: 0.8333333333
A65: CPS-051-2023 | B65: 2023 | C65: FDRS-CD-044-2023 | D65: https://community.secop.gov.co/Public/Tendering/OpportunityDetail/Index?noticeUID=CO1.NTC.3853749&isFromPublicArea=True&isModal=False | E65: Contratos de prestación de servicios profesionales y de apoyo a la gestión | F65: Contratación directa | G65: Prestación de servicios profesionales y de apoyo a la gestión, o para la ejecución de trabajos artísticos que sólo puedan encomendarse a determinadas personas naturales | H65: PRESTAR SUS SERVICIOS PROFESIONALES AL ÁREA DE GESTIÓN DE DESARROLLO LOCAL, PARA APO-YAR LA GESTIÓN DEL PROYECTO RECREACIÓN Y DEPORTE DE LA ALCALDÍA LOCAL DE SUMAPAZ. | I65: Inversión | J65: Un nuevo contrato social y ambiental para la Bogotá del Siglo XXI | K65: 20 | L65: =IF(ISERROR(VLOOKUP(K65,Proposito_programa!$C$2:$E$59,2,FALSE))," ",VLOOKUP(K65,Proposito_programa!$C$2:$E$59,2,FALSE)) -> Bogotá, referente en cultura, deporte, recreación y actividad física, con parques para el desarrollo y la salud | M65: =IF(ISERROR(VLOOKUP(K65,Proposito_programa!$C$2:$E$59,3,FALSE))," ",VLOOKUP(K65,Proposito_programa!$C$2:$E$59,3,FALSE)) -> Propósito 1: Hacer un nuevo contrato social para incrementar la inclusión social, productiva y política | N65: 1590 | O65: 1 | P65: 1014282505 | Q65: ADRIAN FELIPE PINZON MARTINEZ | R65: Persona Natural | W65: 50600000 | Y65: 1 | Z65: 9200000 | AA65: 59800000 | AB65: 45693333 | AC65: 2023-01-30 | AD65: 2023-02-03 | AE65: 2024-03-02 | AF65: 330 | AG65: 1 | AH65: 60 | AQ65: En ejecución | AR65: 0.7641025585
A66: CPS-052-2023 | B66: 2023 | C66: FDRS-CD-025-2023 | D66: https://community.secop.gov.co/Public/Tendering/OpportunityDetail/Index?noticeUID=CO1.NTC.3852124&isFromPublicArea=True&isModal=False | E66: Contratos de prestación de servicios profesionales y de apoyo a la gestión | F66: Contratación directa | G66: Prestación de servicios profesionales y de apoyo a la gestión, o para la ejecución de trabajos artísticos que sólo puedan encomendarse a determinadas personas naturales | H66: PRESTAR LOS SERVICIOS COMO CONDUCTOR DE VOLQUETAS (VEHÍCULOS PESADOS) DE PROPIEDAD O TENENCIA DEL FONDO DE DESARROLLO LOCAL DE SUMAPAZ | I66: Inversión | J66: Un nuevo contrato social y ambiental para la Bogotá del Siglo XXI | K66: 49 | L66: =IF(ISERROR(VLOOKUP(K66,Proposito_programa!$C$2:$E$59,2,FALSE))," ",VLOOKUP(K66,Proposito_programa!$C$2:$E$59,2,FALSE)) -> Movilidad segura, sostenible y accesible | M66: =IF(ISERROR(VLOOKUP(K66,Proposito_programa!$C$2:$E$59,3,FALSE))," ",VLOOKUP(K66,Proposito_programa!$C$2:$E$59,3,FALSE)) -> Propósito 4: Hacer de Bogotá Región un modelo de movilidad multimodal, incluyente y sostenible | N66: 1688 | O66: 1 | P66: 1069230738 | Q66: CAMILO ANDRES SUSA CIFUENTES | R66: Persona Natural | W66: 10800000 | AA66: 10800000 | AB66: 10800000 | AC66: 2023-01-26 | AD66: 2023-02-01 | AE66: 2023-05-30 | AF66: 330 | AQ66: Terminado | AR66: 1
A67: CPS-053-2023 | B67: 2023 | C67: FDRS-CD-045-2023 | D67: https://community.secop.gov.co/Public/Tendering/OpportunityDetail/Index?noticeUID=CO1.NTC.3857611&isFromPublicArea=True&isModal=False | E67: Contratos de prestación de servicios profesionales y de apoyo a la gestión | F67: Contratación directa | G67: Prestación de servicios profesionales y de apoyo a la gestión, o para la ejecución de trabajos artísticos que sólo puedan encomendarse a determinadas personas naturales | H67: PRESTAR LOS SERVICIOS PROFESIONALES DE ACOMPAÑAMIENTO PSICOSOCIAL PARA APOYAR LA EJECUCIÓN DE LA META ATENDER A 200 PERSONAS EN ESTRATEGIAS DE ACCESO A LA JUSTICIA INTEGRAL EN LA LOCALIDAD DE SUMAPAZ | I67: Inversión | J67: Un nuevo contrato social y ambiental para la Bogotá del Siglo XXI | K67: 48 | L67: =IF(ISERROR(VLOOKUP(K67,Proposito_programa!$C$2:$E$59,2,FALSE))," ",VLOOKUP(K67,Proposito_programa!$C$2:$E$59,2,FALSE)) -> Plataforma institucional para la seguridad y justicia | M67: =IF(ISERROR(VLOOKUP(K67,Proposito_programa!$C$2:$E$59,3,FALSE))," ",VLOOKUP(K67,Proposito_programa!$C$2:$E$59,3,FALSE)) -> Propósito 3: Inspirar confianza y legitimidad para vivir sin miedo y ser epicentro de cultura ciudadana, paz y reconciliación | N67: 1683 | O67: 1 | P67: 1016043437 | Q67: VERONICA LUCIA CASTRO CHIGUAZUQUE | R67: Persona Natural | W67: 62700000 | X67: -51300000 | AA67: =+W67+X67+Z67 -> 11400000 | AB67: 11400000 | AC67: 2023-01-26 | AD67: 2023-02-01 | AE67: 2023-03-31 | AF67: 330 | AQ67: Terminado | AR67: 1
A68: CPS-054-2023 | B68: 2023 | C68: FDRS-CD-046-2023 | D68: https://community.secop.gov.co/Public/Tendering/OpportunityDetail/Index?noticeUID=CO1.NTC.3857521&isFromPublicArea=True&isModal=False | E68: Contratos de prestación de servicios profesionales y de apoyo a la gestión | F68: Contratación directa | G68: Prestación de servicios profesionales y de apoyo a la gestión, o para la ejecución de trabajos artísticos que sólo puedan encomendarse a determinadas personas naturales | H68: PRESTAR LOS SERVICIOS PROFESIONALES DE APOYO AL ÁREA DE GESTIÓN DE DESARROLLO LOCAL, DE LA ALCALDÍA LOCAL DE SUMAPAZ, ASOCIADOS AL FORTALECIMIENTO DE LA CULTURA CIUDADANA Y SU INSTITUCIONALIDAD QUE EJECUTA EL FONDO DE DESARROLLO RURAL DE SUMAPAZ | I68: Inversión | J68: Un nuevo contrato social y ambiental para la Bogotá del Siglo XXI | K68: 55 | L68: =IF(ISERROR(VLOOKUP(K68,Proposito_programa!$C$2:$E$59,2,FALSE))," ",VLOOKUP(K68,Proposito_programa!$C$2:$E$59,2,FALSE)) -> Fortalecimiento de cultura ciudadana y su institucionalidad | M68: =IF(ISERROR(VLOOKUP(K68,Proposito_programa!$C$2:$E$59,3,FALSE))," ",VLOOKUP(K68,Proposito_programa!$C$2:$E$59,3,FALSE)) -> Propósito 5: Construir Bogotá - Región con gobierno abierto, transparente y ciudadanía consciente | N68: 1691 | O68: 1 | P68: 1013642097 | Q68: CRISTIAN ANDRES TORRES MALAMBO | R68: Persona Natural | W68: 50600000 | Y68: 1 | Z68: 9200000 | AA68: 59800000 | AB68: 46000000 | AC68: 2023-01-27 | AD68: 2023-02-01 | AE68: 2024-02-29 | AF68: 330 | AG68: 1 | AH68: 60 | AQ68: En ejecución | AR68: 0.7692307692
A69: CPS-055-2023 | B69: 2023 | C69: FDRS-CD-023-2023 | D69: https://community.secop.gov.co/Public/Tendering/OpportunityDetail/Index?noticeUID=CO1.NTC.3855805&isFromPublicArea=True&isModal=False | E69: Contratos de prestación de servicios profesionales y de apoyo a la gestión | F69: Contratación directa | G69: Prestación de servicios profesionales y de apoyo a la gestión, o para la ejecución de trabajos artísticos que sólo puedan encomendarse a determinadas personas naturales | H69: PRESTAR LOS SERVICIOS DE APOYO ADMINISTRATIVO EN LOS PROCESOS QUE SE ADELANTAN EN EL ALMACÉN DE LA ALCALDÍA LOCAL DE SUMAPAZ | I69: Inversión | J69: Un nuevo contrato social y ambiental para la Bogotá del Siglo XXI | K69: 57 | L69: =IF(ISERROR(VLOOKUP(K69,Proposito_programa!$C$2:$E$59,2,FALSE))," ",VLOOKUP(K69,Proposito_programa!$C$2:$E$59,2,FALSE)) -> Gestión pública local | M69: =IF(ISERROR(VLOOKUP(K69,Proposito_programa!$C$2:$E$59,3,FALSE))," ",VLOOKUP(K69,Proposito_programa!$C$2:$E$59,3,FALSE)) -> Propósito 5: Construir Bogotá - Región con gobierno abierto, transparente y ciudadanía consciente | N69: 1696 | O69: 1 | P69: 1031133957 | Q69: ABRAHAM EDUARDO ACOSTA DIAZ | R69: Persona Natural | W69: 29700000 | Y69: 1 | Z69: 5400000 | AA69: 35100000 | AB69: 26370000 | AC69: 2023-01-26 | AD69: 2023-02-08 | AE69: 2024-03-07 | AF69: 330 | AG69: 1 | AH69: 60 | AQ69: En ejecución | AR69: 0.7512820513
A70: CPS-056-2023 | B70: 2023 | C70: FDRS-CD-025-2023 | D70: https://community.secop.gov.co/Public/Tendering/OpportunityDetail/Index?noticeUID=CO1.NTC.3852124&isFromPublicArea=True&isModal=False | E70: Contratos de prestación de servicios profesionales y de apoyo a la gestión | F70: Contratación directa | G70: Prestación de servicios profesionales y de apoyo a la gestión, o para la ejecución de trabajos artísticos que sólo puedan encomendarse a determinadas personas naturales | H70: PRESTAR LOS SERVICIOS COMO CONDUCTOR DE VOLQUETAS (VEHÍCULOS PESADOS) DE PROPIEDAD O TENENCIA DEL FONDO DE DESARROLLO LOCAL DE SUMAPAZ | I70: Inversión | J70: Un nuevo contrato social y ambiental para la Bogotá del Siglo XXI | K70: 49 | L70: =IF(ISERROR(VLOOKUP(K70,Proposito_programa!$C$2:$E$59,2,FALSE))," ",VLOOKUP(K70,Proposito_programa!$C$2:$E$59,2,FALSE)) -> Movilidad segura, sostenible y accesible | M70: =IF(ISERROR(VLOOKUP(K70,Proposito_programa!$C$2:$E$59,3,FALSE))," ",VLOOKUP(K70,Proposito_programa!$C$2:$E$59,3,FALSE)) -> Propósito 4: Hacer de Bogotá Región un modelo de movilidad multimodal, incluyente y sostenible | N70: 1688 | O70: 1 | P70: 80877733 | Q70: HILBER VERGARA ROBAYO | R70: Persona Natural | W70: 10800000 | AA70: 10800000 | AB70: 10800000 | AC70: 2023-01-26 | AD70: 2023-02-01 | AE70: 2023-05-30 | AF70: 120 | AQ70: Terminado | AR70: 1
A71: CPS-057-2023 | B71: 2023 | C71: FDRS-CD-047-2023 | D71: https://community.secop.gov.co/Public/Tendering/OpportunityDetail/Index?noticeUID=CO1.NTC.3861685&isFromPublicArea=True&isModal=False | E71: Contratos de prestación de servicios profesionales y de apoyo a la gestión | F71: Contratación directa | G71: Prestación de servicios profesionales y de apoyo a la gestión, o para la ejecución de trabajos artísticos que sólo puedan encomendarse a determinadas personas naturales | H71: PRESTAR LOS SERVICIOS PROFESIONALES AL ÁREA DE GESTIÓN DE DESARROLLO LOCAL PARA APOYAR LA PLANEACIÓN, EJECUCIÓN Y SEGUIMIENTO A LOS PROYECTOS DE INVERSIÓN DE INFRAESTRUCTURA VIAL Y ACTIVIDADES DESIGNADAS POR EL DESPACHO DE LA ALCALDÍA LOCAL DE SUMAPAZ | I71: Inversión | J71: Un nuevo contrato social y ambiental para la Bogotá del Siglo XXI | K71: 49 | L71: =IF(ISERROR(VLOOKUP(K71,Proposito_programa!$C$2:$E$59,2,FALSE))," ",VLOOKUP(K71,Proposito_programa!$C$2:$E$59,2,FALSE)) -> Movilidad segura, sostenible y accesible | M71: =IF(ISERROR(VLOOKUP(K71,Proposito_programa!$C$2:$E$59,3,FALSE))," ",VLOOKUP(K71,Proposito_programa!$C$2:$E$59,3,FALSE)) -> Propósito 4: Hacer de Bogotá Región un modelo de movilidad multimodal, incluyente y sostenible | N71: 1688 | O71: 1 | P71: 1077860558 | Q71: JOSE DAVID DONOSO TOVAR | R71: Persona Natural | W71: 71500000 | Y71: 1 | Z71: 13000000 | AA71: 84500000 | AB71: 65000000 | AC71: 2023-01-30 | AD71: 2023-01-31 | AE71: 2024-02-28 | AF71: 330 | AG71: 1 | AH71: 60 | AQ71: En ejecución | AR71: 0.7692307692
A72: CPS-058-2023 | B72: 2023 | C72: FDRS-CD-048-2023 | D72: https://community.secop.gov.co/Public/Tendering/OpportunityDetail/Index?noticeUID=CO1.NTC.3865784&isFromPublicArea=True&isModal=False | E72: Contratos de prestación de servicios profesionales y de apoyo a la gestión | F72: Contratación directa | G72: Prestación de servicios profesionales y de apoyo a la gestión, o para la ejecución de trabajos artísticos que sólo puedan encomendarse a determinadas personas naturales | H72: PRESTAR SUS SERVICIOS PROFESIONALES AL ÁREA DE GESTIÓN DE DESARROLLO LOCAL PARA APOYAR LA PLANEACIÓN, EJECUCIÓN Y SEGUIMIENTO A LOS PROYECTOS DE INFRAESTRUCTURA Y PUENTES. | I72: Inversión | J72: Un nuevo contrato social y ambiental para la Bogotá del Siglo XXI | K72: 49 | L72: =IF(ISERROR(VLOOKUP(K72,Proposito_programa!$C$2:$E$59,2,FALSE))," ",VLOOKUP(K72,Proposito_programa!$C$2:$E$59,2,FALSE)) -> Movilidad segura, sostenible y accesible | M72: =IF(ISERROR(VLOOKUP(K72,Proposito_programa!$C$2:$E$59,3,FALSE))," ",VLOOKUP(K72,Proposito_programa!$C$2:$E$59,3,FALSE)) -> Propósito 4: Hacer de Bogotá Región un modelo de movilidad multimodal, incluyente y sostenible | N72: 1688 | O72: 1 | P72: 53167430 | Q72: DIANA LORENA HILARION PLAZAS | R72: Persona Natural | W72: 71500000 | Y72: 1 | Z72: 12350000 | AA72: 83850000 | AB72: 64566667 | AC72: 2023-01-27 | AD72: 2023-02-03 | AE72: 2024-02-29 | AF72: 330 | AG72: 1 | AH72: 57 | AQ72: En ejecución | AR72: 0.7700258438
A73: CPS-060-2023 | B73: 2023 | C73: FDRS-CD-049-2023 | D73: https://community.secop.gov.co/Public/Tendering/OpportunityDetail/Index?noticeUID=CO1.NTC.3859019&isFromPublicArea=True&isModal=False | E73: Contratos de prestación de servicios profesionales y de apoyo a la gestión | F73: Contratación directa | G73: Prestación de servicios profesionales y de apoyo a la gestión, o para la ejecución de trabajos artísticos que sólo puedan encomendarse a determinadas personas naturales | H73: PRESTAR LOS SERVICIOS PROFESIONALES AL ÁREA DE GESTIÓN DE DESARROLLO LOCAL, PARA ADELANTAR LA PLANEACIÓN, ESTRUCTURACIÓN Y SEGUIMIENTO A LOS PROYECTOS DE INVERSIÓN Y GASTOS DE FUNCIONAMIENTO RELACIONADOS CON EL PARQUE AUTOMOTOR DEL FONDO DE DESARROLLO RURAL DE SUMAPAZ | I73: Inversión | J73: Un nuevo contrato social y ambiental para la Bogotá del Siglo XXI | K73: 49 | L73: =IF(ISERROR(VLOOKUP(K73,Proposito_programa!$C$2:$E$59,2,FALSE))," ",VLOOKUP(K73,Proposito_programa!$C$2:$E$59,2,FALSE)) -> Movilidad segura, sostenible y accesible | M73: =IF(ISERROR(VLOOKUP(K73,Proposito_programa!$C$2:$E$59,3,FALSE))," ",VLOOKUP(K73,Proposito_programa!$C$2:$E$59,3,FALSE)) -> Propósito 4: Hacer de Bogotá Región un modelo de movilidad multimodal, incluyente y sostenible | N73: 1688 | O73: 1 | P73: 79741567 | Q73: DUVAN EDUARDO DIAZ SANABRIA | R73: Persona Natural | W73: 21000000 | AA73: 21000000 | AB73: 0 | AC73: 2023-01-27 | AD73: 2023-02-01 | AE73: 2023-04-29 | AF73: 90 | AQ73: Terminado | AR73: 0
A74: CPS-061-2023 | B74: 2023 | C74: FDRS-CD-050-2023 | D74: https://community.secop.gov.co/Public/Tendering/OpportunityDetail/Index?noticeUID=CO1.NTC.3863205&isFromPublicArea=True&isModal=False | E74: Contratos de prestación de servicios profesionales y de apoyo a la gestión | F74: Contratación directa | G74: Prestación de servicios profesionales y de apoyo a la gestión, o para la ejecución de trabajos artísticos que sólo puedan encomendarse a determinadas personas naturales | H74: PRESTAR SUS SERVICIOS PROFESIONALES AL ÁREA DE GESTIÓN DE DESARROLLO LOCAL PARA APOYAR LA PLANEACIÓN, EJECUCIÓN Y SEGUIMIENTO A LOS PROYECTOS DE INVERSIÓN RELACIONADOS CON LA INFRAESTRUCTURA DE PUENTES | I74: Inversión | J74: Un nuevo contrato social y ambiental para la Bogotá del Siglo XXI | K74: 49 | L74: =IF(ISERROR(VLOOKUP(K74,Proposito_programa!$C$2:$E$59,2,FALSE))," ",VLOOKUP(K74,Proposito_programa!$C$2:$E$59,2,FALSE)) -> Movilidad segura, sostenible y accesible | M74: =IF(ISERROR(VLOOKUP(K74,Proposito_programa!$C$2:$E$59,3,FALSE))," ",VLOOKUP(K74,Proposito_programa!$C$2:$E$59,3,FALSE)) -> Propósito 4: Hacer de Bogotá Región un modelo de movilidad multimodal, incluyente y sostenible | N74: 1688 | O74: 1 | P74: 52388518 | Q74: JOHANA ELIZABETH TRIANA HENAO | R74: Persona Natural | W74: 66000000 | AA74: 66000000 | AB74: 60000000 | AC74: 2023-01-27 | AD74: 2023-02-01 | AE74: 2023-12-31 | AF74: 330 | AI74: 1110504427 | AJ74: JUAN DAVID PINILLA CASTAÑEDA | AK74: 09/05/2023 | AL74: 46400000 | AQ74: Terminado | AR74: 0.9090909091
A75: CPS-062-2023 | B75: 2023 | C75: FDRS-CD-051-2023 | D75: https://community.secop.gov.co/Public/Tendering/OpportunityDetail/Index?noticeUID=CO1.NTC.3866213&isFromPublicArea=True&isModal=False | E75: Contratos de prestación de servicios profesionales y de apoyo a la gestión | F75: Contratación directa | G75: Prestación de servicios profesionales y de apoyo a la gestión, o para la ejecución de trabajos artísticos que sólo puedan encomendarse a determinadas personas naturales | H75: PRESTAR SUS SERVICIOS TÉCNICOS PARA APOYAR LA GESTIÓN DE PRENSA Y COMUNICACIONES DE LA ALCALDÍA LOCAL, EN LA ELABORACIÓN DE PIEZAS GRÁFICAS DIGITALES PARA DIFUSIÓN DE LAS ACTIVIDADES QUE ADELANTA EL FDRS | I75: Inversión | J75: Un nuevo contrato social y ambiental para la Bogotá del Siglo XXI | K75: 57 | L75: =IF(ISERROR(VLOOKUP(K75,Proposito_programa!$C$2:$E$59,2,FALSE))," ",VLOOKUP(K75,Proposito_programa!$C$2:$E$59,2,FALSE)) -> Gestión pública local | M75: =IF(ISERROR(VLOOKUP(K75,Proposito_programa!$C$2:$E$59,3,FALSE))," ",VLOOKUP(K75,Proposito_programa!$C$2:$E$59,3,FALSE)) -> Propósito 5: Construir Bogotá - Región con gobierno abierto, transparente y ciudadanía consciente | N75: 1696 | O75: 1 | P75: 1013685604 | Q75: CAMILA ALEJANDRA JIMENEZ DURAN | R75: Persona Natural | W75: 34650000 | AA75: 34650000 | AB75: 31290000 | AC75: 2023-01-30 | AD75: 2023-02-03 | AE75: 2024-01-02 | AF75: 330 | AI75: 79733316 | AJ75: ROBERTO MARIÑO ECHEVERRY | AK75: 24/03/2023 | AL75: 29295000 | AQ75: En ejecución | AR75: 0.903030303
A76: CPS-063-2023 | B76: 2023 | C76: FDRS-CD-052-2023 | D76: https://community.secop.gov.co/Public/Tendering/OpportunityDetail/Index?noticeUID=CO1.NTC.3877386&isFromPublicArea=True&isModal=False | E76: Contratos de prestación de servicios profesionales y de apoyo a la gestión | F76: Contratación directa | G76: Prestación de servicios profesionales y de apoyo a la gestión, o para la ejecución de trabajos artísticos que sólo puedan encomendarse a determinadas personas naturales | H76: PRESTAR SUS SERVICIOS DE APOYO PARA DESARROLLAR ACTIVIDADES LOGÍSTICAS Y OPERATIVAS, EN LOS BIENES Y/O PREDIOS EN DONDE FUNCIONA LA ALCALDÍA LOCAL DE SUMAPAZ | I76: Inversión | J76: Un nuevo contrato social y ambiental para la Bogotá del Siglo XXI | K76: 56 | L76: =IF(ISERROR(VLOOKUP(K76,Proposito_programa!$C$2:$E$59,2,FALSE))," ",VLOOKUP(K76,Proposito_programa!$C$2:$E$59,2,FALSE)) -> Gestión pública efectiva | M76: =IF(ISERROR(VLOOKUP(K76,Proposito_programa!$C$2:$E$59,3,FALSE))," ",VLOOKUP(K76,Proposito_programa!$C$2:$E$59,3,FALSE)) -> Propósito 5: Construir Bogotá - Región con gobierno abierto, transparente y ciudadanía consciente | N76: 1693 | O76: 1 | P76: 79358856 | Q76: LEOPOLDO MARTINEZ MARTINEZ | R76: Persona Natural | W76: 29700000 | Y76: 1 | Z76: 5400000 | AA76: 35100000 | AB76: 26910000 | AC76: 2023-01-30 | AD76: 2023-02-02 | AE76: 2024-03-01 | AF76: 330 | AG76: 1 | AH76: 60 | AQ76: En ejecución | AR76: 0.7666666667
A77: CPS-064-2023 | B77: 2023 | C77: FDRS-CD-053-2023 | D77: https://community.secop.gov.co/Public/Tendering/OpportunityDetail/Index?noticeUID=CO1.NTC.3862680&isFromPublicArea=True&isModal=False | E77: Contratos de prestación de servicios profesionales y de apoyo a la gestión | F77: Contratación directa | G77: Prestación de servicios profesionales y de apoyo a la gestión, o para la ejecución de trabajos artísticos que sólo puedan encomendarse a determinadas personas naturales | H77: PRESTAR LOS SERVICIOS PROFESIONALES PARA APOYAR EL PROCESO DE PLANEACIÓN Y SEGUIMIENTO DE LOS PROGRAMAS Y PROYECTOS DE INVERSIÓN DE TRANSFORMACIÓN PRODUCTIVA DEL FONDO DE DESARROLLO RURAL DE SUMAPAZ | I77: Inversión | J77: Un nuevo contrato social y ambiental para la Bogotá del Siglo XXI | K77: 6 | L77: =IF(ISERROR(VLOOKUP(K77,Proposito_programa!$C$2:$E$59,2,FALSE))," ",VLOOKUP(K77,Proposito_programa!$C$2:$E$59,2,FALSE)) -> Sistema Distrital de Cuidado | M77: =IF(ISERROR(VLOOKUP(K77,Proposito_programa!$C$2:$E$59,3,FALSE))," ",VLOOKUP(K77,Proposito_programa!$C$2:$E$59,3,FALSE)) -> Propósito 1: Hacer un nuevo contrato social para incrementar la inclusión social, productiva y política | N77: 1637 | O77: 1 | P77: 1000601472 | Q77: JUAN FELIPE FLOREZ GALEANO | R77: Persona Natural | W77: 18400000 | X77: -1073334 | AA77: 17326666 | AB77: 17326666 | AC77: 2023-01-27 | AD77: 2023-02-03 | AE77: 2023-05-25 | AF77: 120 | AQ77: Terminado | AR77: 1
A78: CPS-065-2023 | B78: 2023 | C78: FDRS-CD-036-2023 | D78: https://community.secop.gov.co/Public/Tendering/OpportunityDetail/Index?noticeUID=CO1.NTC.3844070&isFromPublicArea=True&isModal=False | E78: Contratos de prestación de servicios profesionales y de apoyo a la gestión | F78: Contratación directa | G78: Prestación de servicios profesionales y de apoyo a la gestión, o para la ejecución de trabajos artísticos que sólo puedan encomendarse a determinadas personas naturales | H78: PRESTAR LOS SERVICIOS PROFESIONALES PARA APOYAR LOS PROCESOS ADMINISTRATIVOS, CONTABLES Y FINANCIEROS DEL ÁREA DE GESTIÓN DE DESARROLLO LOCAL, DE LA ALCALDÍA LOCAL DE SUMAPAZ | I78: Inversión | J78: Un nuevo contrato social y ambiental para la Bogotá del Siglo XXI | K78: 57 | L78: =IF(ISERROR(VLOOKUP(K78,Proposito_programa!$C$2:$E$59,2,FALSE))," ",VLOOKUP(K78,Proposito_programa!$C$2:$E$59,2,FALSE)) -> Gestión pública local | M78: =IF(ISERROR(VLOOKUP(K78,Proposito_programa!$C$2:$E$59,3,FALSE))," ",VLOOKUP(K78,Proposito_programa!$C$2:$E$59,3,FALSE)) -> Propósito 5: Construir Bogotá - Región con gobierno abierto, transparente y ciudadanía consciente | N78: 1696 | O78: 1 | P78: 1018481221 | Q78: DANIEL CAMILO MADRIGAL COLLAZOS | R78: Persona Natural | W78: 13800000 | AA78: 13800000 | AB78: 13800000 | AC78: 2023-01-30 | AD78: 2023-02-06 | AE78: 2023-05-05 | AF78: 90 | AQ78: Terminado | AR78: 1
A79: CPS-066-2023 | B79: 2023 | C79: FDRS-CD-054-2023 | D79: https://community.secop.gov.co/Public/Tendering/OpportunityDetail/Index?noticeUID=CO1.NTC.3874688&isFromPublicArea=True&isModal=False | E79: Contratos de prestación de servicios profesionales y de apoyo a la gestión | F79: Contratación directa | G79: Prestación de servicios profesionales y de apoyo a la gestión, o para la ejecución de trabajos artísticos que sólo puedan encomendarse a determinadas personas naturales | H79: PRESTAR LOS SERVICIOS PROFESIONALES PARA APOYAR EL FORTALECIMIENTO DEL SERVICIO DE ASISTENCIA TÉCNICA AGROPECUARIA DE LA LOCALIDAD DE SUMAPAZ. | I79: Inversión | J79: Un nuevo contrato social y ambiental para la Bogotá del Siglo XXI | K79: 23 | L79: =IF(ISERROR(VLOOKUP(K79,Proposito_programa!$C$2:$E$59,2,FALSE))," ",VLOOKUP(K79,Proposito_programa!$C$2:$E$59,2,FALSE)) -> Bogotá rural | M79: =IF(ISERROR(VLOOKUP(K79,Proposito_programa!$C$2:$E$59,3,FALSE))," ",VLOOKUP(K79,Proposito_programa!$C$2:$E$59,3,FALSE)) -> Propósito 1: Hacer un nuevo contrato social para incrementar la inclusión social, productiva y política | N79: 1634 | O79: 1 | P79: 7180598 | Q79: OSCAR JAVIER BARAJAS ALVARADO | R79: Persona Natural | W79: 77000000 | Y79: 1 | Z79: 14000000 | AA79: 91000000 | AB79: 68833333 | AC79: 2023-01-30 | AD79: 2023-02-06 | AE79: 2024-03-05 | AF79: 330 | AG79: 1 | AH79: 60 | AQ79: En ejecución | AR79: 0.7564102527
A80: CPS-067-2023 | B80: 2023 | C80: FDRS-CD-055-2023 | D80: https://community.secop.gov.co/Public/Tendering/OpportunityDetail/Index?noticeUID=CO1.NTC.3868267&isFromPublicArea=True&isModal=False | E80: Contratos de prestación de servicios profesionales y de apoyo a la gestión | F80: Contratación directa | G80: Prestación de servicios profesionales y de apoyo a la gestión, o para la ejecución de trabajos artísticos que sólo puedan encomendarse a determinadas personas naturales | H80: PRESTAR SUS SERVICIOS PROFESIONALES DE APOYO ADMINISTRATIVO AL ÁREA DE GESTIÓN DEL DESARROLLO LOCAL, EN LA GESTIÓN CONTRACTUAL DEL FONDO DE DESARROLLO RURAL DE SUMAPAZ. | I80: Inversión | J80: Un nuevo contrato social y ambiental para la Bogotá del Siglo XXI | K80: 57 | L80: =IF(ISERROR(VLOOKUP(K80,Proposito_programa!$C$2:$E$59,2,FALSE))," ",VLOOKUP(K80,Proposito_programa!$C$2:$E$59,2,FALSE)) -> Gestión pública local | M80: =IF(ISERROR(VLOOKUP(K80,Proposito_programa!$C$2:$E$59,3,FALSE))," ",VLOOKUP(K80,Proposito_programa!$C$2:$E$59,3,FALSE)) -> Propósito 5: Construir Bogotá - Región con gobierno abierto, transparente y ciudadanía consciente | N80: 1696 | O80: 1 | P80: 1015469423 | Q80: DIEGO ALONSO BACCA GARCIA | R80: Persona Natural | W80: 55000000 | Y80: 1 | Z80: 10000000 | AA80: 65000000 | AB80: 49833333 | AC80: 2023-01-27 | AD80: 2023-02-02 | AE80: 2024-03-01 | AF80: 330 | AG80: 1 | AH80: 60 | AQ80: En ejecución | AR80: 0.7666666615
A81: CPS-068-2023 | B81: 2023 | C81: FDRS-CD-056-2023 | D81: https://community.secop.gov.co/Public/Tendering/OpportunityDetail/Index?noticeUID=CO1.NTC.3877191&isFromPublicArea=True&isModal=False | E81: Contratos de prestación de servicios profesionales y de apoyo a la gestión | F81: Contratación directa | G81: Prestación de servicios profesionales y de apoyo a la gestión, o para la ejecución de trabajos artísticos que sólo puedan encomendarse a determinadas personas naturales | H81: PRESTAR LOS SERVICIOS PROFESIONALES, AL DESPACHO DE LA ALCALDÍA LOCAL DE SUMAPAZ, EN LAS DIFERENTES ETAPAS DE LOS PROCESOS LEGALES, JURÍDICOS, ADMINISTRATIVOS Y CONTRATACIÓN PÚBLICA PARA DAR CUMPLIMIENTO AL PLAN DE DESARROLLO LOCAL | I81: Inversión | J81: Un nuevo contrato social y ambiental para la Bogotá del Siglo XXI | K81: 57 | L81: =IF(ISERROR(VLOOKUP(K81,Proposito_programa!$C$2:$E$59,2,FALSE))," ",VLOOKUP(K81,Proposito_programa!$C$2:$E$59,2,FALSE)) -> Gestión pública local | M81: =IF(ISERROR(VLOOKUP(K81,Proposito_programa!$C$2:$E$59,3,FALSE))," ",VLOOKUP(K81,Proposito_programa!$C$2:$E$59,3,FALSE)) -> Propósito 5: Construir Bogotá - Región con gobierno abierto, transparente y ciudadanía consciente | N81: 1696 | O81: 1 | P81: 1053344917 | Q81: LEIDY MILENA BAREÑO CASAS | R81: Persona Natural | W81: 77000000 | AA81: =+W81+X81+Z81 -> 77000000 | AB81: 70000000 | AC81: 2023-01-30 | AD81: 2023-02-01 | AE81: 2023-12-31 | AF81: 330 | AQ81: Terminado | AR81: =IF(ISERROR(AB81/AA81),"-",(AB81/AA81)) -> 0.9090909091
A82: CPS-069-2023 | B82: 2023 | C82: FDRS-CD-057-2023 | D82: https://community.secop.gov.co/Public/Tendering/OpportunityDetail/Index?noticeUID=CO1.NTC.3874885&isFromPublicArea=True&isModal=False | E82: Contratos de prestación de servicios profesionales y de apoyo a la gestión | F82: Contratación directa | G82: Prestación de servicios profesionales y de apoyo a la gestión, o para la ejecución de trabajos artísticos que sólo puedan encomendarse a determinadas personas naturales | H82: PRESTAR LOS SERVICIOS PROFESIONALES ESPECIALIZADOS AL DESPACHO DE LA ALCALDÍA LOCAL DE SUMAPAZ, PARA LA ESTRUCTURACIÓN ESTRATÉGICA DE LOS PROCESOS DE PLANEACIÓN DE LOS PROYECTOS DE INVERSIÓN DEL FDRS | I82: Inversión | J82: Un nuevo contrato social y ambiental para la Bogotá del Siglo XXI | K82: 57 | L82: =IF(ISERROR(VLOOKUP(K82,Proposito_programa!$C$2:$E$59,2,FALSE))," ",VLOOKUP(K82,Proposito_programa!$C$2:$E$59,2,FALSE)) -> Gestión pública local | M82: =IF(ISERROR(VLOOKUP(K82,Proposito_programa!$C$2:$E$59,3,FALSE))," ",VLOOKUP(K82,Proposito_programa!$C$2:$E$59,3,FALSE)) -> Propósito 5: Construir Bogotá - Región con gobierno abierto, transparente y ciudadanía consciente | N82: 1696 | O82: 1 | P82: 79491233 | Q82: OSCAR GEOVANI MARTINEZ CORTES | R82: Persona Natural | W82: 82500000 | Y82: 1 | Z82: 7500000 | AA82: 90000000 | AB82: 75000000 | AC82: 2023-01-30 | AD82: 2023-02-01 | AE82: 2024-01-15 | AF82: 330 | AG82: 1 | AH82: 30 | AQ82: En ejecución | AR82: 0.8333333333
A83: CPS-070-2023 | B83: 2023 | C83: FDRS-CD-058-2023 | D83: https://community.secop.gov.co/Public/Tendering/OpportunityDetail/Index?noticeUID=CO1.NTC.3883816&isFromPublicArea=True&isModal=False | E83: Contratos de prestación de servicios profesionales y de apoyo a la gestión | F83: Contratación directa | G83: Prestación de servicios profesionales y de apoyo a la gestión, o para la ejecución de trabajos artísticos que sólo puedan encomendarse a determinadas personas naturales | H83: PRESTAR LOS SERVICIOS PROFESIONALES DE UN GEÓLOGO PARA APOYAR EN LA EJECUCIÓN DE LOS PROYECTOS DE INVERSIÓN DE INFRAESTRUCTURA VIAL, EN LA LOCALIDAD DE SUMAPAZ | I83: Inversión | J83: Un nuevo contrato social y ambiental para la Bogotá del Siglo XXI | K83: 49 | L83: =IF(ISERROR(VLOOKUP(K83,Proposito_programa!$C$2:$E$59,2,FALSE))," ",VLOOKUP(K83,Proposito_programa!$C$2:$E$59,2,FALSE)) -> Movilidad segura, sostenible y accesible | M83: =IF(ISERROR(VLOOKUP(K83,Proposito_programa!$C$2:$E$59,3,FALSE))," ",VLOOKUP(K83,Proposito_programa!$C$2:$E$59,3,FALSE)) -> Propósito 4: Hacer de Bogotá Región un modelo de movilidad multimodal, incluyente y sostenible | N83: 1688 | O83: 1 | P83: 1095812772 | Q83: JUAN SEBASTIAN SAAVEDRA RIAÑO | R83: Persona Natural | W83: 50600000 | Y83: 1 | Z83: 9200000 | AA83: 59800000 | AB83: 45080000 | AC83: 2023-01-31 | AD83: 2023-02-07 | AE83: 2024-03-06 | AF83: 330 | AG83: 1 | AH83: 60 | AQ83: En ejecución | AR83: 0.7538461538
A84: CPS-071-2023 | B84: 2023 | C84: FDRS-CD-059-2023 | D84: https://community.secop.gov.co/Public/Tendering/OpportunityDetail/Index?noticeUID=CO1.NTC.3875359&isFromPublicArea=True&isModal=False | E84: Contratos de prestación de servicios profesionales y de apoyo a la gestión | F84: Contratación directa | G84: Prestación de servicios profesionales y de apoyo a la gestión, o para la ejecución de trabajos artísticos que sólo puedan encomendarse a determinadas personas naturales | H84: PRESTAR LOS SERVICIOS ADMINISTRATIVOS AL ÁREA DE GESTIÓN DE DESARROLLO LOCAL, PARA EL APOYO DE LA GESTIÓN ADMINISTRATIVA Y FINANCIERA DE LOS RECURSOS DEL FDRS 1696. | I84: Inversión | J84: Un nuevo contrato social y ambiental para la Bogotá del Siglo XXI | K84: 57 | L84: =IF(ISERROR(VLOOKUP(K84,Proposito_programa!$C$2:$E$59,2,FALSE))," ",VLOOKUP(K84,Proposito_programa!$C$2:$E$59,2,FALSE)) -> Gestión pública local | M84: =IF(ISERROR(VLOOKUP(K84,Proposito_programa!$C$2:$E$59,3,FALSE))," ",VLOOKUP(K84,Proposito_programa!$C$2:$E$59,3,FALSE)) -> Propósito 5: Construir Bogotá - Región con gobierno abierto, transparente y ciudadanía consciente | N84: 1696 | O84: 1 | P84: 52423406 | Q84: MERCEDES LUNA JARAMILLO | R84: Persona Natural | W84: 29700000 | Y84: 1 | Z84: 5400000 | AA84: 35100000 | AB84: 26550000 | AC84: 2023-01-31 | AD84: 2023-02-06 | AE84: 2024-03-05 | AF84: 330 | AG84: 1 | AH84: 60 | AQ84: En ejecución | AR84: 0.7564102564
A85: CPS-072-2023 | B85: 2023 | C85: FDRS-CD-060-2023 | D85: https://community.secop.gov.co/Public/Tendering/OpportunityDetail/Index?noticeUID=CO1.NTC.3883294&isFromPublicArea=True&isModal=False | E85: Contratos de prestación de servicios profesionales y de apoyo a la gestión | F85: Contratación directa | G85: Prestación de servicios profesionales y de apoyo a la gestión, o para la ejecución de trabajos artísticos que sólo puedan encomendarse a determinadas personas naturales | H85: PRESTAR SUS SERVICIOS PROFESIONALES DE APOYO AL ÁREA DE GESTIÓN DEL DESARROLLO LOCAL EN LA GESTIÓN CONTRACTUAL DEL FONDO DE DESARROLLO LOCAL DE SUMAPAZ | I85: Inversión | J85: Un nuevo contrato social y ambiental para la Bogotá del Siglo XXI | K85: 57 | L85: =IF(ISERROR(VLOOKUP(K85,Proposito_programa!$C$2:$E$59,2,FALSE))," ",VLOOKUP(K85,Proposito_programa!$C$2:$E$59,2,FALSE)) -> Gestión pública local | M85: =IF(ISERROR(VLOOKUP(K85,Proposito_programa!$C$2:$E$59,3,FALSE))," ",VLOOKUP(K85,Proposito_programa!$C$2:$E$59,3,FALSE)) -> Propósito 5: Construir Bogotá - Región con gobierno abierto, transparente y ciudadanía consciente | N85: 1696 | O85: 1 | P85: 1023963032 | Q85: JUAN DIEGO PARDO TRUJILLO | R85: Persona Natural | W85: 13800000 | AA85: 13800000 | AB85: 13800000 | AC85: 2023-01-31 | AD85: 2023-02-03 | AE85: 2023-05-02 | AF85: 90 | AQ85: Terminado | AR85: 1
A86: CPS-073-2023 | B86: 2023 | C86: FDRS-CD-061-2023 | D86: https://community.secop.gov.co/Public/Tendering/OpportunityDetail/Index?noticeUID=CO1.NTC.3884659&isFromPublicArea=True&isModal=False | E86: Contratos de prestación de servicios profesionales y de apoyo a la gestión | F86: Contratación directa | G86: Prestación de servicios profesionales y de apoyo a la gestión, o para la ejecución de trabajos artísticos que sólo puedan encomendarse a determinadas personas naturales | H86: PRESTAR LOS SERVICIOS PROFESIONALES COMO ABOGADO (A) DE APOYO AL ÁREA DE GESTIÓN POLICIVA-JURÍDICA DE LA ALCALDÍA LOCAL DE SUMAPAZ | I86: Inversión | J86: Un nuevo contrato social y ambiental para la Bogotá del Siglo XXI | K86: 57 | L86: =IF(ISERROR(VLOOKUP(K86,Proposito_programa!$C$2:$E$59,2,FALSE))," ",VLOOKUP(K86,Proposito_programa!$C$2:$E$59,2,FALSE)) -> Gestión pública local | M86: =IF(ISERROR(VLOOKUP(K86,Proposito_programa!$C$2:$E$59,3,FALSE))," ",VLOOKUP(K86,Proposito_programa!$C$2:$E$59,3,FALSE)) -> Propósito 5: Construir Bogotá - Región con gobierno abierto, transparente y ciudadanía consciente | N86: 1696 | O86: 1 | P86: 1024555613 | Q86: DUVAN HERNAN HERNANDEZ TORRES | R86: Persona Natural | W86: 66000000 | Y86: 1 | Z86: 12000000 | AA86: 78000000 | AB86: 58800000 | AC86: 2023-01-31 | AD86: 2023-02-07 | AE86: 2024-01-10 | AF86: 330 | AG86: 1 | AH86: 60 | AQ86: En ejecución | AR86: 0.7538461538
A87: CPS-074-2023 | B87: 2023 | C87: FDRS-CD-062-2023 | D87: https://community.secop.gov.co/Public/Tendering/OpportunityDetail/Index?noticeUID=CO1.NTC.3876591&isFromPublicArea=True&isModal=False | E87: Contratos de prestación de servicios profesionales y de apoyo a la gestión | F87: Contratación directa | G87: Prestación de servicios profesionales y de apoyo a la gestión, o para la ejecución de trabajos artísticos que sólo puedan encomendarse a determinadas personas naturales | H87: PRESTAR SUS SERVICIOS COMO AUXILIAR PARA QUE APOYE LA GESTIÓN CULTURAL DE LA LOCALIDAD DE SUMAPAZ - 1633 | I87: Inversión | J87: Un nuevo contrato social y ambiental para la Bogotá del Siglo XXI | K87: 21 | L87: =IF(ISERROR(VLOOKUP(K87,Proposito_programa!$C$2:$E$59,2,FALSE))," ",VLOOKUP(K87,Proposito_programa!$C$2:$E$59,2,FALSE)) -> Creación y vida cotidiana: Apropiación ciudadana del arte, la cultura y el patrimonio, para la democracia cultural | M87: =IF(ISERROR(VLOOKUP(K87,Proposito_programa!$C$2:$E$59,3,FALSE))," ",VLOOKUP(K87,Proposito_programa!$C$2:$E$59,3,FALSE)) -> Propósito 1: Hacer un nuevo contrato social para incrementar la inclusión social, productiva y política | N87: 1633 | O87: 1 | P87: 1032656486 | Q87: MARIA ALEJANDRA GOMEZ OSPINA | R87: Persona Natural | W87: 22000000 | Y87: 1 | Z87: 4000000 | AA87: 26000000 | AB87: 19933333 | AC87: 2023-01-30 | AD87: 2023-02-02 | AE87: 2024-03-01 | AF87: 330 | AG87: 1 | AH87: 60 | AQ87: En ejecución | AR87: 0.7666666538
A88: CPS-075-2023 | B88: 2023 | C88: FDRS-CD-063-2023 | D88: https://community.secop.gov.co/Public/Tendering/OpportunityDetail/Index?noticeUID=CO1.NTC.3886660&isFromPublicArea=True&isModal=False | E88: Contratos de prestación de servicios profesionales y de apoyo a la gestión | F88: Contratación directa | G88: Prestación de servicios profesionales y de apoyo a la gestión, o para la ejecución de trabajos artísticos que sólo puedan encomendarse a determinadas personas naturales | H88: RESTAR LOS SERVICIOS PROFESIONALES PARA APOYAR EL PROCESO DE PLANEACIÓN Y SEGUIMIENTO DE LOS PLANES, PROGRAMAS Y PROYECTOS DE INVERSIÓN DEL FONDO DE DESARROLLO RURAL DE SUMAPAZ | I88: Inversión | J88: Un nuevo contrato social y ambiental para la Bogotá del Siglo XXI | K88: 57 | L88: =IF(ISERROR(VLOOKUP(K88,Proposito_programa!$C$2:$E$59,2,FALSE))," ",VLOOKUP(K88,Proposito_programa!$C$2:$E$59,2,FALSE)) -> Gestión pública local | M88: =IF(ISERROR(VLOOKUP(K88,Proposito_programa!$C$2:$E$59,3,FALSE))," ",VLOOKUP(K88,Proposito_programa!$C$2:$E$59,3,FALSE)) -> Propósito 5: Construir Bogotá - Región con gobierno abierto, transparente y ciudadanía consciente | N88: 1696 | O88: 1 | P88: 1013601002 | Q88: DAVID DIAZ CANDELA | R88: Persona Natural | W88: 77000000 | AA88: 77000000 | AB88: 68833333 | AC88: 2023-01-31 | AD88: 2023-02-06 | AE88: 2024-01-05 | AF88: 330 | AQ88: En ejecución | AR88: 0.8939393896
A89: CPS-076-2023 | B89: 2023 | C89: FDRS-CD-064-2023 | D89: https://community.secop.gov.co/Public/Tendering/OpportunityDetail/Index?noticeUID=CO1.NTC.3883528&isFromPublicArea=True&isModal=False | E89: Contratos de prestación de servicios profesionales y de apoyo a la gestión | F89: Contratación directa | G89: Prestación de servicios profesionales y de apoyo a la gestión, o para la ejecución de trabajos artísticos que sólo puedan encomendarse a determinadas personas naturales | H89: APOYAR EN LAS TAREAS OPERATIVAS DE CARÁCTER ARCHIVÍSTICO DESARROLLADAS EN LA ALCALDÍA LOCAL PARA GARANTIZAR LA APLICACIÓN CORRECTA DE LOS PROCEDIMIENTOS TÉCNICOS" 1696 | I89: Inversión | J89: Un nuevo contrato social y ambiental para la Bogotá del Siglo XXI | K89: 57 | L89: =IF(ISERROR(VLOOKUP(K89,Proposito_programa!$C$2:$E$59,2,FALSE))," ",VLOOKUP(K89,Proposito_programa!$C$2:$E$59,2,FALSE)) -> Gestión pública local | M89: =IF(ISERROR(VLOOKUP(K89,Proposito_programa!$C$2:$E$59,3,FALSE))," ",VLOOKUP(K89,Proposito_programa!$C$2:$E$59,3,FALSE)) -> Propósito 5: Construir Bogotá - Región con gobierno abierto, transparente y ciudadanía consciente | N89: 1696 | O89: 1 | P89: 79969813 | Q89: OSCAR EDILSO MURCIA MARTINEZ | R89: Persona Natural | W89: 44000000 | X89: -44000000 | AA89: =+W89+X89+Z89 -> 0 | AB89: 0 | AC89: 2023-01-31 | AD89: 2023-02-07 | AE89: 2023-03-22 | AF89: 330 | AQ89: Terminado | AR89: -
A90: CPS-077-2023 | B90: 2023 | C90: FDRS-CD-065-2023 | D90: https://community.secop.gov.co/Public/Tendering/OpportunityDetail/Index?noticeUID=CO1.NTC.3885005&isFromPublicArea=True&isModal=False | E90: Contratos de prestación de servicios profesionales y de apoyo a la gestión | F90: Contratación directa | G90: Prestación de servicios profesionales y de apoyo a la gestión, o para la ejecución de trabajos artísticos que sólo puedan encomendarse a determinadas personas naturales | H90: PRESTAR LOS SERVICIOS ADMINISTRATIVOS A LAS ÁREAS DE LA ALCALDÍA LOCAL DE SUMAPAZ | I90: Inversión | J90: Un nuevo contrato social y ambiental para la Bogotá del Siglo XXI | K90: 57 | L90: =IF(ISERROR(VLOOKUP(K90,Proposito_programa!$C$2:$E$59,2,FALSE))," ",VLOOKUP(K90,Proposito_programa!$C$2:$E$59,2,FALSE)) -> Gestión pública local | M90: =IF(ISERROR(VLOOKUP(K90,Proposito_programa!$C$2:$E$59,3,FALSE))," ",VLOOKUP(K90,Proposito_programa!$C$2:$E$59,3,FALSE)) -> Propósito 5: Construir Bogotá - Región con gobierno abierto, transparente y ciudadanía consciente | N90: 1696 | O90: 1 | P90: 1033777424 | Q90: DANIEL CUELLAR GONZALEZ | R90: Persona Natural | W90: 29700000 | Y90: 1 | Z90: 2700000 | AA90: 32400000 | AB90: 26550000 | AC90: 2023-01-31 | AD90: 2023-02-06 | AE90: 2024-02-05 | AF90: 330 | AG90: 1 | AH90: 30 | AQ90: En ejecución | AR90: 0.8194444444
A91: CPS-078-2023 | B91: 2023 | C91: FDRS-CD-031-2023 | D91: https://community.secop.gov.co/Public/Tendering/OpportunityDetail/Index?noticeUID=CO1.NTC.3841113&isFromPublicArea=True&isModal=False | E91: Contratos de prestación de servicios profesionales y de apoyo a la gestión | F91: Contratación directa | G91: Prestación de servicios profesionales y de apoyo a la gestión, o para la ejecución de trabajos artísticos que sólo puedan encomendarse a determinadas personas naturales | H91: PRESTAR LOS SERVICIOS PARA EL MANEJO Y/O CONDUCCIÓN DE LOS VEHÍCULOS LIVIANOS DE PROPIEDAD O TENENCIA DEL FONDO DE DESARROLLO RURAL DE SUMAPAZ | I91: Inversión | J91: Un nuevo contrato social y ambiental para la Bogotá del Siglo XXI | K91: 57 | L91: =IF(ISERROR(VLOOKUP(K91,Proposito_programa!$C$2:$E$59,2,FALSE))," ",VLOOKUP(K91,Proposito_programa!$C$2:$E$59,2,FALSE)) -> Gestión pública local | M91: =IF(ISERROR(VLOOKUP(K91,Proposito_programa!$C$2:$E$59,3,FALSE))," ",VLOOKUP(K91,Proposito_programa!$C$2:$E$59,3,FALSE)) -> Propósito 5: Construir Bogotá - Región con gobierno abierto, transparente y ciudadanía consciente | N91: 1696 | O91: 1 | P91: 79816851 | Q91: WILLIAM EDUARDO MICAN | R91: Persona Natural | W91: 29700000 | Y91: 1 | Z91: 5400000 | AA91: 35100000 | AB91: 26910000 | AC91: 2023-01-30 | AD91: 2023-02-02 | AE91: 2024-03-01 | AF91: 330 | AG91: 1 | AH91: 60 | AQ91: En ejecución | AR91: 0.7666666667
A92: CPS-079-2023 | B92: 2023 | C92: FDRS-CD-031-2023 | D92: https://community.secop.gov.co/Public/Tendering/OpportunityDetail/Index?noticeUID=CO1.NTC.3841113&isFromPublicArea=True&isModal=False | E92: Contratos de prestación de servicios profesionales y de apoyo a la gestión | F92: Contratación directa | G92: Prestación de servicios profesionales y de apoyo a la gestión, o para la ejecución de trabajos artísticos que sólo puedan encomendarse a determinadas personas naturales | H92: PRESTAR LOS SERVICIOS PARA EL MANEJO Y/O CONDUCCIÓN DE LOS VEHÍCULOS LIVIANOS DE PROPIEDAD O TENENCIA DEL FONDO DE DESARROLLO RURAL DE SUMAPAZ | I92: Inversión | J92: Un nuevo contrato social y ambiental para la Bogotá del Siglo XXI | K92: 57 | L92: =IF(ISERROR(VLOOKUP(K92,Proposito_programa!$C$2:$E$59,2,FALSE))," ",VLOOKUP(K92,Proposito_programa!$C$2:$E$59,2,FALSE)) -> Gestión pública local | M92: =IF(ISERROR(VLOOKUP(K92,Proposito_programa!$C$2:$E$59,3,FALSE))," ",VLOOKUP(K92,Proposito_programa!$C$2:$E$59,3,FALSE)) -> Propósito 5: Construir Bogotá - Región con gobierno abierto, transparente y ciudadanía consciente | N92: 1696 | O92: 1 | P92: 79763739 | Q92: WILLIAM FERNANDO PORRAS LOPEZ | R92: Persona Natural | W92: 29700000 | Y92: 1 | Z92: 5400000 | AA92: 35100000 | AB92: 26910000 | AC92: 2023-01-30 | AD92: 2023-02-02 | AE92: 2024-03-01 | AF92: 330 | AG92: 1 | AH92: 60 | AQ92: En ejecución | AR92: 0.7666666667
A93: CPS-080-2023 | B93: 2023 | C93: FDRS-CD-031-2023 | D93: https://community.secop.gov.co/Public/Tendering/OpportunityDetail/Index?noticeUID=CO1.NTC.3841113&isFromPublicArea=True&isModal=False | E93: Contratos de prestación de servicios profesionales y de apoyo a la gestión | F93: Contratación directa | G93: Prestación de servicios profesionales y de apoyo a la gestión, o para la ejecución de trabajos artísticos que sólo puedan encomendarse a determinadas personas naturales | H93: PRESTAR LOS SERVICIOS PARA EL MANEJO Y/O CONDUCCIÓN DE LOS VEHÍCULOS LIVIANOS DE PROPIEDAD O TENENCIA DEL FONDO DE DESARROLLO RURAL DE SUMAPAZ | I93: Inversión | J93: Un nuevo contrato social y ambiental para la Bogotá del Siglo XXI | K93: 57 | L93: =IF(ISERROR(VLOOKUP(K93,Proposito_programa!$C$2:$E$59,2,FALSE))," ",VLOOKUP(K93,Proposito_programa!$C$2:$E$59,2,FALSE)) -> Gestión pública local | M93: =IF(ISERROR(VLOOKUP(K93,Proposito_programa!$C$2:$E$59,3,FALSE))," ",VLOOKUP(K93,Proposito_programa!$C$2:$E$59,3,FALSE)) -> Propósito 5: Construir Bogotá - Región con gobierno abierto, transparente y ciudadanía consciente | N93: 1696 | O93: 1 | P93: 80779614 | Q93: MAURICIO ROMAN MUÑOZ | R93: Persona Natural | W93: 29700000 | Y93: 1 | Z93: 5400000 | AA93: 35100000 | AB93: 26910000 | AC93: 2023-01-30 | AD93: 2023-02-02 | AE93: 2024-03-01 | AF93: 330 | AG93: 1 | AH93: 60 | AQ93: En ejecución | AR93: 0.7666666667
A94: CPS-081-2023 | B94: 2023 | C94: FDRS-CD-031-2023 | D94: https://community.secop.gov.co/Public/Tendering/OpportunityDetail/Index?noticeUID=CO1.NTC.3841113&isFromPublicArea=True&isModal=False | E94: Contratos de prestación de servicios profesionales y de apoyo a la gestión | F94: Contratación directa | G94: Prestación de servicios profesionales y de apoyo a la gestión, o para la ejecución de trabajos artísticos que sólo puedan encomendarse a determinadas personas naturales | H94: PRESTAR LOS SERVICIOS PARA EL MANEJO Y/O CONDUCCIÓN DE LOS VEHÍCULOS LIVIANOS DE PROPIEDAD O TENENCIA DEL FONDO DE DESARROLLO RURAL DE SUMAPAZ | I94: Inversión | J94: Un nuevo contrato social y ambiental para la Bogotá del Siglo XXI | K94: 57 | L94: =IF(ISERROR(VLOOKUP(K94,Proposito_programa!$C$2:$E$59,2,FALSE))," ",VLOOKUP(K94,Proposito_programa!$C$2:$E$59,2,FALSE)) -> Gestión pública local | M94: =IF(ISERROR(VLOOKUP(K94,Proposito_programa!$C$2:$E$59,3,FALSE))," ",VLOOKUP(K94,Proposito_programa!$C$2:$E$59,3,FALSE)) -> Propósito 5: Construir Bogotá - Región con gobierno abierto, transparente y ciudadanía consciente | N94: 1696 | O94: 1 | P94: 1032656017 | Q94: GERMAN CASTELLANOS DELGADO | R94: Persona Natural | W94: 29700000 | Y94: 1 | Z94: 5400000 | AA94: 35100000 | AB94: 27000000 | AC94: 2023-01-30 | AD94: 2023-02-01 | AE94: 2024-02-28 | AF94: 330 | AG94: 1 | AH94: 60 | AQ94: En ejecución | AR94: 0.7692307692
A95: CPS-082-2023 | B95: 2023 | C95: FDRS-CD-031-2023 | D95: https://community.secop.gov.co/Public/Tendering/OpportunityDetail/Index?noticeUID=CO1.NTC.3841113&isFromPublicArea=True&isModal=False | E95: Contratos de prestación de servicios profesionales y de apoyo a la gestión | F95: Contratación directa | G95: Prestación de servicios profesionales y de apoyo a la gestión, o para la ejecución de trabajos artísticos que sólo puedan encomendarse a determinadas personas naturales | H95: PRESTAR LOS SERVICIOS PARA EL MANEJO Y/O CONDUCCIÓN DE LOS VEHÍCULOS LIVIANOS DE PROPIEDAD O TENENCIA DEL FONDO DE DESARROLLO RURAL DE SUMAPAZ | I95: Inversión | J95: Un nuevo contrato social y ambiental para la Bogotá del Siglo XXI | K95: 57 | L95: =IF(ISERROR(VLOOKUP(K95,Proposito_programa!$C$2:$E$59,2,FALSE))," ",VLOOKUP(K95,Proposito_programa!$C$2:$E$59,2,FALSE)) -> Gestión pública local | M95: =IF(ISERROR(VLOOKUP(K95,Proposito_programa!$C$2:$E$59,3,FALSE))," ",VLOOKUP(K95,Proposito_programa!$C$2:$E$59,3,FALSE)) -> Propósito 5: Construir Bogotá - Región con gobierno abierto, transparente y ciudadanía consciente | N95: 1696 | O95: 1 | P95: 7216687 | Q95: JOSE LIBRADO MARTINEZ CORTES | R95: Persona Natural | W95: 29700000 | Y95: 1 | Z95: 5400000 | AA95: 35100000 | AB95: 26910000 | AC95: 2023-01-30 | AD95: 2023-02-02 | AE95: 2024-03-01 | AF95: 330 | AG95: 1 | AH95: 60 | AQ95: En ejecución | AR95: 0.7666666667
A96: CPS-083-2023 | B96: 2023 | C96: FDRS-CD-031-2023 | D96: https://community.secop.gov.co/Public/Tendering/OpportunityDetail/Index?noticeUID=CO1.NTC.3841113&isFromPublicArea=True&isModal=False | E96: Contratos de prestación de servicios profesionales y de apoyo a la gestión | F96: Contratación directa | G96: Prestación de servicios profesionales y de apoyo a la gestión, o para la ejecución de trabajos artísticos que sólo puedan encomendarse a determinadas personas naturales | H96: PRESTAR LOS SERVICIOS PARA EL MANEJO Y/O CONDUCCIÓN DE LOS VEHÍCULOS LIVIANOS DE PROPIEDAD O TENENCIA DEL FONDO DE DESARROLLO RURAL DE SUMAPAZ | I96: Inversión | J96: Un nuevo contrato social y ambiental para la Bogotá del Siglo XXI | K96: 57 | L96: =IF(ISERROR(VLOOKUP(K96,Proposito_programa!$C$2:$E$59,2,FALSE))," ",VLOOKUP(K96,Proposito_programa!$C$2:$E$59,2,FALSE)) -> Gestión pública local | M96: =IF(ISERROR(VLOOKUP(K96,Proposito_programa!$C$2:$E$59,3,FALSE))," ",VLOOKUP(K96,Proposito_programa!$C$2:$E$59,3,FALSE)) -> Propósito 5: Construir Bogotá - Región con gobierno abierto, transparente y ciudadanía consciente | N96: 1696 | O96: 1 | P96: 19271225 | Q96: MAXIMILIANO LOPEZ SUAREZ | R96: Persona Natural | W96: 29700000 | Y96: 1 | Z96: 5400000 | AA96: 35100000 | AB96: 26910000 | AC96: 2023-01-30 | AD96: 2023-02-02 | AE96: 2024-03-01 | AF96: 330 | AG96: 1 | AH96: 60 | AQ96: En ejecución | AR96: 0.7666666667
A97: CPS-084-2023 | B97: 2023 | C97: FDRS-CD-031-2023 | D97: https://community.secop.gov.co/Public/Tendering/OpportunityDetail/Index?noticeUID=CO1.NTC.3841113&isFromPublicArea=True&isModal=False | E97: Contratos de prestación de servicios profesionales y de apoyo a la gestión | F97: Contratación directa | G97: Prestación de servicios profesionales y de apoyo a la gestión, o para la ejecución de trabajos artísticos que sólo puedan encomendarse a determinadas personas naturales | H97: PRESTAR LOS SERVICIOS PARA EL MANEJO Y/O CONDUCCIÓN DE LOS VEHÍCULOS LIVIANOS DE PROPIEDAD O TENENCIA DEL FONDO DE DESARROLLO RURAL DE SUMAPAZ | I97: Inversión | J97: Un nuevo contrato social y ambiental para la Bogotá del Siglo XXI | K97: 57 | L97: =IF(ISERROR(VLOOKUP(K97,Proposito_programa!$C$2:$E$59,2,FALSE))," ",VLOOKUP(K97,Proposito_programa!$C$2:$E$59,2,FALSE)) -> Gestión pública local | M97: =IF(ISERROR(VLOOKUP(K97,Proposito_programa!$C$2:$E$59,3,FALSE))," ",VLOOKUP(K97,Proposito_programa!$C$2:$E$59,3,FALSE)) -> Propósito 5: Construir Bogotá - Región con gobierno abierto, transparente y ciudadanía consciente | N97: 1696 | O97: 1 | P97: 1032656249 | Q97: ANGEL RODRIGO MUÑOZ | R97: Persona Natural | W97: 29700000 | Y97: 1 | Z97: 5400000 | AA97: 35100000 | AB97: 26910000 | AC97: 2023-01-30 | AD97: 2023-02-02 | AE97: 2024-03-01 | AF97: 330 | AG97: 1 | AH97: 60 | AQ97: En ejecución | AR97: 0.7666666667
A98: CPS-085-2023 | B98: 2023 | C98: FDRS-CD-066-2023 | D98: https://community.secop.gov.co/Public/Tendering/OpportunityDetail/Index?noticeUID=CO1.NTC.3877077&isFromPublicArea=True&isModal=False | E98: Contratos de prestación de servicios profesionales y de apoyo a la gestión | F98: Contratación directa | G98: Prestación de servicios profesionales y de apoyo a la gestión, o para la ejecución de trabajos artísticos que sólo puedan encomendarse a determinadas personas naturales | H98: PRESTAR LOS SERVICIOS DE APOYO ADMINISTRATIVO AL ÁREA DE GESTIÓN DE DESARROLLO LOCAL, EN LOS PROYECTOS DE SALUD QUE SE EJECUTAN EN LA ALCALDÍA LOCAL DE SUMAPAZ. | I98: Inversión | J98: Un nuevo contrato social y ambiental para la Bogotá del Siglo XXI | K98: 6 | L98: =IF(ISERROR(VLOOKUP(K98,Proposito_programa!$C$2:$E$59,2,FALSE))," ",VLOOKUP(K98,Proposito_programa!$C$2:$E$59,2,FALSE)) -> Sistema Distrital de Cuidado | M98: =IF(ISERROR(VLOOKUP(K98,Proposito_programa!$C$2:$E$59,3,FALSE))," ",VLOOKUP(K98,Proposito_programa!$C$2:$E$59,3,FALSE)) -> Propósito 1: Hacer un nuevo contrato social para incrementar la inclusión social, productiva y política | N98: 1643 | O98: 1 | P98: 1069716477 | Q98: YENNY PATRICIA CRUZ ALVAREZ | R98: Persona Natural | W98: 29700000 | AA98: 29700000 | AB98: 26190000 | AC98: 2023-01-30 | AD98: 2023-02-06 | AE98: 2024-01-05 | AF98: 330 | AQ98: En ejecución | AR98: 0.8818181818
A99: CPS-086-2023 | B99: 2023 | C99: FDRS-CD-067-2023 | D99: https://community.secop.gov.co/Public/Tendering/OpportunityDetail/Index?noticeUID=CO1.NTC.3883919&isFromPublicArea=True&isModal=False | E99: Contratos de prestación de servicios profesionales y de apoyo a la gestión | F99: Contratación directa | G99: Prestación de servicios profesionales y de apoyo a la gestión, o para la ejecución de trabajos artísticos que sólo puedan encomendarse a determinadas personas naturales | H99: PRESTAR SUS SERVICIOS COMO PROFESIONAL DE APOYO A LA GESTIÓN, PARA DAR RESPUESTA A DERECHOS DE PETICIÓN Y DEMÁS REQUERIMIENTOS RELACIONADOS CON LOS PROCESOS CONTRACTUALES DEL FONDO DE DESARROLLO RURAL DE SUMAPAZ | I99: Inversión | J99: Un nuevo contrato social y ambiental para la Bogotá del Siglo XXI | K99: 57 | L99: =IF(ISERROR(VLOOKUP(K99,Proposito_programa!$C$2:$E$59,2,FALSE))," ",VLOOKUP(K99,Proposito_programa!$C$2:$E$59,2,FALSE)) -> Gestión pública local | M99: =IF(ISERROR(VLOOKUP(K99,Proposito_programa!$C$2:$E$59,3,FALSE))," ",VLOOKUP(K99,Proposito_programa!$C$2:$E$59,3,FALSE)) -> Propósito 5: Construir Bogotá - Región con gobierno abierto, transparente y ciudadanía consciente | N99: 1696 | O99: 1 | P99: 1020802394 | Q99: JESSICA JULIETH CARDONA JARAMILLO | R99: Persona Natural | W99: 55000000 | Y99: 1 | Z99: 5000000 | AA99: 60000000 | AB99: 49666666 | AC99: 2023-01-31 | AD99: 2023-02-03 | AE99: 2024-02-02 | AF99: 330 | AG99: 1 | AH99: 30 | AQ99: En ejecución | AR99: 0.8277777667
A100: CPS-087-2023 | B100: 2023 | C100: FDRS-CD-068-2023 | D100: https://community.secop.gov.co/Public/Tendering/OpportunityDetail/Index?noticeUID=CO1.NTC.3879946&isFromPublicArea=True&isModal=False | E100: Contratos de prestación de servicios profesionales y de apoyo a la gestión | F100: Contratación directa | G100: Prestación de servicios profesionales y de apoyo a la gestión, o para la ejecución de trabajos artísticos que sólo puedan encomendarse a determinadas personas naturales | H100: PRESTAR SUS SERVICIOS PROFESIONALES DE APOYO AL ÁREA DE GESTIÓN DEL DESARROLLO LOCAL EN LA GESTIÓN CONTRACTUAL DEL FONDO DE DESARROLLO LOCAL DE SUMAPAZ | I100: Inversión | J100: Un nuevo contrato social y ambiental para la Bogotá del Siglo XXI | K100: 57 | L100: =IF(ISERROR(VLOOKUP(K100,Proposito_programa!$C$2:$E$59,2,FALSE))," ",VLOOKUP(K100,Proposito_programa!$C$2:$E$59,2,FALSE)) -> Gestión pública local | M100: =IF(ISERROR(VLOOKUP(K100,Proposito_programa!$C$2:$E$59,3,FALSE))," ",VLOOKUP(K100,Proposito_programa!$C$2:$E$59,3,FALSE)) -> Propósito 5: Construir Bogotá - Región con gobierno abierto, transparente y ciudadanía consciente | N100: 1696 | O100: 1 | P100: 36696956 | Q100: ARACELYS ELISA VIZCANO RIVERA | R100: Persona Natural | W100: 55000000 | Y100: 1 | Z100: 5000000 | AA100: 60000000 | AB100: 49667000 | AC100: 2023-01-30 | AD100: 2023-02-03 | AE100: 2024-02-02 | AF100: 330 | AG100: 1 | AH100: 30 | AQ100: En ejecución | AR100: 0.8277833333
A101: CPS-088-2023 | B101: 2023 | C101: FDRS-CD-069-2023 | D101: https://community.secop.gov.co/Public/Tendering/OpportunityDetail/Index?noticeUID=CO1.NTC.3882720&isFromPublicArea=True&isModal=False | E101: Contratos de prestación de servicios profesionales y de apoyo a la gestión | F101: Contratación directa | G101: Prestación de servicios profesionales y de apoyo a la gestión, o para la ejecución de trabajos artísticos que sólo puedan encomendarse a determinadas personas naturales | H101: PRESTAR LOS SERVICIOS PROFESIONALES JURÍDICOS PARA APOYAR LOS ASUNTOS LEGALES DE LOS PROCESOS DEL SISTEMA VIAL DE LA ALCALDÍA LOCAL DE SUMAPAZ | I101: Inversión | J101: Un nuevo contrato social y ambiental para la Bogotá del Siglo XXI | K101: 49 | L101: =IF(ISERROR(VLOOKUP(K101,Proposito_programa!$C$2:$E$59,2,FALSE))," ",VLOOKUP(K101,Proposito_programa!$C$2:$E$59,2,FALSE)) -> Movilidad segura, sostenible y accesible | M101: =IF(ISERROR(VLOOKUP(K101,Proposito_programa!$C$2:$E$59,3,FALSE))," ",VLOOKUP(K101,Proposito_programa!$C$2:$E$59,3,FALSE)) -> Propósito 4: Hacer de Bogotá Región un modelo de movilidad multimodal, incluyente y sostenible | N101: 1688 | O101: 1 | P101: 1019076136 | Q101: CAMILA FERNANDA SAAVEDRA SALINAS | R101: Persona Natural | W101: 66000000 | AA101: 66000000 | AB101: 57800000 | AC101: 2023-01-30 | AD101: 2023-02-03 | AE101: 2024-01-11 | AF101: 330 | AQ101: En ejecución | AR101: 0.8757575758
A102: CPS-089-2023 | B102: 2023 | C102: FDRS-CD-070-2023 | D102: https://community.secop.gov.co/Public/Tendering/OpportunityDetail/Index?noticeUID=CO1.NTC.3883499&isFromPublicArea=True&isModal=False | E102: Contratos de prestación de servicios profesionales y de apoyo a la gestión | F102: Contratación directa | G102: Prestación de servicios profesionales y de apoyo a la gestión, o para la ejecución de trabajos artísticos que sólo puedan encomendarse a determinadas personas naturales | H102: PRESTAR LOS SERVICIOS COMO TECNICO DE APOYO ADMINISTRATIVO AL ÁREA DE GESTIÓN POLICIVA DE LA ALCALDÍA LOCAL DE SUMAPAZ | I102: Inversión | J102: Un nuevo contrato social y ambiental para la Bogotá del Siglo XXI | K102: 57 | L102: =IF(ISERROR(VLOOKUP(K102,Proposito_programa!$C$2:$E$59,2,FALSE))," ",VLOOKUP(K102,Proposito_programa!$C$2:$E$59,2,FALSE)) -> Gestión pública local | M102: =IF(ISERROR(VLOOKUP(K102,Proposito_programa!$C$2:$E$59,3,FALSE))," ",VLOOKUP(K102,Proposito_programa!$C$2:$E$59,3,FALSE)) -> Propósito 5: Construir Bogotá - Región con gobierno abierto, transparente y ciudadanía consciente | N102: 1696 | O102: 1 | P102: 52524470 | Q102: MARCELA TORRES RAMIREZ | R102: Persona Natural | W102: 44000000 | Y102: 1 | Z102: 8000000 | AA102: 52000000 | AB102: 39200000 | AC102: 2023-01-31 | AD102: 2023-02-07 | AE102: 2024-03-06 | AF102: 330 | AG102: 1 | AH102: 60 | AQ102: En ejecución | AR102: 0.7538461538
A103: CPS-090-2023 | B103: 2023 | C103: FDRS-CD-071-2023 | D103: https://community.secop.gov.co/Public/Tendering/OpportunityDetail/Index?noticeUID=CO1.NTC.3886503&isFromPublicArea=True&isModal=False | E103: Contratos de prestación de servicios profesionales y de apoyo a la gestión | F103: Contratación directa | G103: Prestación de servicios profesionales y de apoyo a la gestión, o para la ejecución de trabajos artísticos que sólo puedan encomendarse a determinadas personas naturales | H103: PRESTAR LOS SERVICIOS COMO AUXILIAR ADMINISTRATIVA EN LA CORREGIDURÍA DE NAZARETH. 1696 | I103: Inversión | J103: Un nuevo contrato social y ambiental para la Bogotá del Siglo XXI | K103: 57 | L103: =IF(ISERROR(VLOOKUP(K103,Proposito_programa!$C$2:$E$59,2,FALSE))," ",VLOOKUP(K103,Proposito_programa!$C$2:$E$59,2,FALSE)) -> Gestión pública local | M103: =IF(ISERROR(VLOOKUP(K103,Proposito_programa!$C$2:$E$59,3,FALSE))," ",VLOOKUP(K103,Proposito_programa!$C$2:$E$59,3,FALSE)) -> Propósito 5: Construir Bogotá - Región con gobierno abierto, transparente y ciudadanía consciente | N103: 1696 | O103: 1 | P103: 1022943098 | Q103: GLORIA YOLANDA DIMATE RICO | R103: Persona Natural | W103: 29700000 | AA103: 29700000 | AB103: 26550000 | AC103: 2023-01-31 | AD103: 2023-02-06 | AE103: 2024-01-05 | AF103: 330 | AQ103: En ejecución | AR103: 0.8939393939
A104: CPS-091-2023 | B104: 2023 | C104: FDRS-CD-072-2023 | D104: https://community.secop.gov.co/Public/Tendering/OpportunityDetail/Index?noticeUID=CO1.NTC.3883629&isFromPublicArea=True&isModal=False | E104: Contratos de prestación de servicios profesionales y de apoyo a la gestión | F104: Contratación directa | G104: Prestación de servicios profesionales y de apoyo a la gestión, o para la ejecución de trabajos artísticos que sólo puedan encomendarse a determinadas personas naturales | H104: PRESTAR LOS SERVICIOS PROFESIONALES PARA APOYAR EN LA EJECUCIÓN DE LOS PROYECTOS DE INVERSIÓN DE INFRAESTRUCTURA LOCAL | I104: Inversión | J104: Un nuevo contrato social y ambiental para la Bogotá del Siglo XXI | K104: 49 | L104: =IF(ISERROR(VLOOKUP(K104,Proposito_programa!$C$2:$E$59,2,FALSE))," ",VLOOKUP(K104,Proposito_programa!$C$2:$E$59,2,FALSE)) -> Movilidad segura, sostenible y accesible | M104: =IF(ISERROR(VLOOKUP(K104,Proposito_programa!$C$2:$E$59,3,FALSE))," ",VLOOKUP(K104,Proposito_programa!$C$2:$E$59,3,FALSE)) -> Propósito 4: Hacer de Bogotá Región un modelo de movilidad multimodal, incluyente y sostenible | N104: 1688 | O104: 1 | P104: 79468757 | Q104: EDGAR IVAN SEPULVEDA PARRA | R104: Persona Natural | W104: 77000000 | X104: -51800000 | AA104: 25200000 | AB104: 25200000 | AC104: 2023-01-31 | AD104: 2023-02-07 | AE104: 2023-05-24 | AF104: 330 | AQ104: Terminado | AR104: 1
A105: CPS-092-2023 | B105: 2023 | C105: FDRS-CD-073-2023 | D105: https://community.secop.gov.co/Public/Tendering/OpportunityDetail/Index?noticeUID=CO1.NTC.3888987&isFromPublicArea=True&isModal=False | E105: Contratos de prestación de servicios profesionales y de apoyo a la gestión | F105: Contratación directa | G105: Prestación de servicios profesionales y de apoyo a la gestión, o para la ejecución de trabajos artísticos que sólo puedan encomendarse a determinadas personas naturales | H105: PRESTAR LOS SERVICIOS PROFESIONALES DE ACOMPAÑAMIENTO PSICOSOCIAL PARA APOYAR LA EJECUCIÓN DE LA META ATENDER A 200 PERSONAS EN ESTRATEGIAS DE ACCESO A LA JUSTICIA INTEGRAL EN LA LOCALIDAD DE SUMAPAZ | I105: Inversión | J105: Un nuevo contrato social y ambiental para la Bogotá del Siglo XXI | K105: 48 | L105: =IF(ISERROR(VLOOKUP(K105,Proposito_programa!$C$2:$E$59,2,FALSE))," ",VLOOKUP(K105,Proposito_programa!$C$2:$E$59,2,FALSE)) -> Plataforma institucional para la seguridad y justicia | M105: =IF(ISERROR(VLOOKUP(K105,Proposito_programa!$C$2:$E$59,3,FALSE))," ",VLOOKUP(K105,Proposito_programa!$C$2:$E$59,3,FALSE)) -> Propósito 3: Inspirar confianza y legitimidad para vivir sin miedo y ser epicentro de cultura ciudadana, paz y reconciliación | N105: 1683 | O105: 1 | P105: 1023029369 | Q105: KAREN NAYIBE MARTINEZ MOLINA | R105: Persona Natural | W105: 66000000 | AA105: 66000000 | AB105: 59000000 | AC105: 2023-01-31 | AD105: 2023-02-06 | AE105: 2024-01-05 | AF105: 330 | AQ105: En ejecución | AR105: 0.8939393939
A106: CPS-093-2023 | B106: 2023 | C106: FDRS-CD-042-2023 | D106: https://community.secop.gov.co/Public/Tendering/OpportunityDetail/Index?noticeUID=CO1.NTC.3854257&isFromPublicArea=True&isModal=False | E106: Contratos de prestación de servicios profesionales y de apoyo a la gestión | F106: Contratación directa | G106: Prestación de servicios profesionales y de apoyo a la gestión, o para la ejecución de trabajos artísticos que sólo puedan encomendarse a determinadas personas naturales | H106: PRESTAR LOS SERVICIOS PROFESIONALES JURIDICOS PARA APOYAR LOS ASUNTOS PRECONTRACTUALES, CONTRACTUALES Y POST-CONTRACTUALES DEL ÁREA DE GESTIÓN DE DESARROLLO LOCAL DE LA ALCALDÍA LOCAL DE SUMAPAZ | I106: Inversión | J106: Un nuevo contrato social y ambiental para la Bogotá del Siglo XXI | K106: 57 | L106: =IF(ISERROR(VLOOKUP(K106,Proposito_programa!$C$2:$E$59,2,FALSE))," ",VLOOKUP(K106,Proposito_programa!$C$2:$E$59,2,FALSE)) -> Gestión pública local | M106: =IF(ISERROR(VLOOKUP(K106,Proposito_programa!$C$2:$E$59,3,FALSE))," ",VLOOKUP(K106,Proposito_programa!$C$2:$E$59,3,FALSE)) -> Propósito 5: Construir Bogotá - Región con gobierno abierto, transparente y ciudadanía consciente | N106: 1696 | O106: 1 | P106: 79580307 | Q106: CESAR FRUTO CORREDOR | R106: Persona Natural | W106: 66000000 | Y106: 1 | Z106: 6000000 | AA106: 72000000 | AB106: 59800000 | AC106: 2023-01-31 | AD106: 2023-02-02 | AE106: 2024-02-01 | AF106: 330 | AG106: 1 | AH106: 30 | AQ106: En ejecución | AR106: 0.8305555556
A107: CPS-094-2023 | B107: 2023 | C107: FDRS-CD-074-2023 | D107: https://community.secop.gov.co/Public/Tendering/OpportunityDetail/Index?noticeUID=CO1.NTC.3893020&isFromPublicArea=True&isModal=False | E107: Contratos de prestación de servicios profesionales y de apoyo a la gestión | F107: Contratación directa | G107: Prestación de servicios profesionales y de apoyo a la gestión, o para la ejecución de trabajos artísticos que sólo puedan encomendarse a determinadas personas naturales | H107: PRESTAR SUS SERVICIOS PROFESIONALES PARA APOYAR EL CUBRIMIENTO DE LAS ACTIVIDADES, CRONOGRAMAS Y AGENDA DE LA ALCALDÍA LOCAL A NIVEL INTERNO Y EXTERNO, ASÍ COMO LA GENERACIÓN DE CONTENIDOS PERIODÍSTICOS | I107: Inversión | J107: Un nuevo contrato social y ambiental para la Bogotá del Siglo XXI | K107: 57 | L107: =IF(ISERROR(VLOOKUP(K107,Proposito_programa!$C$2:$E$59,2,FALSE))," ",VLOOKUP(K107,Proposito_programa!$C$2:$E$59,2,FALSE)) -> Gestión pública local | M107: =IF(ISERROR(VLOOKUP(K107,Proposito_programa!$C$2:$E$59,3,FALSE))," ",VLOOKUP(K107,Proposito_programa!$C$2:$E$59,3,FALSE)) -> Propósito 5: Construir Bogotá - Región con gobierno abierto, transparente y ciudadanía consciente | N107: 1696 | O107: 1 | P107: 1010031951 | Q107: JUAN DAVID AMAYA GOMEZ | R107: Persona Natural | W107: 24000000 | AA107: 24000000 | AB107: 24000000 | AC107: 2023-01-31 | AD107: 2023-02-03 | AE107: 2023-06-02 | AF107: 120 | AQ107: Terminado | AR107: 1
A108: CPS-095-2023 | B108: 2023 | C108: FDRS-CD-075-2023 | D108: https://community.secop.gov.co/Public/Tendering/OpportunityDetail/Index?noticeUID=CO1.NTC.3885403&isFromPublicArea=True&isModal=False | E108: Contratos de prestación de servicios profesionales y de apoyo a la gestión | F108: Contratación directa | G108: Prestación de servicios profesionales y de apoyo a la gestión, o para la ejecución de trabajos artísticos que sólo puedan encomendarse a determinadas personas naturales | H108: PRESTAR LOS SERVICIOS DE APOYO ADMINISTRATIVO Y TÉCNICO AL DESPACHO DE LA ALCALDÍA LOCAL DE SUMAPAZ | I108: Inversión | J108: Un nuevo contrato social y ambiental para la Bogotá del Siglo XXI | K108: 57 | L108: =IF(ISERROR(VLOOKUP(K108,Proposito_programa!$C$2:$E$59,2,FALSE))," ",VLOOKUP(K108,Proposito_programa!$C$2:$E$59,2,FALSE)) -> Gestión pública local | M108: =IF(ISERROR(VLOOKUP(K108,Proposito_programa!$C$2:$E$59,3,FALSE))," ",VLOOKUP(K108,Proposito_programa!$C$2:$E$59,3,FALSE)) -> Propósito 5: Construir Bogotá - Región con gobierno abierto, transparente y ciudadanía consciente | N108: 1696 | O108: 1 | P108: 1014296021 | Q108: MIGUEL ANGEL MARTINEZ GUEVARA | R108: Persona Natural | W108: 33000000 | AA108: 33000000 | AB108: 29400000 | AC108: 2023-01-31 | AD108: 2023-02-07 | AE108: 2024-01-06 | AF108: 330 | AQ108: En ejecución | AR108: 0.8909090909
A109: CPS-096-2023 | B109: 2023 | C109: FDRS-CD-076-2023 | D109: https://community.secop.gov.co/Public/Tendering/OpportunityDetail/Index?noticeUID=CO1.NTC.3886059&isFromPublicArea=True&isModal=False | E109: Contratos de prestación de servicios profesionales y de apoyo a la gestión | F109: Contratación directa | G109: Prestación de servicios profesionales y de apoyo a la gestión, o para la ejecución de trabajos artísticos que sólo puedan encomendarse a determinadas personas naturales | H109: BRINDAR APOYO TECNICO AL DESARROLLO DE LAS ACTIVIDADES DE INSEMINACIÓN, SANIDAD Y PRODUCCIÓN ANIMAL EN EL MARCO DE LA ASISTENCIA TÉCNICA AGROPECUARIA EN LA LOCALIDAD DE SUMAPAZ | I109: Inversión | J109: Un nuevo contrato social y ambiental para la Bogotá del Siglo XXI | K109: 23 | L109: =IF(ISERROR(VLOOKUP(K109,Proposito_programa!$C$2:$E$59,2,FALSE))," ",VLOOKUP(K109,Proposito_programa!$C$2:$E$59,2,FALSE)) -> Bogotá rural | M109: =IF(ISERROR(VLOOKUP(K109,Proposito_programa!$C$2:$E$59,3,FALSE))," ",VLOOKUP(K109,Proposito_programa!$C$2:$E$59,3,FALSE)) -> Propósito 1: Hacer un nuevo contrato social para incrementar la inclusión social, productiva y política | N109: 1634 | O109: 1 | P109: 1013608971 | Q109: EDWIN GUILLERMO GARZON ROJAS | R109: Persona Natural | W109: 33000000 | AA109: 33000000 | AB109: 29400000 | AC109: 2023-01-31 | AD109: 2023-02-07 | AE109: 2024-01-06 | AF109: 330 | AQ109: En ejecución | AR109: 0.8909090909
A110: CPS-097-2023 | B110: 2023 | C110: FDRS-CD-077-2023 | D110: https://community.secop.gov.co/Public/Tendering/OpportunityDetail/Index?noticeUID=CO1.NTC.3886245&isFromPublicArea=True&isModal=False | E110: Contratos de prestación de servicios profesionales y de apoyo a la gestión | F110: Contratación directa | G110: Prestación de servicios profesionales y de apoyo a la gestión, o para la ejecución de trabajos artísticos que sólo puedan encomendarse a determinadas personas naturales | H110: PRESTAR SERVICIOS PROFESIONALES PARA APOYAR LA FORMULACIÓN, IMPLEMENTACIÓN, SEGUIMIENTO DE PLANES Y PROYECTOS DE FONDO DE DESARROLLO RURAL DE SUMAPAZ, RELACIONADOS CON MUJER Y EQUIDAD DE GÉNERO, Y DEMÁS PROCESOS ASOCIADOS A SU TRANSVERSALIZACIÓN A NIVEL LOCAL. 1641 | I110: Inversión | J110: Un nuevo contrato social y ambiental para la Bogotá del Siglo XXI | K110: 6 | L110: =IF(ISERROR(VLOOKUP(K110,Proposito_programa!$C$2:$E$59,2,FALSE))," ",VLOOKUP(K110,Proposito_programa!$C$2:$E$59,2,FALSE)) -> Sistema Distrital de Cuidado | M110: =IF(ISERROR(VLOOKUP(K110,Proposito_programa!$C$2:$E$59,3,FALSE))," ",VLOOKUP(K110,Proposito_programa!$C$2:$E$59,3,FALSE)) -> Propósito 1: Hacer un nuevo contrato social para incrementar la inclusión social, productiva y política | N110: 1641 | O110: 1 | P110: 1001340804 | Q110: ANGIE PAOLA FORERO FONSECA | R110: Persona Natural | W110: 18400000 | X110: -1533334 | AA110: 16866666 | AB110: 16866666 | AC110: 2023-01-31 | AD110: 2023-02-06 | AE110: 2023-05-25 | AF110: 120 | AQ110: Terminado | AR110: 1
A111: CPS-098-2023 | B111: 2023 | C111: FDRS-CD-078-2023 | D111: https://community.secop.gov.co/Public/Tendering/OpportunityDetail/Index?noticeUID=CO1.NTC.3888790&isFromPublicArea=True&isModal=False | E111: Contratos de prestación de servicios profesionales y de apoyo a la gestión | F111: Contratación directa | G111: Prestación de servicios profesionales y de apoyo a la gestión, o para la ejecución de trabajos artísticos que sólo puedan encomendarse a determinadas personas naturales | H111: PRESTAR LOS SERVICIOS PROFESIONALES AL AREA DE GESTIÓN DE DESARROLLO LOCAL PARA APOYAR LA PLANEACIÓN, EJECUCIÓN Y SEGUIMIENTO A LOS PROYECTOS DE INVERSIÓN DE INFRAESTRUCTURA VIAL Y ACTIVIDADES DESIGNADAS POR EL DESPACHO DE LA ALCALDÍA LOCAL DE SUMAPAZ | I111: Inversión | J111: Un nuevo contrato social y ambiental para la Bogotá del Siglo XXI | K111: 49 | L111: =IF(ISERROR(VLOOKUP(K111,Proposito_programa!$C$2:$E$59,2,FALSE))," ",VLOOKUP(K111,Proposito_programa!$C$2:$E$59,2,FALSE)) -> Movilidad segura, sostenible y accesible | M111: =IF(ISERROR(VLOOKUP(K111,Proposito_programa!$C$2:$E$59,3,FALSE))," ",VLOOKUP(K111,Proposito_programa!$C$2:$E$59,3,FALSE)) -> Propósito 4: Hacer de Bogotá Región un modelo de movilidad multimodal, incluyente y sostenible | N111: 1688 | O111: 1 | P111: 1010222109 | Q111: NASLY XIMENA LOZANO GONZALEZ | R111: Persona Natural | W111: 55000000 | Y111: 1 | Z111: 15000000 | AA111: 70000000 | AB111: 49833333 | AC111: 2023-01-31 | AD111: 2023-02-02 | AE111: 2024-04-01 | AF111: 330 | AG111: 1 | AH111: 90 | AQ111: En ejecución | AR111: 0.7119047571
A112: CPS-099-2023 | B112: 2023 | C112: FDRS-CD-079-2023 | D112: https://community.secop.gov.co/Public/Tendering/OpportunityDetail/Index?noticeUID=CO1.NTC.3894811&isFromPublicArea=True&isModal=False | E112: Contratos de prestación de servicios profesionales y de apoyo a la gestión | F112: Contratación directa | G112: Prestación de servicios profesionales y de apoyo a la gestión, o para la ejecución de trabajos artísticos que sólo puedan encomendarse a determinadas personas naturales | H112: PRESTAR SUS SERVICIOS COMO AUXILIAR PARA APOYAR EL DESARROLLO DE LAS ACTIVIDADES REQUERIDAS PARA LA ADECUADA PRESTACIÓN DEL SERVICIO DE ASISTENCIA TÉCNICA AGROPECUARIA, EN LA LOCALIDAD | I112: Inversión | J112: Un nuevo contrato social y ambiental para la Bogotá del Siglo XXI | K112: 23 | L112: =IF(ISERROR(VLOOKUP(K112,Proposito_programa!$C$2:$E$59,2,FALSE))," ",VLOOKUP(K112,Proposito_programa!$C$2:$E$59,2,FALSE)) -> Bogotá rural | M112: =IF(ISERROR(VLOOKUP(K112,Proposito_programa!$C$2:$E$59,3,FALSE))," ",VLOOKUP(K112,Proposito_programa!$C$2:$E$59,3,FALSE)) -> Propósito 1: Hacer un nuevo contrato social para incrementar la inclusión social, productiva y política | N112: 1634 | O112: 1 | P112: 1032656480 | Q112: OMAR JAVIER GONZALEZ PENAGOS | R112: Persona Natural | W112: 19800000 | Y112: 1 | Z112: 1800000 | AA112: 21600000 | AB112: 17640000 | AC112: 2023-01-31 | AD112: 2023-02-07 | AE112: 2024-02-06 | AF112: 330 | AG112: 1 | AH112: 30 | AQ112: En ejecución | AR112: 0.8166666667
A113: CPS-100-2023 | B113: 2023 | C113: FDRS-CD-080-2023 | D113: https://community.secop.gov.co/Public/Tendering/OpportunityDetail/Index?noticeUID=CO1.NTC.3888365&isFromPublicArea=True&isModal=False | E113: Contratos de prestación de servicios profesionales y de apoyo a la gestión | F113: Contratación directa | G113: Prestación de servicios profesionales y de apoyo a la gestión, o para la ejecución de trabajos artísticos que sólo puedan encomendarse a determinadas personas naturales | H113: PRESTAR LOS SERVICIOS COMO AUXILIAR ADMINISTRATIVO AL PROYECTO DE ASISTENCIA TÉCNICA AGROPECUARIA Y AMBIENTAL DEL FONDO DE DESARROLLO RURAL DE SUMAPAZ | I113: Inversión | J113: Un nuevo contrato social y ambiental para la Bogotá del Siglo XXI | K113: 23 | L113: =IF(ISERROR(VLOOKUP(K113,Proposito_programa!$C$2:$E$59,2,FALSE))," ",VLOOKUP(K113,Proposito_programa!$C$2:$E$59,2,FALSE)) -> Bogotá rural | M113: =IF(ISERROR(VLOOKUP(K113,Proposito_programa!$C$2:$E$59,3,FALSE))," ",VLOOKUP(K113,Proposito_programa!$C$2:$E$59,3,FALSE)) -> Propósito 1: Hacer un nuevo contrato social para incrementar la inclusión social, productiva y política | N113: 1634 | O113: 1 | P113: 1003688569 | Q113: DUVAN RODRIGO MORENO ZAMBRANO | R113: Persona Natural | W113: 29700000 | Y113: 1 | Z113: 2700000 | AA113: 32400000 | AB113: 26460000 | AC113: 2023-01-31 | AD113: 2023-02-07 | AE113: 2024-02-06 | AF113: 330 | AG113: 1 | AH113: 30 | AQ113: En ejecución | AR113: 0.8166666667
A114: CPS-101-2023 | B114: 2023 | C114: FDRS-CD-081-2023 | D114: https://community.secop.gov.co/Public/Tendering/OpportunityDetail/Index?noticeUID=CO1.NTC.3888207&isFromPublicArea=True&isModal=False | E114: Contratos de prestación de servicios profesionales y de apoyo a la gestión | F114: Contratación directa | G114: Prestación de servicios profesionales y de apoyo a la gestión, o para la ejecución de trabajos artísticos que sólo puedan encomendarse a determinadas personas naturales | H114: PRESTAR SUS SERVICIOS COMO TÉCNICO DEPORTIVO DE APOYO EN LOS TEMAS DE RECREACIÓN Y DEPORTE PARA LA FORMACIÓN INTEGRAL Y DEPORTIVA DE LAS NIÑAS, NIÑOS Y ADOLESCENTES DE LA LOCALIDAD DE SUMAPAZ | I114: Inversión | J114: Un nuevo contrato social y ambiental para la Bogotá del Siglo XXI | K114: 20 | L114: =IF(ISERROR(VLOOKUP(K114,Proposito_programa!$C$2:$E$59,2,FALSE))," ",VLOOKUP(K114,Proposito_programa!$C$2:$E$59,2,FALSE)) -> Bogotá, referente en cultura, deporte, recreación y actividad física, con parques para el desarrollo y la salud | M114: =IF(ISERROR(VLOOKUP(K114,Proposito_programa!$C$2:$E$59,3,FALSE))," ",VLOOKUP(K114,Proposito_programa!$C$2:$E$59,3,FALSE)) -> Propósito 1: Hacer un nuevo contrato social para incrementar la inclusión social, productiva y política | N114: 1590 | O114: 1 | P114: 1032465730 | Q114: HAGGI STEVEN MONTAÑEZ CARO | R114: Persona Natural | W114: 34100000 | AA114: 34100000 | AB114: 27176666 | AC114: 2023-01-31 | AD114: 2023-02-08 | AE114: 2024-01-07 | AF114: 330 | AQ114: En ejecución | AR114: 0.7969696774
A115: CPS-102-2023 | B115: 2023 | C115: FDRS-CD-076-2023 | D115: https://community.secop.gov.co/Public/Tendering/OpportunityDetail/Index?noticeUID=CO1.NTC.3886059&isFromPublicArea=True&isModal=False | E115: Contratos de prestación de servicios profesionales y de apoyo a la gestión | F115: Contratación directa | G115: Prestación de servicios profesionales y de apoyo a la gestión, o para la ejecución de trabajos artísticos que sólo puedan encomendarse a determinadas personas naturales | H115: BRINDAR APOYO TÉCNICO AL DESARROLLO DE LAS ACTIVIDADES DE INSEMINACIÓN, SANIDAD Y PRODUCCIÓN ANIMAL EN EL MARCO DE LA ASISTENCIA TÉCNICA AGROPECUARIA EN LA LOCALIDAD DE SUMAPAZ | I115: Inversión | J115: Un nuevo contrato social y ambiental para la Bogotá del Siglo XXI | K115: 23 | L115: =IF(ISERROR(VLOOKUP(K115,Proposito_programa!$C$2:$E$59,2,FALSE))," ",VLOOKUP(K115,Proposito_programa!$C$2:$E$59,2,FALSE)) -> Bogotá rural | M115: =IF(ISERROR(VLOOKUP(K115,Proposito_programa!$C$2:$E$59,3,FALSE))," ",VLOOKUP(K115,Proposito_programa!$C$2:$E$59,3,FALSE)) -> Propósito 1: Hacer un nuevo contrato social para incrementar la inclusión social, productiva y política | N115: 1634 | O115: 1 | P115: 79519517 | Q115: LIBARDO DIAZ DIAZ | R115: Persona Natural | W115: $33.000.000 | Y115: 1 | Z115: 3000000 | AA115: 36000000 | AB115: 29200000 | AC115: 2023-01-31 | AD115: 2023-02-09 | AE115: 2024-02-08 | AF115: 330 | AG115: 1 | AH115: 30 | AQ115: En ejecución | AR115: 0.8111111111
A116: CPS-103-2023 | B116: 2023 | C116: FDRS-CD-082-2023 | D116: https://community.secop.gov.co/Public/Tendering/OpportunityDetail/Index?noticeUID=CO1.NTC.3887876&isFromPublicArea=True&isModal=False | E116: Contratos de prestación de servicios profesionales y de apoyo a la gestión | F116: Contratación directa | G116: Prestación de servicios profesionales y de apoyo a la gestión, o para la ejecución de trabajos artísticos que sólo puedan encomendarse a determinadas personas naturales | H116: PRESTAR LOS SERVICIOS PROFESIONALES DE APOYO EN LA FORMULACIÓN, ESTUDIOS DEL SECTOR Y REVISIÓN DE LOS ESTUDIOS PREVIOS DE LOS PROYECTOS DE INVERSIÓN DEL FONDO DE DESARROLLO LOCAL DE SUMAPAZ -1696 | I116: Inversión | J116: Un nuevo contrato social y ambiental para la Bogotá del Siglo XXI | K116: 57 | L116: =IF(ISERROR(VLOOKUP(K116,Proposito_programa!$C$2:$E$59,2,FALSE))," ",VLOOKUP(K116,Proposito_programa!$C$2:$E$59,2,FALSE)) -> Gestión pública local | M116: =IF(ISERROR(VLOOKUP(K116,Proposito_programa!$C$2:$E$59,3,FALSE))," ",VLOOKUP(K116,Proposito_programa!$C$2:$E$59,3,FALSE)) -> Propósito 5: Construir Bogotá - Región con gobierno abierto, transparente y ciudadanía consciente | N116: 1696 | O116: 1 | P116: 1022936744 | Q116: BAYRON ANDRES SUAREZ DIAZ | R116: Persona Natural | W116: $50.600.000 | AA116: 50600000 | AB116: 45233000 | AC116: 2023-01-31 | AD116: 2023-02-06 | AE116: 2024-01-05 | AF116: 330 | AQ116: En ejecución | AR116: 0.8939328063
A117: CPS-104-2023 | B117: 2023 | C117: FDRS-CD-083-2023 | D117: https://community.secop.gov.co/Public/Tendering/OpportunityDetail/Index?noticeUID=CO1.NTC.3888483&isFromPublicArea=True&isModal=False | E117: Contratos de prestación de servicios profesionales y de apoyo a la gestión | F117: Contratación directa | G117: Prestación de servicios profesionales y de apoyo a la gestión, o para la ejecución de trabajos artísticos que sólo puedan encomendarse a determinadas personas naturales | H117: PRESTAR LOS SERVICIOS DE APOYO ADMINISTRATIVO EN LOS PROCESOS DEL ÁREA DE GESTIÓN DE DESARROLLO LOCAL, DE LA ALCALDÍA LOCAL DE SUMAPAZ | I117: Inversión | J117: Un nuevo contrato social y ambiental para la Bogotá del Siglo XXI | K117: 57 | L117: =IF(ISERROR(VLOOKUP(K117,Proposito_programa!$C$2:$E$59,2,FALSE))," ",VLOOKUP(K117,Proposito_programa!$C$2:$E$59,2,FALSE)) -> Gestión pública local | M117: =IF(ISERROR(VLOOKUP(K117,Proposito_programa!$C$2:$E$59,3,FALSE))," ",VLOOKUP(K117,Proposito_programa!$C$2:$E$59,3,FALSE)) -> Propósito 5: Construir Bogotá - Región con gobierno abierto, transparente y ciudadanía consciente | N117: 1696 | O117: 1 | P117: 1007389859 | Q117: LAURENNY CAMILA MARTINEZ PINILLA | R117: Persona Natural | W117: $16.500.000 | Y117: 1 | Z117: 1500000 | AA117: 18000000 | AB117: 14850000 | AC117: 2023-01-31 | AD117: 2023-02-07 | AE117: 2024-02-06 | AF117: 330 | AG117: 1 | AH117: 30 | AI117: 35354326 | AJ117: SANDRA MARCELA PARRA ZAMBRANO | AK117: 2023-02-10 | AL117: 16350000 | AQ117: En ejecución | AR117: 0.825
A118: CPS-105-2023 | B118: 2023 | C118: FDRS-CD-084-2023 | D118: https://community.secop.gov.co/Public/Tendering/OpportunityDetail/Index?noticeUID=CO1.NTC.3889848&isFromPublicArea=True&isModal=False | E118: Contratos de prestación de servicios profesionales y de apoyo a la gestión | F118: Contratación directa | G118: Prestación de servicios profesionales y de apoyo a la gestión, o para la ejecución de trabajos artísticos que sólo puedan encomendarse a determinadas personas naturales | H118: PRESTAR SUS SERVICIOS ARTÍSTICOS Y DE TEJIDO PARA APOYAR LA GESTIÓN CULTURAL DE LA LOCALIDAD DE SUMAPAZ 1633 | I118: Inversión | J118: Un nuevo contrato social y ambiental para la Bogotá del Siglo XXI | K118: 21 | L118: =IF(ISERROR(VLOOKUP(K118,Proposito_programa!$C$2:$E$59,2,FALSE))," ",VLOOKUP(K118,Proposito_programa!$C$2:$E$59,2,FALSE)) -> Creación y vida cotidiana: Apropiación ciudadana del arte, la cultura y el patrimonio, para la democracia cultural | M118: =IF(ISERROR(VLOOKUP(K118,Proposito_programa!$C$2:$E$59,3,FALSE))," ",VLOOKUP(K118,Proposito_programa!$C$2:$E$59,3,FALSE)) -> Propósito 1: Hacer un nuevo contrato social para incrementar la inclusión social, productiva y política | N118: 1633 | O118: 1 | P118: 25742275 | Q118: EVA SANCHEZ CONEJO | R118: Persona Natural | W118: $22.000.000 | Y118: 1 | Z118: 4000000 | AA118: 26000000 | AB118: 19666666 | AC118: 2023-01-31 | AD118: 2023-02-06 | AE118: 2024-03-05 | AF118: 330 | AG118: 1 | AH118: 60 | AQ118: En ejecución | AR118: 0.7564102308
A119: CPS-106-2023 | B119: 2023 | C119: FDRS-CD-085-2023 | D119: https://community.secop.gov.co/Public/Tendering/OpportunityDetail/Index?noticeUID=CO1.NTC.3891646&isFromPublicArea=True&isModal=False | E119: Contratos de prestación de servicios profesionales y de apoyo a la gestión | F119: Contratación directa | G119: Prestación de servicios profesionales y de apoyo a la gestión, o para la ejecución de trabajos artísticos que sólo puedan encomendarse a determinadas personas naturales | H119: PRESTAR SUS SERVICIOS PROFESIONALES DE APOYO AL ÁREA DE GESTIÓN DEL DESARROLLO LOCAL EN LA GESTIÓN CONTRACTUAL DEL FONDO DE DESARROLLO LOCAL DE SUMAPAZ | I119: Inversión | J119: Un nuevo contrato social y ambiental para la Bogotá del Siglo XXI | K119: 57 | L119: =IF(ISERROR(VLOOKUP(K119,Proposito_programa!$C$2:$E$59,2,FALSE))," ",VLOOKUP(K119,Proposito_programa!$C$2:$E$59,2,FALSE)) -> Gestión pública local | M119: =IF(ISERROR(VLOOKUP(K119,Proposito_programa!$C$2:$E$59,3,FALSE))," ",VLOOKUP(K119,Proposito_programa!$C$2:$E$59,3,FALSE)) -> Propósito 5: Construir Bogotá - Región con gobierno abierto, transparente y ciudadanía consciente | N119: 1696 | O119: 1 | P119: 52157289 | Q119: NANCY YAMILE MARTINEZ BOHORQUEZ | R119: Persona Natural | W119: $60.500.000 | Y119: 1 | Z119: 5500000 | AA119: 66000000 | AB119: 54633332 | AC119: 2023-02-01 | AD119: 2023-02-03 | AE119: 2024-02-02 | AF119: 330 | AG119: 1 | AH119: 30 | AI119: 1026560560 | AJ119: JIMMY ALEXANDER MENDOZA OSORIO | AK119: 2023-11-03 | AL119: 11000001 | AQ119: En ejecución | AR119: 0.8277777576
A120: CPS-107-2023 | B120: 2023 | C120: FDRS-CD-085-2023 | D120: https://community.secop.gov.co/Public/Tendering/OpportunityDetail/Index?noticeUID=CO1.NTC.3891646&isFromPublicArea=True&isModal=False | E120: Contratos de prestación de servicios profesionales y de apoyo a la gestión | F120: Contratación directa | G120: Prestación de servicios profesionales y de apoyo a la gestión, o para la ejecución de trabajos artísticos que sólo puedan encomendarse a determinadas personas naturales | H120: PRESTAR SUS SERVICIOS PROFESIONALES DE APOYO AL ÁREA DE GESTIÓN DEL DESARROLLO LOCAL EN LA GESTIÓN CONTRACTUAL DEL FONDO DE DESARROLLO LOCAL DE SUMAPAZ | I120: Inversión | J120: Un nuevo contrato social y ambiental para la Bogotá del Siglo XXI | K120: 57 | L120: =IF(ISERROR(VLOOKUP(K120,Proposito_programa!$C$2:$E$59,2,FALSE))," ",VLOOKUP(K120,Proposito_programa!$C$2:$E$59,2,FALSE)) -> Gestión pública local | M120: =IF(ISERROR(VLOOKUP(K120,Proposito_programa!$C$2:$E$59,3,FALSE))," ",VLOOKUP(K120,Proposito_programa!$C$2:$E$59,3,FALSE)) -> Propósito 5: Construir Bogotá - Región con gobierno abierto, transparente y ciudadanía consciente | N120: 1696 | O120: 1 | P120: 1053344353 | Q120: ROBIDSON GERARDO NIÑO RUIZ | R120: Persona Natural | W120: $60.500.000 | Y120: 1 | Z120: 5500000 | AA120: =+W120+X120+Z120 -> 66000000 | AB120: 54633333 | AC120: 2023-02-01 | AD120: 2023-02-03 | AE120: 2024-02-02 | AF120: 330 | AG120: 1 | AH120: 30 | AQ120: En ejecución | AR120: 0.8277777727
A121: CPS-108-2023 | B121: 2023 | C121: FDRS-CD-085-2023 | D121: https://community.secop.gov.co/Public/Tendering/OpportunityDetail/Index?noticeUID=CO1.NTC.3891646&isFromPublicArea=True&isModal=False | E121: Contratos de prestación de servicios profesionales y de apoyo a la gestión | F121: Contratación directa | G121: Prestación de servicios profesionales y de apoyo a la gestión, o para la ejecución de trabajos artísticos que sólo puedan encomendarse a determinadas personas naturales | H121: PRESTAR SUS SERVICIOS PROFESIONALES DE APOYO AL ÁREA DE GESTIÓN DEL DESARROLLO LOCAL EN LA GESTIÓN CONTRACTUAL DEL FONDO DE DESARROLLO LOCAL DE SUMAPAZ | I121: Inversión | J121: Un nuevo contrato social y ambiental para la Bogotá del Siglo XXI | K121: 57 | L121: =IF(ISERROR(VLOOKUP(K121,Proposito_programa!$C$2:$E$59,2,FALSE))," ",VLOOKUP(K121,Proposito_programa!$C$2:$E$59,2,FALSE)) -> Gestión pública local | M121: =IF(ISERROR(VLOOKUP(K121,Proposito_programa!$C$2:$E$59,3,FALSE))," ",VLOOKUP(K121,Proposito_programa!$C$2:$E$59,3,FALSE)) -> Propósito 5: Construir Bogotá - Región con gobierno abierto, transparente y ciudadanía consciente | N121: 1696 | O121: 1 | P121: 80829955 | Q121: ANDERSSON CAMILO USSA SANCHEZ | R121: Persona Natural | W121: $60.500.000 | Y121: 1 | Z121: 5500000 | AA121: 66000000 | AB121: 46383332 | AC121: 2023-02-01 | AD121: 2023-02-08 | AE121: 2024-02-21 | AF121: 330 | AG121: 1 | AH121: 30 | AI121: 1033734844 | AJ121: IVAN DARIO PACHON BARRETO | AK121: 2023-07-11 | AL121: 35200000 | AQ121: En ejecución | AR121: 0.7027777576
A122: CPS-109-2023 | B122: 2023 | C122: FDRS-CD-086-2023 | D122: https://community.secop.gov.co/Public/Tendering/OpportunityDetail/Index?noticeUID=CO1.NTC.3893697&isFromPublicArea=True&isModal=False | E122: Contratos de prestación de servicios profesionales y de apoyo a la gestión | F122: Contratación directa | G122: Prestación de servicios profesionales y de apoyo a la gestión, o para la ejecución de trabajos artísticos que sólo puedan encomendarse a determinadas personas naturales | H122: PRESTAR LOS SERVICIOS PROFESIONALES AL AREA DE GESTIÓN DEL DESARROLLO LOCAL, PARA APOYAR LA ELABORACIÓN DE ESTUDIOS DEL SECTOR Y EVALUACIONES EN LA GESTIÓN CONTRACTUAL DEL FONDO DE DESARROLLO RURAL DE SUMAPAZ | I122: Inversión | J122: Un nuevo contrato social y ambiental para la Bogotá del Siglo XXI | K122: 57 | L122: =IF(ISERROR(VLOOKUP(K122,Proposito_programa!$C$2:$E$59,2,FALSE))," ",VLOOKUP(K122,Proposito_programa!$C$2:$E$59,2,FALSE)) -> Gestión pública local | M122: =IF(ISERROR(VLOOKUP(K122,Proposito_programa!$C$2:$E$59,3,FALSE))," ",VLOOKUP(K122,Proposito_programa!$C$2:$E$59,3,FALSE)) -> Propósito 5: Construir Bogotá - Región con gobierno abierto, transparente y ciudadanía consciente | N122: 1696 | O122: 1 | P122: 1022379621 | Q122: RICARDO FONSECA PONTILUIS | R122: Persona Natural | W122: $55.000.000 | AA122: 55000000 | AB122: 49000000 | AC122: 2023-01-31 | AD122: 2023-02-07 | AE122: 2024-01-06 | AF122: 330 | AQ122: En ejecución | AR122: 0.8909090909
A123: CPS-110-2023 | B123: 2023 | C123: FDRS-CD-042-2023 | D123: https://community.secop.gov.co/Public/Tendering/OpportunityDetail/Index?noticeUID=CO1.NTC.3854257&isFromPublicArea=True&isModal=False | E123: Contratos de prestación de servicios profesionales y de apoyo a la gestión | F123: Contratación directa | G123: Prestación de servicios profesionales y de apoyo a la gestión, o para la ejecución de trabajos artísticos que sólo puedan encomendarse a determinadas personas naturales | H123: PRESTAR LOS SERVICIOS PROFESIONALES JURIDICOS PARA APOYAR LOS ASUNTOS PRECONTRACTUALES, CONTRACTUALES Y POST-CONTRACTUALES DEL ÁREA DE GESTIÓN DE DESARROLLO LOCAL DE LA ALCALDÍA LOCAL DE SUMAPAZ | I123: Inversión | J123: Un nuevo contrato social y ambiental para la Bogotá del Siglo XXI | K123: 57 | L123: =IF(ISERROR(VLOOKUP(K123,Proposito_programa!$C$2:$E$59,2,FALSE))," ",VLOOKUP(K123,Proposito_programa!$C$2:$E$59,2,FALSE)) -> Gestión pública local | M123: =IF(ISERROR(VLOOKUP(K123,Proposito_programa!$C$2:$E$59,3,FALSE))," ",VLOOKUP(K123,Proposito_programa!$C$2:$E$59,3,FALSE)) -> Propósito 5: Construir Bogotá - Región con gobierno abierto, transparente y ciudadanía consciente | N123: 1696 | O123: 1 | P123: 52900762 | Q123: JENNY CAROLINA GIRON CUERVO | R123: Persona Natural | W123: $66.000.000 | Y123: 1 | Z123: 12000000 | AA123: 78000000 | AB123: 59800000 | AC123: 2023-01-31 | AD123: 2023-02-02 | AE123: 2024-03-01 | AF123: 330 | AG123: 1 | AH123: 60 | AQ123: En ejecución | AR123: 0.7666666667
A124: CPS-111-2023 | B124: 2023 | C124: FDRS-CD-087-2023 | D124: https://community.secop.gov.co/Public/Tendering/OpportunityDetail/Index?noticeUID=CO1.NTC.3891911&isFromPublicArea=True&isModal=False | E124: Contratos de prestación de servicios profesionales y de apoyo a la gestión | F124: Contratación directa | G124: Prestación de servicios profesionales y de apoyo a la gestión, o para la ejecución de trabajos artísticos que sólo puedan encomendarse a determinadas personas naturales | H124: PRESTAR LOS SERVICIOS PROFESIONALES AL ÁREA DE GESTIÓN DE DESARROLLO LOCAL PARA APOYAR LA PLANEACIÓN, EJECUCIÓN Y SEGUIMIENTO A LOS PROYECTOS DE INVERSIÓN DE INFRAESTRUCTURA VIAL Y ACTIVIDADES DESIGNADAS POR EL DESPACHO DE LA ALCALDÍA LOCAL DE SUMAPAZ | I124: Inversión | J124: Un nuevo contrato social y ambiental para la Bogotá del Siglo XXI | K124: 49 | L124: =IF(ISERROR(VLOOKUP(K124,Proposito_programa!$C$2:$E$59,2,FALSE))," ",VLOOKUP(K124,Proposito_programa!$C$2:$E$59,2,FALSE)) -> Movilidad segura, sostenible y accesible | M124: =IF(ISERROR(VLOOKUP(K124,Proposito_programa!$C$2:$E$59,3,FALSE))," ",VLOOKUP(K124,Proposito_programa!$C$2:$E$59,3,FALSE)) -> Propósito 4: Hacer de Bogotá Región un modelo de movilidad multimodal, incluyente y sostenible | N124: 1688 | O124: 1 | P124: 1193047676 | Q124: LAURA MARCELA ROJAS MARROQUIN | R124: Persona Natural | W124: $50.600.000 | Y124: 1 | Z124: 9200000 | AA124: 59800000 | AB124: 45080000 | AC124: 2023-01-31 | AD124: 2023-02-07 | AE124: 2024-03-06 | AF124: 330 | AG124: 1 | AH124: 60 | AQ124: En ejecución | AR124: 0.7538461538
A125: CPS-112-2023 | B125: 2023 | C125: FDRS-CD-088-2023 | D125: https://community.secop.gov.co/Public/Tendering/OpportunityDetail/Index?noticeUID=CO1.NTC.3890790&isFromPublicArea=True&isModal=False | E125: Contratos de prestación de servicios profesionales y de apoyo a la gestión | F125: Contratación directa | G125: Prestación de servicios profesionales y de apoyo a la gestión, o para la ejecución de trabajos artísticos que sólo puedan encomendarse a determinadas personas naturales | H125: PRESTAR LOS SERVICIOS PROFESIONALES AL ÁREA DE GESTIÓN DE DESARROLLO LOCAL, EN LOS PROCESOS DE PLANEACIÓN, ADMINISTRATIVOS, FINANCIEROS Y PRESUPUESTALES, DE LA ALCALDÍA LOCAL DE SUMAPAZ | I125: Inversión | J125: Un nuevo contrato social y ambiental para la Bogotá del Siglo XXI | K125: 57 | L125: =IF(ISERROR(VLOOKUP(K125,Proposito_programa!$C$2:$E$59,2,FALSE))," ",VLOOKUP(K125,Proposito_programa!$C$2:$E$59,2,FALSE)) -> Gestión pública local | M125: =IF(ISERROR(VLOOKUP(K125,Proposito_programa!$C$2:$E$59,3,FALSE))," ",VLOOKUP(K125,Proposito_programa!$C$2:$E$59,3,FALSE)) -> Propósito 5: Construir Bogotá - Región con gobierno abierto, transparente y ciudadanía consciente | N125: 1696 | O125: 1 | P125: 39682218 | Q125: GEMA ORTEGA TRUJILLO | R125: Persona Natural | W125: $104.500.000 | Y125: 1 | Z125: 18683333 | AA125: 123183333 | AB125: 94683333 | AC125: 2023-01-31 | AD125: 2023-02-02 | AE125: 2024-02-29 | AF125: 330 | AG125: 1 | AH125: 59 | AQ125: En ejecución | AR125: 0.7686375315
A126: CPS-113-2023 | B126: 2023 | C126: FDRS-CD-042-2023 | D126: https://community.secop.gov.co/Public/Tendering/OpportunityDetail/Index?noticeUID=CO1.NTC.3854257&isFromPublicArea=True&isModal=False | E126: Contratos de prestación de servicios profesionales y de apoyo a la gestión | F126: Contratación directa | G126: Prestación de servicios profesionales y de apoyo a la gestión, o para la ejecución de trabajos artísticos que sólo puedan encomendarse a determinadas personas naturales | H126: PRESTAR LOS SERVICIOS PROFESIONALES JURIDICOS PARA APOYAR LOS ASUNTOS PRECONTRACTUALES, CONTRACTUALES Y POST-CONTRACTUALES DEL ÁREA DE GESTIÓN DE DESARROLLO LOCAL DE LA ALCALDÍA LOCAL DE SUMAPAZ | I126: Inversión | J126: Un nuevo contrato social y ambiental para la Bogotá del Siglo XXI | K126: 57 | L126: =IF(ISERROR(VLOOKUP(K126,Proposito_programa!$C$2:$E$59,2,FALSE))," ",VLOOKUP(K126,Proposito_programa!$C$2:$E$59,2,FALSE)) -> Gestión pública local | M126: =IF(ISERROR(VLOOKUP(K126,Proposito_programa!$C$2:$E$59,3,FALSE))," ",VLOOKUP(K126,Proposito_programa!$C$2:$E$59,3,FALSE)) -> Propósito 5: Construir Bogotá - Región con gobierno abierto, transparente y ciudadanía consciente | N126: 1696 | O126: 1 | P126: 1214213207 | Q126: LINNA NATALY CABRA COY | R126: Persona Natural | W126: $66.000.000 | Y126: 1 | Z126: 12000000 | AA126: 78000000 | AB126: 59800000 | AC126: 2023-01-31 | AD126: 2023-02-02 | AE126: 2024-03-01 | AF126: 330 | AG126: 1 | AH126: 60 | AI126: 1055963762 | AJ126: MONICA YAQUELINE GONZALEZ CASTAÑEDA | AK126: 2023-12-29 | AL126: 12600000 | AQ126: En ejecución | AR126: 0.7666666667
A127: CPS-114-2023 | B127: 2023 | C127: FDRS-CD-089-2023 | D127: https://community.secop.gov.co/Public/Tendering/OpportunityDetail/Index?noticeUID=CO1.NTC.3893870&isFromPublicArea=True&isModal=False | E127: Contratos de prestación de servicios profesionales y de apoyo a la gestión | F127: Contratación directa | G127: Prestación de servicios profesionales y de apoyo a la gestión, o para la ejecución de trabajos artísticos que sólo puedan encomendarse a determinadas personas naturales | H127: PRESTAR LOS SERVICIOS PROFESIONALES AL ADGDL, PARA ADELANTAR LA PLANEACIÓN, SEGUIMIENTO Y EJECUCIÓN DEL TRANSPORTE DE PASAJEROS QUE SE PRESTA TANTO CON LOS VEHÍCULOS LIVIANOS DE PROPIEDAD DEL FDRS Y EL CONTRATO QUE SE TIENE SUSCRITO PARA ESTE SERVICIO | I127: Inversión | J127: Un nuevo contrato social y ambiental para la Bogotá del Siglo XXI | K127: 57 | L127: =IF(ISERROR(VLOOKUP(K127,Proposito_programa!$C$2:$E$59,2,FALSE))," ",VLOOKUP(K127,Proposito_programa!$C$2:$E$59,2,FALSE)) -> Gestión pública local | M127: =IF(ISERROR(VLOOKUP(K127,Proposito_programa!$C$2:$E$59,3,FALSE))," ",VLOOKUP(K127,Proposito_programa!$C$2:$E$59,3,FALSE)) -> Propósito 5: Construir Bogotá - Región con gobierno abierto, transparente y ciudadanía consciente | N127: 1696 | O127: 1 | P127: 3096924 | Q127: JAVIER ENRIQUE BUITRAGO GOMEZ | R127: Persona Natural | W127: $77.000.000 | AA127: 77000000 | AB127: 68366667 | AC127: 2023-01-31 | AD127: 2023-02-08 | AE127: 2024-01-07 | AF127: 330 | AQ127: En ejecución | AR127: 0.8878787922
A128: CPS-115-2023 | B128: 2023 | C128: FDRS-CD-042-2023 | D128: https://community.secop.gov.co/Public/Tendering/OpportunityDetail/Index?noticeUID=CO1.NTC.3854257&isFromPublicArea=True&isModal=False | E128: Contratos de prestación de servicios profesionales y de apoyo a la gestión | F128: Contratación directa | G128: Prestación de servicios profesionales y de apoyo a la gestión, o para la ejecución de trabajos artísticos que sólo puedan encomendarse a determinadas personas naturales | H128: PRESTAR LOS SERVICIOS PROFESIONALES JURIDICOS PARA APOYAR LOS ASUNTOS PRECONTRACTUALES, CONTRACTUALES Y POST-CONTRACTUALES DEL ÁREA DE GESTIÓN DE DESARROLLO LOCAL DE LA ALCALDÍA LOCAL DE SUMAPAZ | I128: Inversión | J128: Un nuevo contrato social y ambiental para la Bogotá del Siglo XXI | K128: 57 | L128: =IF(ISERROR(VLOOKUP(K128,Proposito_programa!$C$2:$E$59,2,FALSE))," ",VLOOKUP(K128,Proposito_programa!$C$2:$E$59,2,FALSE)) -> Gestión pública local | M128: =IF(ISERROR(VLOOKUP(K128,Proposito_programa!$C$2:$E$59,3,FALSE))," ",VLOOKUP(K128,Proposito_programa!$C$2:$E$59,3,FALSE)) -> Propósito 5: Construir Bogotá - Región con gobierno abierto, transparente y ciudadanía consciente | N128: 1696 | O128: 1 | P128: 1022981158 | Q128: ANDRES FELIPE BONILLA ZULUAGA | R128: Persona Natural | W128: $66.000.000 | Y128: 1 | Z128: 6000000 | AA128: 72000000 | AB128: 59800000 | AC128: 2023-02-01 | AD128: 2023-02-02 | AE128: 2024-02-01 | AF128: 330 | AG128: 1 | AH128: 30 | AQ128: En ejecución | AR128: 0.8305555556
A129: CPS-116-2023 | B129: 2023 | C129: FDRS-CD-090-2023 | D129: https://community.secop.gov.co/Public/Tendering/OpportunityDetail/Index?noticeUID=CO1.NTC.3891849&isFromPublicArea=True&isModal=False | E129: Contratos de prestación de servicios profesionales y de apoyo a la gestión | F129: Contratación directa | G129: Prestación de servicios profesionales y de apoyo a la gestión, o para la ejecución de trabajos artísticos que sólo puedan encomendarse a determinadas personas naturales | H129: PRESTAR LOS SERVICIOS COMO AUXILIAR ADMINISTRATIVO Y ARTICULADOR COMUNITARIO EN LA EJECUCIÓN DEL PROYECTO DE EDUCACIÓN DE LA ALCALDÍA LOCAL DE SUMAPAZ | I129: Inversión | J129: Un nuevo contrato social y ambiental para la Bogotá del Siglo XXI | K129: 18 | L129: =IF(ISERROR(VLOOKUP(K129,Proposito_programa!$C$2:$E$59,2,FALSE))," ",VLOOKUP(K129,Proposito_programa!$C$2:$E$59,2,FALSE)) -> Cierre de brechas para la inclusión productiva urbano rural | M129: =IF(ISERROR(VLOOKUP(K129,Proposito_programa!$C$2:$E$59,3,FALSE))," ",VLOOKUP(K129,Proposito_programa!$C$2:$E$59,3,FALSE)) -> Propósito 1: Hacer un nuevo contrato social para incrementar la inclusión social, productiva y política | N129: 1587 | O129: 1 | P129: 1023009879 | Q129: ERIKA MARCELA ROMERO PEREZ | R129: Persona Natural | W129: $29.700.000 | AA129: 29700000 | AB129: 26550000 | AC129: 2023-01-31 | AD129: 2023-02-06 | AE129: 2024-01-05 | AF129: 330 | AQ129: En ejecución | AR129: 0.8939393939
A130: CPS-117-2023 | B130: 2023 | C130: FDRS-CD-042-2023 | D130: https://community.secop.gov.co/Public/Tendering/OpportunityDetail/Index?noticeUID=CO1.NTC.3854257&isFromPublicArea=True&isModal=False | E130: Contratos de prestación de servicios profesionales y de apoyo a la gestión | F130: Contratación directa | G130: Prestación de servicios profesionales y de apoyo a la gestión, o para la ejecución de trabajos artísticos que sólo puedan encomendarse a determinadas personas naturales | H130: PRESTAR LOS SERVICIOS PROFESIONALES JURÍDICOS PARA APOYAR LOS ASUNTOS PRECONTRACTUALES, CONTRACTUALES Y POST-CONTRACTUALES DEL ÁREA DE GESTIÓN DE DESARROLLO LOCAL DE LA ALCALDÍA LOCAL DE SUMAPAZ | I130: Inversión | J130: Un nuevo contrato social y ambiental para la Bogotá del Siglo XXI | K130: 57 | L130: =IF(ISERROR(VLOOKUP(K130,Proposito_programa!$C$2:$E$59,2,FALSE))," ",VLOOKUP(K130,Proposito_programa!$C$2:$E$59,2,FALSE)) -> Gestión pública local | M130: =IF(ISERROR(VLOOKUP(K130,Proposito_programa!$C$2:$E$59,3,FALSE))," ",VLOOKUP(K130,Proposito_programa!$C$2:$E$59,3,FALSE)) -> Propósito 5: Construir Bogotá - Región con gobierno abierto, transparente y ciudadanía consciente | N130: 1696 | O130: 1 | P130: 1053777573 | Q130: CAMILO ANDRES PATIÑO CARDONA | R130: Persona Natural | W130: $66.000.000 | AA130: 66000000 | AB130: 59800000 | AC130: 2023-01-31 | AD130: 2023-02-02 | AE130: 2024-01-01 | AF130: 330 | AQ130: En ejecución | AR130: 0.9060606061
A131: CPS-118-2023 | B131: 2023 | C131: FDRS-CD-091-2023 | D131: https://community.secop.gov.co/Public/Tendering/OpportunityDetail/Index?noticeUID=CO1.NTC.3893845&isFromPublicArea=True&isModal=False | E131: Contratos de prestación de servicios profesionales y de apoyo a la gestión | F131: Contratación directa | G131: Prestación de servicios profesionales y de apoyo a la gestión, o para la ejecución de trabajos artísticos que sólo puedan encomendarse a determinadas personas naturales | H131: PRESTAR LOS SERVICIOS PROFESIONALES PARA APOYAR LA PLANEACIÓN, EJECUCIÓN Y SEGUIMIENTO DE LOS PROYECTOS DE INVERSIÓN EN TEMAS DE CULTURA QUE EJECUTE EL FONDO DE DESARROLLO LOCAL DE SUMAPAZ | I131: Inversión | J131: Un nuevo contrato social y ambiental para la Bogotá del Siglo XXI | K131: 21 | L131: =IF(ISERROR(VLOOKUP(K131,Proposito_programa!$C$2:$E$59,2,FALSE))," ",VLOOKUP(K131,Proposito_programa!$C$2:$E$59,2,FALSE)) -> Creación y vida cotidiana: Apropiación ciudadana del arte, la cultura y el patrimonio, para la democracia cultural | M131: =IF(ISERROR(VLOOKUP(K131,Proposito_programa!$C$2:$E$59,3,FALSE))," ",VLOOKUP(K131,Proposito_programa!$C$2:$E$59,3,FALSE)) -> Propósito 1: Hacer un nuevo contrato social para incrementar la inclusión social, productiva y política | N131: 1633 | O131: 1 | P131: 1023894409 | Q131: LEIDY LORENA SALAZAR AGUIRRE | R131: Persona Natural | W131: $26.000.000 | AA131: 26000000 | AB131: 26000000 | AC131: 2023-01-31 | AD131: 2023-02-07 | AE131: 2023-06-06 | AF131: 120 | AQ131: Terminado | AR131: 1
A132: CPS-119-2023 | B132: 2023 | C132: FDRS-CD-042-2023 | D132: https://community.secop.gov.co/Public/Tendering/OpportunityDetail/Index?noticeUID=CO1.NTC.3854257&isFromPublicArea=True&isModal=False | E132: Contratos de prestación de servicios profesionales y de apoyo a la gestión | F132: Contratación directa | G132: Prestación de servicios profesionales y de apoyo a la gestión, o para la ejecución de trabajos artísticos que sólo puedan encomendarse a determinadas personas naturales | H132: PRESTAR LOS SERVICIOS PROFESIONALES JURIDICOS PARA APOYAR LOS ASUNTOS PRECONTRACTUALES, CONTRACTUALES Y POST-CONTRACTUALES DEL ÁREA DE GESTIÓN DE DESARROLLO LOCAL DE LA ALCALDÍA LOCAL DE SUMAPAZ | I132: Inversión | J132: Un nuevo contrato social y ambiental para la Bogotá del Siglo XXI | K132: 57 | L132: =IF(ISERROR(VLOOKUP(K132,Proposito_programa!$C$2:$E$59,2,FALSE))," ",VLOOKUP(K132,Proposito_programa!$C$2:$E$59,2,FALSE)) -> Gestión pública local | M132: =IF(ISERROR(VLOOKUP(K132,Proposito_programa!$C$2:$E$59,3,FALSE))," ",VLOOKUP(K132,Proposito_programa!$C$2:$E$59,3,FALSE)) -> Propósito 5: Construir Bogotá - Región con gobierno abierto, transparente y ciudadanía consciente | N132: 1696 | O132: 1 | P132: 52777050 | Q132: MIRYAM CRISTINA PARRA DUQUE | R132: Persona Natural | W132: $66.000.000 | Y132: 1 | Z132: 12000000 | AA132: 78000000 | AB132: 57400000 | AC132: 2023-01-31 | AD132: 2023-02-14 | AE132: 2024-03-13 | AF132: 330 | AG132: 1 | AH132: 60 | AQ132: En ejecución | AR132: 0.7358974359
A133: CPS-120-2023 | B133: 2023 | C133: FDRS-CD-092-2023 | D133: https://community.secop.gov.co/Public/Tendering/OpportunityDetail/Index?noticeUID=CO1.NTC.3893138&isFromPublicArea=True&isModal=False | E133: Contratos de prestación de servicios profesionales y de apoyo a la gestión | F133: Contratación directa | G133: Prestación de servicios profesionales y de apoyo a la gestión, o para la ejecución de trabajos artísticos que sólo puedan encomendarse a determinadas personas naturales | H133: PRESTAR LOS SERVICIOS PROFESIONALES ESPECIALIZADOS PARA GESTIONAR LOS PROYECTOS DE INVERSIÓN DE INFRAESTRUCTURA VIAL, QUE SE EJECUTAN CON LOS RECURSOS DEL FONDO DE DESARROLLO RURAL DE SUMAPAZ | I133: Inversión | J133: Un nuevo contrato social y ambiental para la Bogotá del Siglo XXI | K133: 49 | L133: =IF(ISERROR(VLOOKUP(K133,Proposito_programa!$C$2:$E$59,2,FALSE))," ",VLOOKUP(K133,Proposito_programa!$C$2:$E$59,2,FALSE)) -> Movilidad segura, sostenible y accesible | M133: =IF(ISERROR(VLOOKUP(K133,Proposito_programa!$C$2:$E$59,3,FALSE))," ",VLOOKUP(K133,Proposito_programa!$C$2:$E$59,3,FALSE)) -> Propósito 4: Hacer de Bogotá Región un modelo de movilidad multimodal, incluyente y sostenible | N133: 1688 | O133: 1 | P133: 1024474457 | Q133: NELSON FERNEY ESTRADA GONZALEZ | R133: Persona Natural | W133: $88.000.000 | X133: -58133333 | AA133: 29866667 | AB133: 29866667 | AC133: 2023-01-31 | AD133: 2023-02-03 | AE133: 2023-05-24 | AF133: 330 | AQ133: Terminado | AR133: 1
A134: CPS-121-2023 | B134: 2023 | C134: FDRS-CD-093-2023 | D134: https://community.secop.gov.co/Public/Tendering/OpportunityDetail/Index?noticeUID=CO1.NTC.3893414&isFromPublicArea=True&isModal=False | E134: Contratos de prestación de servicios profesionales y de apoyo a la gestión | F134: Contratación directa | G134: Prestación de servicios profesionales y de apoyo a la gestión, o para la ejecución de trabajos artísticos que sólo puedan encomendarse a determinadas personas naturales | H134: PRESTAR LOS SERVICIOS COMO AUXILIAR DE APOYO ADMINISTRATIVO AL ÁREA DE GESTIÓN DE DESARROLLO LOCAL, DE LA ALCALDÍA LOCAL DE SUMAPAZ | I134: Inversión | J134: Un nuevo contrato social y ambiental para la Bogotá del Siglo XXI | K134: 57 | L134: =IF(ISERROR(VLOOKUP(K134,Proposito_programa!$C$2:$E$59,2,FALSE))," ",VLOOKUP(K134,Proposito_programa!$C$2:$E$59,2,FALSE)) -> Gestión pública local | M134: =IF(ISERROR(VLOOKUP(K134,Proposito_programa!$C$2:$E$59,3,FALSE))," ",VLOOKUP(K134,Proposito_programa!$C$2:$E$59,3,FALSE)) -> Propósito 5: Construir Bogotá - Región con gobierno abierto, transparente y ciudadanía consciente | N134: 1696 | O134: 1 | P134: 35353519 | Q134: LEIDY BIBIANA GONZALEZ FUYO | R134: Persona Natural | W134: $29.700.000 | Y134: 1 | Z134: 2700000 | AA134: 32400000 | AB134: 26550000 | AC134: 2023-01-31 | AD134: 2023-02-06 | AE134: 2024-02-05 | AF134: 330 | AG134: 1 | AH134: 30 | AQ134: En ejecución | AR134: 0.8194444444
A135: CPS-122-2023 | B135: 2023 | C135: FDRS-CD-094-2023 | D135: https://community.secop.gov.co/Public/Tendering/OpportunityDetail/Index?noticeUID=CO1.NTC.3893793&isFromPublicArea=True&isModal=False | E135: Contratos de prestación de servicios profesionales y de apoyo a la gestión | F135: Contratación directa | G135: Prestación de servicios profesionales y de apoyo a la gestión, o para la ejecución de trabajos artísticos que sólo puedan encomendarse a determinadas personas naturales | H135: PRESTAR SUS SERVICIOS COMO AUXILIAR PARA QUE APOYE LA GESTIÓN CULTURAL DE LA LOCALIDAD DE SUMAPAZ | I135: Inversión | J135: Un nuevo contrato social y ambiental para la Bogotá del Siglo XXI | K135: 21 | L135: =IF(ISERROR(VLOOKUP(K135,Proposito_programa!$C$2:$E$59,2,FALSE))," ",VLOOKUP(K135,Proposito_programa!$C$2:$E$59,2,FALSE)) -> Creación y vida cotidiana: Apropiación ciudadana del arte, la cultura y el patrimonio, para la democracia cultural | M135: =IF(ISERROR(VLOOKUP(K135,Proposito_programa!$C$2:$E$59,3,FALSE))," ",VLOOKUP(K135,Proposito_programa!$C$2:$E$59,3,FALSE)) -> Propósito 1: Hacer un nuevo contrato social para incrementar la inclusión social, productiva y política | N135: 1633 | O135: 1 | P135: 1072774992 | Q135: YEIMY JOHANA GUTIERREZ CASTRO | R135: Persona Natural | W135: $22.000.000 | Y135: 1 | Z135: 4000000 | AA135: 26000000 | AB135: 19666666 | AC135: 2023-01-31 | AD135: 2023-02-06 | AE135: 2024-03-05 | AF135: 330 | AG135: 1 | AH135: 60 | AQ135: En ejecución | AR135: 0.7564102308
A136: CPS-123-2023 | B136: 2023 | C136: FDRS-CD-095-2023 | D136: https://community.secop.gov.co/Public/Tendering/OpportunityDetail/Index?noticeUID=CO1.NTC.3893965&isFromPublicArea=True&isModal=False | E136: Contratos de prestación de servicios profesionales y de apoyo a la gestión | F136: Contratación directa | G136: Prestación de servicios profesionales y de apoyo a la gestión, o para la ejecución de trabajos artísticos que sólo puedan encomendarse a determinadas personas naturales | H136: PRESTAR LOS SERVICIOS PROFESIONALES ESPECIALIZADOS, PARA EL DESPACHO DE LA ALCALDÍA LOCAL DE SUMAPAZ EN LOS PROCESOS LEGALES, JURÍDICOS Y ADMINISTRATIVOS PARA DAR CUMPLIMIENTO AL PLAN DE DESARROLLO LOCAL | I136: Inversión | J136: Un nuevo contrato social y ambiental para la Bogotá del Siglo XXI | K136: 57 | L136: =IF(ISERROR(VLOOKUP(K136,Proposito_programa!$C$2:$E$59,2,FALSE))," ",VLOOKUP(K136,Proposito_programa!$C$2:$E$59,2,FALSE)) -> Gestión pública local | M136: =IF(ISERROR(VLOOKUP(K136,Proposito_programa!$C$2:$E$59,3,FALSE))," ",VLOOKUP(K136,Proposito_programa!$C$2:$E$59,3,FALSE)) -> Propósito 5: Construir Bogotá - Región con gobierno abierto, transparente y ciudadanía consciente | N136: 1696 | O136: 1 | P136: 7180594 | Q136: JULIO CESAR BARAJAS BORDA | R136: Persona Natural | W136: $82.500.000 | Y136: 1 | Z136: 7500000 | AA136: 90000000 | AB136: 71750000 | AC136: 2023-01-31 | AD136: 2023-02-14 | AE136: 2024-01-15 | AF136: 330 | AG136: 1 | AH136: 30 | AQ136: En ejecución | AR136: 0.7972222222
A137: CPS-124-2023 | B137: 2023 | C137: FDRS-CD-042-2023 | D137: https://community.secop.gov.co/Public/Tendering/OpportunityDetail/Index?noticeUID=CO1.NTC.3854257&isFromPublicArea=True&isModal=False | E137: Contratos de prestación de servicios profesionales y de apoyo a la gestión | F137: Contratación directa | G137: Prestación de servicios profesionales y de apoyo a la gestión, o para la ejecución de trabajos artísticos que sólo puedan encomendarse a determinadas personas naturales | H137: PRESTAR LOS SERVICIOS PROFESIONALES JURIDICOS PARA APOYAR LOS ASUNTOS PRECONTRACTUALES, CONTRACTUALES Y POST-CONTRACTUALES DEL ÁREA DE GESTIÓN DE DESARROLLO LOCAL DE LA ALCALDÍA LOCAL DE SUMAPAZ | I137: Inversión | J137: Un nuevo contrato social y ambiental para la Bogotá del Siglo XXI | K137: 57 | L137: =IF(ISERROR(VLOOKUP(K137,Proposito_programa!$C$2:$E$59,2,FALSE))," ",VLOOKUP(K137,Proposito_programa!$C$2:$E$59,2,FALSE)) -> Gestión pública local | M137: =IF(ISERROR(VLOOKUP(K137,Proposito_programa!$C$2:$E$59,3,FALSE))," ",VLOOKUP(K137,Proposito_programa!$C$2:$E$59,3,FALSE)) -> Propósito 5: Construir Bogotá - Región con gobierno abierto, transparente y ciudadanía consciente | N137: 1696 | O137: 1 | P137: 1077035833 | Q137: VALENTINA ROMERO RODRIGUEZ | R137: Persona Natural | W137: $66.000.000 | Y137: 1 | Z137: 12000000 | AA137: 78000000 | AB137: 59800000 | AC137: 2023-01-31 | AD137: 2023-02-02 | AE137: 2024-03-01 | AF137: 330 | AG137: 1 | AH137: 60 | AQ137: En ejecución | AR137: 0.7666666667
A138: CPS-125-2023 | B138: 2023 | C138: FDRS-CD-096-2023 | D138: https://community.secop.gov.co/Public/Tendering/OpportunityDetail/Index?noticeUID=CO1.NTC.3893373&isFromPublicArea=True&isModal=False | E138: Contratos de prestación de servicios profesionales y de apoyo a la gestión | F138: Contratación directa | G138: Prestación de servicios profesionales y de apoyo a la gestión, o para la ejecución de trabajos artísticos que sólo puedan encomendarse a determinadas personas naturales | H138: PRESTAR LOS SERVICIOS ADMINISTRATIVOS PARA APOYAR LAS LABORES DE OFICIOS VARIOS Y DE NOTIFICACIÓN PARA LA CUENCA DEL RIO BLANCO, DE LA ALCALDÍA LOCAL DE SUMAPAZ.-1696 | I138: Inversión | J138: Un nuevo contrato social y ambiental para la Bogotá del Siglo XXI | K138: 57 | L138: =IF(ISERROR(VLOOKUP(K138,Proposito_programa!$C$2:$E$59,2,FALSE))," ",VLOOKUP(K138,Proposito_programa!$C$2:$E$59,2,FALSE)) -> Gestión pública local | M138: =IF(ISERROR(VLOOKUP(K138,Proposito_programa!$C$2:$E$59,3,FALSE))," ",VLOOKUP(K138,Proposito_programa!$C$2:$E$59,3,FALSE)) -> Propósito 5: Construir Bogotá - Región con gobierno abierto, transparente y ciudadanía consciente | N138: 1696 | O138: 1 | P138: 1033767652 | Q138: IVAN DARIO CHINGATE MICAN | R138: Persona Natural | W138: $24.200.000 | AA138: 24200000 | AB138: 21633333 | AC138: 2023-01-31 | AD138: 2023-02-06 | AE138: 2024-01-05 | AF138: 330 | AQ138: En ejecución | AR138: 0.8939393802
A139: CPS-126-2023 | B139: 2023 | C139: FDRS-CD-097-2023 | D139: https://community.secop.gov.co/Public/Tendering/OpportunityDetail/Index?noticeUID=CO1.NTC.3894509&isFromPublicArea=True&isModal=False | E139: Contratos de prestación de servicios profesionales y de apoyo a la gestión | F139: Contratación directa | G139: Prestación de servicios profesionales y de apoyo a la gestión, o para la ejecución de trabajos artísticos que sólo puedan encomendarse a determinadas personas naturales | H139: PRESTAR LOS SERVICIOS COMO AUXILIAR ADMINISTRATIVA EN LA CORREGIDURÍA DE SAN JUAN | I139: Inversión | J139: Un nuevo contrato social y ambiental para la Bogotá del Siglo XXI | K139: 57 | L139: =IF(ISERROR(VLOOKUP(K139,Proposito_programa!$C$2:$E$59,2,FALSE))," ",VLOOKUP(K139,Proposito_programa!$C$2:$E$59,2,FALSE)) -> Gestión pública local | M139: =IF(ISERROR(VLOOKUP(K139,Proposito_programa!$C$2:$E$59,3,FALSE))," ",VLOOKUP(K139,Proposito_programa!$C$2:$E$59,3,FALSE)) -> Propósito 5: Construir Bogotá - Región con gobierno abierto, transparente y ciudadanía consciente | N139: 1696 | O139: 1 | P139: 1016031740 | Q139: DEICY AMPARO MORALES TORRES | R139: Persona Natural | W139: $29.700.000 | AA139: 29700000 | AB139: 25920000 | AC139: 2023-01-31 | AD139: 2023-02-13 | AE139: 2024-01-12 | AF139: 330 | AQ139: En ejecución | AR139: 0.8727272727
A140: CPS-127-2023 | B140: 2023 | C140: FDRS-CD-098-2023 | D140: https://community.secop.gov.co/Public/Tendering/OpportunityDetail/Index?noticeUID=CO1.NTC.3894735&isFromPublicArea=True&isModal=False | E140: Contratos de prestación de servicios profesionales y de apoyo a la gestión | F140: Contratación directa | G140: Prestación de servicios profesionales y de apoyo a la gestión, o para la ejecución de trabajos artísticos que sólo puedan encomendarse a determinadas personas naturales | H140: PRESTAR LOS SERVICIOS PROFESIONALES PARA EL APOYO AL DESPACHO Y AL ÁREA DE GESTIÓN DEL DESARROLLO LOCAL, DE LA ALCALDÍA LOCAL DE SUMAPAZ | I140: Inversión | J140: Un nuevo contrato social y ambiental para la Bogotá del Siglo XXI | K140: 57 | L140: =IF(ISERROR(VLOOKUP(K140,Proposito_programa!$C$2:$E$59,2,FALSE))," ",VLOOKUP(K140,Proposito_programa!$C$2:$E$59,2,FALSE)) -> Gestión pública local | M140: =IF(ISERROR(VLOOKUP(K140,Proposito_programa!$C$2:$E$59,3,FALSE))," ",VLOOKUP(K140,Proposito_programa!$C$2:$E$59,3,FALSE)) -> Propósito 5: Construir Bogotá - Región con gobierno abierto, transparente y ciudadanía consciente | N140: 1696 | O140: 1 | P140: 52382245 | Q140: SALLY ANDREA MAHECHA ZABALETA | R140: Persona Natural | W140: $50.600.000 | Y140: 1 | Z140: 9200000 | AA140: 59800000 | AB140: 40479900 | AC140: 2023-01-31 | AD140: 2023-02-06 | AE140: 2024-03-05 | AF140: 330 | AG140: 1 | AH140: 60 | AI140: 1121897345 | AJ140: BENJAMIN EDUARDO LEON MARTINEZ | AK140: 2023-06-30 | AL140: 28366666 | AQ140: En ejecución | AR140: 0.6769214047
A141: CPS-128-2023 | B141: 2023 | C141: FDRS-CD-099-2023 | D141: https://community.secop.gov.co/Public/Tendering/OpportunityDetail/Index?noticeUID=CO1.NTC.3895107&isFromPublicArea=True&isModal=False | E141: Contratos de prestación de servicios profesionales y de apoyo a la gestión | F141: Contratación directa | G141: Prestación de servicios profesionales y de apoyo a la gestión, o para la ejecución de trabajos artísticos que sólo puedan encomendarse a determinadas personas naturales | H141: PRESTAR LOS SERVICIOS COMO AUXILIAR ADMINISTRATIVO AL ÁREA DE GESTIÓN DEL DESARROLO EN LA ALCALDÍA LOCAL DE SUMAPAZ | I141: Inversión | J141: Un nuevo contrato social y ambiental para la Bogotá del Siglo XXI | K141: 49 | L141: =IF(ISERROR(VLOOKUP(K141,Proposito_programa!$C$2:$E$59,2,FALSE))," ",VLOOKUP(K141,Proposito_programa!$C$2:$E$59,2,FALSE)) -> Movilidad segura, sostenible y accesible | M141: =IF(ISERROR(VLOOKUP(K141,Proposito_programa!$C$2:$E$59,3,FALSE))," ",VLOOKUP(K141,Proposito_programa!$C$2:$E$59,3,FALSE)) -> Propósito 4: Hacer de Bogotá Región un modelo de movilidad multimodal, incluyente y sostenible | N141: 1688 | O141: 1 | P141: 1022934873 | Q141: OSMAN GABRIEL BARRERA RAMIREZ | R141: Persona Natural | W141: $29.700.000 | Y141: 1 | Z141: 8100000 | AA141: 37800000 | AB141: 25920000 | AC141: 2023-01-31 | AD141: 2023-02-14 | AE141: 2024-04-12 | AF141: 330 | AG141: 1 | AH141: 90 | AI141: 52145858 | AJ141: SONIA PATRICIA PALACIOS VILLAMIZAR | AK141: 2023-03-27 | AL141: 25740000 | AQ141: En ejecución | AR141: 0.6857142857
A142: CPS-129-2023 | B142: 2023 | C142: FDRS-CD-100-2023 | D142: https://community.secop.gov.co/Public/Tendering/OpportunityDetail/Index?noticeUID=CO1.NTC.3898833&isFromPublicArea=True&isModal=False | E142: Contratos de prestación de servicios profesionales y de apoyo a la gestión | F142: Contratación directa | G142: Prestación de servicios profesionales y de apoyo a la gestión, o para la ejecución de trabajos artísticos que sólo puedan encomendarse a determinadas personas naturales | H142: PRESTAR LOS SERVICIOS PROFESIONALES PARA LA ORIENTACIÓN, FORMULACIÓN,ESTRUCTURACIÓN Y PUESTA EN MARCHA DE INICIATIVAS PRODUCTIVAS DE LA LOCALIDAD DE SUMAPAZ. | I142: Inversión | J142: Un nuevo contrato social y ambiental para la Bogotá del Siglo XXI | K142: 6 | L142: =IF(ISERROR(VLOOKUP(K142,Proposito_programa!$C$2:$E$59,2,FALSE))," ",VLOOKUP(K142,Proposito_programa!$C$2:$E$59,2,FALSE)) -> Sistema Distrital de Cuidado | M142: =IF(ISERROR(VLOOKUP(K142,Proposito_programa!$C$2:$E$59,3,FALSE))," ",VLOOKUP(K142,Proposito_programa!$C$2:$E$59,3,FALSE)) -> Propósito 1: Hacer un nuevo contrato social para incrementar la inclusión social, productiva y política | N142: 1637 | O142: 1 | P142: 1014256316 | Q142: KAREN NATALIA NEIRA BAUTISTA | R142: Persona Natural | W142: $60.500.000 | Y142: 1 | Z142: 4950000 | AA142: 65450000 | AB142: 54083000 | AC142: 2023-02-01 | AD142: 2023-02-06 | AE142: 2024-02-01 | AF142: 330 | AG142: 1 | AH142: 27 | AQ142: En ejecución | AR142: 0.8263254393
A143: CPS-130-2023 | B143: 2023 | C143: FDRS-CD-101-2023 | D143: https://community.secop.gov.co/Public/Tendering/OpportunityDetail/Index?noticeUID=CO1.NTC.3908598&isFromPublicArea=True&isModal=False | E143: Contratos de prestación de servicios profesionales y de apoyo a la gestión | F143: Contratación directa | G143: Prestación de servicios profesionales y de apoyo a la gestión, o para la ejecución de trabajos artísticos que sólo puedan encomendarse a determinadas personas naturales | H143: PRESTAR SUS SERVICIOS PROFESIONALES ESPECIALIZADOS PARA APOYAR EL DESARROLLO DE ACTIVIDADES DE TRANSFORMACIÓN PRODUCTIVA Y FORMACIÓN DE CAPACIDADES, EN LA LOCALIDAD DE SUMAPAZ | I143: Inversión | J143: Un nuevo contrato social y ambiental para la Bogotá del Siglo XXI | K143: 6 | L143: =IF(ISERROR(VLOOKUP(K143,Proposito_programa!$C$2:$E$59,2,FALSE))," ",VLOOKUP(K143,Proposito_programa!$C$2:$E$59,2,FALSE)) -> Sistema Distrital de Cuidado | M143: =IF(ISERROR(VLOOKUP(K143,Proposito_programa!$C$2:$E$59,3,FALSE))," ",VLOOKUP(K143,Proposito_programa!$C$2:$E$59,3,FALSE)) -> Propósito 1: Hacer un nuevo contrato social para incrementar la inclusión social, productiva y política | N143: 1637 | O143: 1 | P143: 1016046855 | Q143: MIGUEL ALFONSO RODRIGUEZ CASTRO | R143: Persona Natural | W143: $88.000.000 | Y143: 1 | Z143: 16000000 | AA143: 104000000 | AB143: 78666700 | AC143: 2023-02-03 | AD143: 2023-02-06 | AE143: 2024-03-05 | AF143: 330 | AG143: 1 | AH143: 60 | AQ143: En ejecución | AR143: 0.7564105769
A144: CPS-131-2023 | B144: 2023 | C144: FDRS-CD-102-2023 | D144: https://community.secop.gov.co/Public/Tendering/OpportunityDetail/Index?noticeUID=CO1.NTC.3904425&isFromPublicArea=True&isModal=False | E144: Contratos de prestación de servicios profesionales y de apoyo a la gestión | F144: Contratación directa | G144: Prestación de servicios profesionales y de apoyo a la gestión, o para la ejecución de trabajos artísticos que sólo puedan encomendarse a determinadas personas naturales | H144: PRESTAR LOS SERVICIOS PROFESIONALES ESPECIALIZADOS PARA APOYAR LA PLANEACIÓN, SEGUIMIENTO, EJECUCIÓN Y CONTROL DE LOS PROYECTOS AMBIENTALES Y DE DESARROLLO RURAL SOSTENIBLE, DEL FONDO DE DESARROLLO RURAL DE SUMAPAZ | I144: Inversión | J144: Un nuevo contrato social y ambiental para la Bogotá del Siglo XXI | K144: 23 | L144: =IF(ISERROR(VLOOKUP(K144,Proposito_programa!$C$2:$E$59,2,FALSE))," ",VLOOKUP(K144,Proposito_programa!$C$2:$E$59,2,FALSE)) -> Bogotá rural | M144: =IF(ISERROR(VLOOKUP(K144,Proposito_programa!$C$2:$E$59,3,FALSE))," ",VLOOKUP(K144,Proposito_programa!$C$2:$E$59,3,FALSE)) -> Propósito 1: Hacer un nuevo contrato social para incrementar la inclusión social, productiva y política | N144: 1634 | O144: 1 | P144: 1030568733 | Q144: DAVID ANDRES ANGEL ESCOBAR | R144: Persona Natural | W144: $88.000.000 | Y144: 1 | Z144: 24000000 | AA144: 112000000 | AB144: 79466667 | AC144: 2023-02-03 | AD144: 2023-02-03 | AE144: 2024-01-17 | AF144: 330 | AG144: 1 | AH144: 90 | AQ144: En ejecución | AR144: 0.7095238125
A145: CPS-132-2023 | B145: 2023 | C145: FDRS-CD-103-2023 | D145: https://community.secop.gov.co/Public/Tendering/OpportunityDetail/Index?noticeUID=CO1.NTC.3908920&isFromPublicArea=True&isModal=False | E145: Contratos de prestación de servicios profesionales y de apoyo a la gestión | F145: Contratación directa | G145: Prestación de servicios profesionales y de apoyo a la gestión, o para la ejecución de trabajos artísticos que sólo puedan encomendarse a determinadas personas naturales | H145: PRESTAR LOS SERVICIOS PROFESIONALES JURIDICOS PARA APOYAR LOS ASUNTOS PRECONTRACTUALES, CONTRACTUALES Y POST-CONTRACTUALES DEL ÁREA DE GESTIÓN DE DESARROLLO LOCAL DE LA ALCALDÍA LOCAL DE SUMAPAZ. | I145: Inversión | J145: Un nuevo contrato social y ambiental para la Bogotá del Siglo XXI | K145: 57 | L145: =IF(ISERROR(VLOOKUP(K145,Proposito_programa!$C$2:$E$59,2,FALSE))," ",VLOOKUP(K145,Proposito_programa!$C$2:$E$59,2,FALSE)) -> Gestión pública local | M145: =IF(ISERROR(VLOOKUP(K145,Proposito_programa!$C$2:$E$59,3,FALSE))," ",VLOOKUP(K145,Proposito_programa!$C$2:$E$59,3,FALSE)) -> Propósito 5: Construir Bogotá - Región con gobierno abierto, transparente y ciudadanía consciente | N145: 1696 | O145: 1 | P145: 1010182337 | Q145: DANIEL RICARDO VALBUENA CORTES | R145: Persona Natural | W145: $55.000.000 | AA145: =+W145+X145+Z145 -> 55000000 | AB145: 49166666 | AC145: 2023-02-02 | AD145: 2023-02-06 | AE145: 2024-01-31 | AF145: 330 | AG145: 1 | AH145: 26 | AQ145: En ejecución | AR145: =IF(ISERROR(AB145/AA145),"-",(AB145/AA145)) -> 0.8939393818
A146: CPS-133-2023 | B146: 2023 | C146: FDRS-CD-104-2023 | D146: https://community.secop.gov.co/Public/Tendering/OpportunityDetail/Index?noticeUID=CO1.NTC.3913089&isFromPublicArea=True&isModal=False | E146: Contratos de prestación de servicios profesionales y de apoyo a la gestión | F146: Contratación directa | G146: Prestación de servicios profesionales y de apoyo a la gestión, o para la ejecución de trabajos artísticos que sólo puedan encomendarse a determinadas personas naturales | H146: PRESTAR LOS SERVICIOS PROFESIONALES COMO ENLACE ENTRE LOS PRODUCTORES Y BENEFICIARIOS CON LOS AGENTES EXTERNOS Y GRUPOS DE VALOR EN EL PROCESO DE REACTIVACIÓN, RECUPERACIÓN PRODUCTIVA Y REVITALIZACIÓN ECONÓMICA, CONTEMPLADAS EN EL PROYECTO DE INVERSIÓN DE TRANSFORMACIÓN PRODUCTIVA DEL FONDO DE DESARROLLO RURAL DE SUMAPAZ. | I146: Inversión | J146: Un nuevo contrato social y ambiental para la Bogotá del Siglo XXI | K146: 6 | L146: =IF(ISERROR(VLOOKUP(K146,Proposito_programa!$C$2:$E$59,2,FALSE))," ",VLOOKUP(K146,Proposito_programa!$C$2:$E$59,2,FALSE)) -> Sistema Distrital de Cuidado | M146: =IF(ISERROR(VLOOKUP(K146,Proposito_programa!$C$2:$E$59,3,FALSE))," ",VLOOKUP(K146,Proposito_programa!$C$2:$E$59,3,FALSE)) -> Propósito 1: Hacer un nuevo contrato social para incrementar la inclusión social, productiva y política | N146: 1637 | O146: 1 | P146: 1016048338 | Q146: CARLOS ANDRES PEDRAZA CARDOZO | R146: Persona Natural | W146: $55.550.000 | Y146: 1 | Z146: 10100000 | AA146: 65650000 | AB146: 49658333 | AC146: 2023-02-02 | AD146: 2023-02-06 | AE146: 2024-03-05 | AF146: 330 | AG146: 1 | AH146: 60 | AI146: 1033820336 | AJ146: YENNY CAROLINA SALOMÓN ROBAYO | AK146: 2023-12-28 | AL146: 1346666 | AQ146: En ejecución | AR146: 0.7564102513
A147: CPS-134-2023 | B147: 2023 | C147: FDRS-CD-105-2023 | D147: https://community.secop.gov.co/Public/Tendering/OpportunityDetail/Index?noticeUID=CO1.NTC.3917305&isFromPublicArea=True&isModal=False | E147: Contratos de prestación de servicios profesionales y de apoyo a la gestión | F147: Contratación directa | G147: Prestación de servicios profesionales y de apoyo a la gestión, o para la ejecución de trabajos artísticos que sólo puedan encomendarse a determinadas personas naturales | H147: PRESTAR LOS SERVICIOS DE APOYO TECNICO EN LOS PROCESOS QUE SE ADELANTAN EN EL ALMACÉN DE LA ALCALDÍA LOCAL DE SUMAPAZ | I147: Inversión | J147: Un nuevo contrato social y ambiental para la Bogotá del Siglo XXI | K147: 57 | L147: =IF(ISERROR(VLOOKUP(K147,Proposito_programa!$C$2:$E$59,2,FALSE))," ",VLOOKUP(K147,Proposito_programa!$C$2:$E$59,2,FALSE)) -> Gestión pública local | M147: =IF(ISERROR(VLOOKUP(K147,Proposito_programa!$C$2:$E$59,3,FALSE))," ",VLOOKUP(K147,Proposito_programa!$C$2:$E$59,3,FALSE)) -> Propósito 5: Construir Bogotá - Región con gobierno abierto, transparente y ciudadanía consciente | N147: 1696 | O147: 1 | P147: 1072661424 | Q147: CINDY GERALDINE GARCIA MORENO | R147: Persona Natural | W147: $34.100.000 | Y147: 1 | Z147: 2480000 | AA147: 36580000 | AB147: 30380000 | AC147: 2023-02-03 | AD147: 2023-02-07 | AE147: 2024-01-30 | AF147: 330 | AG147: 1 | AH147: 24 | AQ147: En ejecución | AR147: 0.8305084746
A148: CPS-135-2023 | B148: 2023 | C148: FDRS-CD-036-2023 | D148: https://community.secop.gov.co/Public/Tendering/OpportunityDetail/Index?noticeUID=CO1.NTC.3844070&isFromPublicArea=True&isModal=False | E148: Contratos de prestación de servicios profesionales y de apoyo a la gestión | F148: Contratación directa | G148: Prestación de servicios profesionales y de apoyo a la gestión, o para la ejecución de trabajos artísticos que sólo puedan encomendarse a determinadas personas naturales | H148: PRESTAR LOS SERVICIOS PROFESIONALES PARA APOYAR LOS PROCESOS ADMINISTRATIVOS, CONTABLES Y FINANCIEROS DEL ÁREA DE GESTIÓN DE DESARROLLO LOCAL, DE LA ALCALDÍA LOCAL DE SUMAPAZ | I148: Inversión | J148: Un nuevo contrato social y ambiental para la Bogotá del Siglo XXI | K148: 57 | L148: =IF(ISERROR(VLOOKUP(K148,Proposito_programa!$C$2:$E$59,2,FALSE))," ",VLOOKUP(K148,Proposito_programa!$C$2:$E$59,2,FALSE)) -> Gestión pública local | M148: =IF(ISERROR(VLOOKUP(K148,Proposito_programa!$C$2:$E$59,3,FALSE))," ",VLOOKUP(K148,Proposito_programa!$C$2:$E$59,3,FALSE)) -> Propósito 5: Construir Bogotá - Región con gobierno abierto, transparente y ciudadanía consciente | N148: 1696 | O148: 1 | P148: 1136888698 | Q148: DANNA MARCELA FORERO RODRIGUEZ | R148: Persona Natural | W148: $13.800.000 | AA148: 13800000 | AB148: 13800000 | AC148: 2023-02-03 | AD148: 2023-02-08 | AE148: 2023-05-07 | AF148: 90 | AQ148: Terminado | AR148: 1
A149: CPS-136-2023 | B149: 2023 | C149: FDRS-CD-106-2023 | D149: https://community.secop.gov.co/Public/Tendering/OpportunityDetail/Index?noticeUID=CO1.NTC.3922043&isFromPublicArea=True&isModal=False | E149: Contratos de prestación de servicios profesionales y de apoyo a la gestión | F149: Contratación directa | G149: Prestación de servicios profesionales y de apoyo a la gestión, o para la ejecución de trabajos artísticos que sólo puedan encomendarse a determinadas personas naturales | H149: PRESTAR SUS SERVICIOS PROFESIONALES PARA APOYAR AL EQUIPO DE PRENSA Y COMUNICACIONES DE LA ALCALDÍA LOCAL EN LA CREACIÓN, REALIZACIÓN, PRODUCCIÓN Y EDICIÓN DE VIDEOS, ASÍ COMO EL REGISTRO, EDICIÓN Y LA PRESENTACIÓN DE FOTOGRAFÍAS DE LOS ACONTECIMIENTOS, HECHOS Y EVENTOS EXTERNOS E INTERNOS DE LA ALCALDÍA LOCAL, PARA SER UTILIZADOS COMO INSUMOS DE COMUNICACIÓN EN LOS MEDIOS, ESPECIALMENTE ESCRITOS, DIGITALES Y AUDIOVISUALES | I149: Inversión | J149: Un nuevo contrato social y ambiental para la Bogotá del Siglo XXI | K149: 57 | L149: =IF(ISERROR(VLOOKUP(K149,Proposito_programa!$C$2:$E$59,2,FALSE))," ",VLOOKUP(K149,Proposito_programa!$C$2:$E$59,2,FALSE)) -> Gestión pública local | M149: =IF(ISERROR(VLOOKUP(K149,Proposito_programa!$C$2:$E$59,3,FALSE))," ",VLOOKUP(K149,Proposito_programa!$C$2:$E$59,3,FALSE)) -> Propósito 5: Construir Bogotá - Región con gobierno abierto, transparente y ciudadanía consciente | N149: 1696 | O149: 1 | P149: 37578805 | Q149: MARIA LUCIA MONCAYO AGUDELO | R149: Persona Natural | W149: $66.000.000 | AA149: 66000000 | AB149: 58600000 | AC149: 2023-02-03 | AD149: 2023-02-08 | AE149: 2024-01-07 | AF149: 330 | AQ149: En ejecución | AR149: 0.8878787879
A150: CPS-137-2023 | B150: 2023 | C150: FDRS-CD-107-2023 | D150: https://community.secop.gov.co/Public/Tendering/OpportunityDetail/Index?noticeUID=CO1.NTC.3920025&isFromPublicArea=True&isModal=False | E150: Contratos de prestación de servicios profesionales y de apoyo a la gestión | F150: Contratación directa | G150: Prestación de servicios profesionales y de apoyo a la gestión, o para la ejecución de trabajos artísticos que sólo puedan encomendarse a determinadas personas naturales | H150: PRESTAR SUS SERVICIOS PROFESIONALES PARA COORDINAR, LIDERAR Y ASESORAR LOS PLANES Y ESTRATEGIAS DE COMUNICACIÓN INTERNA Y EXTERNA PARA LA DIVULGACIÓN DE LOS PROGRAMAS, PROYECTOS Y ACTIVIDADES DE LA ALCALDÍA LOCAL DE SUMAPAZ | I150: Inversión | J150: Un nuevo contrato social y ambiental para la Bogotá del Siglo XXI | K150: 57 | L150: =IF(ISERROR(VLOOKUP(K150,Proposito_programa!$C$2:$E$59,2,FALSE))," ",VLOOKUP(K150,Proposito_programa!$C$2:$E$59,2,FALSE)) -> Gestión pública local | M150: =IF(ISERROR(VLOOKUP(K150,Proposito_programa!$C$2:$E$59,3,FALSE))," ",VLOOKUP(K150,Proposito_programa!$C$2:$E$59,3,FALSE)) -> Propósito 5: Construir Bogotá - Región con gobierno abierto, transparente y ciudadanía consciente | N150: 1696 | O150: 1 | P150: 1020716280 | Q150: MARiA ANGELICA USCATEGUI PASTRANA | R150: Persona Natural | W150: $28.000.000 | AA150: 28000000 | AB150: 27533333 | AC150: 2023-02-03 | AD150: 2023-02-03 | AE150: 2023-06-02 | AF150: 120 | AQ150: Terminado | AR150: 0.9833333214
A151: CPS-138-2023 | B151: 2023 | C151: FDRS-CD-108-2023 | D151: https://community.secop.gov.co/Public/Tendering/OpportunityDetail/Index?noticeUID=CO1.NTC.3929136&isFromPublicArea=True&isModal=False | E151: Contratos de prestación de servicios profesionales y de apoyo a la gestión | F151: Contratación directa | G151: Prestación de servicios profesionales y de apoyo a la gestión, o para la ejecución de trabajos artísticos que sólo puedan encomendarse a determinadas personas naturales | H151: PRESTAR LOS SERVICIOS PROFESIONALES PARA APOYAR LOS PROYECTOS ENFOCADOS A LA RESTAURACIÓN ECOLÓGICA RURAL Y, ATENDER LA GESTIÓN AMBIENTAL EN LA LOCALIDAD DE SUMAPAZ-1651 | I151: Inversión | J151: Un nuevo contrato social y ambiental para la Bogotá del Siglo XXI | K151: 28 | L151: =IF(ISERROR(VLOOKUP(K151,Proposito_programa!$C$2:$E$59,2,FALSE))," ",VLOOKUP(K151,Proposito_programa!$C$2:$E$59,2,FALSE)) -> Bogotá protectora de sus recursos naturales | M151: =IF(ISERROR(VLOOKUP(K151,Proposito_programa!$C$2:$E$59,3,FALSE))," ",VLOOKUP(K151,Proposito_programa!$C$2:$E$59,3,FALSE)) -> Propósito 2 : Cambiar Nuestros Hábitos de Vida para Reverdecer a Bogotá y Adaptarnos y Mitigar la Crisis Climática | N151: 1651 | O151: 1 | P151: 1032460893 | Q151: JULIAN EDUARDO MONTAÑEZ GUILLEN | R151: Persona Natural | W151: $20.000.000 | X151: -3333334 | AA151: 16666666 | AB151: 16666666 | AC151: 2023-02-06 | AD151: 2023-02-09 | AE151: 2023-05-17 | AF151: 120 | AQ151: Terminado | AR151: 1
A152: CPS-139-2023 | B152: 2023 | C152: FDRS-CD-109-2023 | D152: https://community.secop.gov.co/Public/Tendering/OpportunityDetail/Index?noticeUID=CO1.NTC.3920858&isFromPublicArea=True&isModal=False | E152: Contratos de prestación de servicios profesionales y de apoyo a la gestión | F152: Contratación directa | G152: Prestación de servicios profesionales y de apoyo a la gestión, o para la ejecución de trabajos artísticos que sólo puedan encomendarse a determinadas personas naturales | H152: PRESTAR LOS SERVICIOS PROFESIONALES PARA EL FORTALECIMIENTO AMBIENTAL DEL SERVICIO DE ASISTENCIA TÉCNICA AGROPECUARIA DE LA LOCALIDAD DE SUMAPAZ | I152: Inversión | J152: Un nuevo contrato social y ambiental para la Bogotá del Siglo XXI | K152: 23 | L152: =IF(ISERROR(VLOOKUP(K152,Proposito_programa!$C$2:$E$59,2,FALSE))," ",VLOOKUP(K152,Proposito_programa!$C$2:$E$59,2,FALSE)) -> Bogotá rural | M152: =IF(ISERROR(VLOOKUP(K152,Proposito_programa!$C$2:$E$59,3,FALSE))," ",VLOOKUP(K152,Proposito_programa!$C$2:$E$59,3,FALSE)) -> Propósito 1: Hacer un nuevo contrato social para incrementar la inclusión social, productiva y política | N152: 1634 | O152: 1 | P152: 1018418402 | Q152: JULIE PAULIN CARO FORERO | R152: Persona Natural | W152: $13.800.000 | AA152: 13800000 | AB152: 13800000 | AC152: 2023-02-03 | AD152: 2023-02-07 | AE152: 2023-05-06 | AF152: 90 | AQ152: Terminado | AR152: 1
A153: CPS-140-2023 | B153: 2023 | C153: FDRS-CD-106-2023 | D153: https://community.secop.gov.co/Public/Tendering/ContractNoticePhases/View?PPI=CO1.PPI.22984776&isFromPublicArea=True&isModal=False | E153: Contratos de prestación de servicios profesionales y de apoyo a la gestión | F153: Contratación directa | G153: Prestación de servicios profesionales y de apoyo a la gestión, o para la ejecución de trabajos artísticos que sólo puedan encomendarse a determinadas personas naturales | H153: PRESTAR SUS SERVICIOS PROFESIONALES PARA APOYAR AL EQUIPO DE PRENSA Y COMUNICACIONES DE LA ALCALDÍA LOCAL EN LA CREACIÓN, REALIZACIÓN, PRODUCCIÓN Y EDICIÓN DE VIDEOS, ASÍ COMO EL REGISTRO, EDICIÓN Y LA PRESENTACIÓN DE FOTOGRAFÍAS DE LOS ACONTECIMIENTOS, HECHOS Y EVENTOS EXTERNOS E INTERNOS DE LA ALCALDÍA LOCAL, PARA SER UTILIZADOS COMO INSUMOS DE COMUNICACIÓN EN LOS MEDIOS, ESPECIALMENTE ESCRITOS, DIGITALES Y AUDIOVISUALES | I153: Inversión | J153: Un nuevo contrato social y ambiental para la Bogotá del Siglo XXI | K153: 57 | L153: =IF(ISERROR(VLOOKUP(K153,Proposito_programa!$C$2:$E$59,2,FALSE))," ",VLOOKUP(K153,Proposito_programa!$C$2:$E$59,2,FALSE)) -> Gestión pública local | M153: =IF(ISERROR(VLOOKUP(K153,Proposito_programa!$C$2:$E$59,3,FALSE))," ",VLOOKUP(K153,Proposito_programa!$C$2:$E$59,3,FALSE)) -> Propósito 5: Construir Bogotá - Región con gobierno abierto, transparente y ciudadanía consciente | N153: 1696 | O153: 1 | P153: 1073427048 | Q153: IVAN FELIPE RUIZ RUIZ | R153: Persona Natural | W153: $66.000.000 | Y153: 1 | Z153: 4800000 | AA153: 70800000 | AB153: 58600000 | AC153: 2023-02-03 | AD153: 2023-02-08 | AE153: 2024-01-31 | AF153: 330 | AG153: 1 | AH153: 24 | AQ153: En ejecución | AR153: 0.8276836158
A154: CPS-141-2023 | B154: 2023 | C154: FDRS-CD-110-2023 | D154: https://community.secop.gov.co/Public/Tendering/OpportunityDetail/Index?noticeUID=CO1.NTC.3926890&isFromPublicArea=True&isModal=False | E154: Contratos de prestación de servicios profesionales y de apoyo a la gestión | F154: Contratación directa | G154: Prestación de servicios profesionales y de apoyo a la gestión, o para la ejecución de trabajos artísticos que sólo puedan encomendarse a determinadas personas naturales | H154: PRESTAR LOS SERVICIOS PROFESIONALES A LA ALCALDÍA LOCAL DE SUMAPAZ PARA APOYAR LOS PROCESOS DE TITULARIZACIÓN DE PREDIOS Y SANEAMIENTO PREDIAL | I154: Inversión | J154: Un nuevo contrato social y ambiental para la Bogotá del Siglo XXI | K154: 57 | L154: =IF(ISERROR(VLOOKUP(K154,Proposito_programa!$C$2:$E$59,2,FALSE))," ",VLOOKUP(K154,Proposito_programa!$C$2:$E$59,2,FALSE)) -> Gestión pública local | M154: =IF(ISERROR(VLOOKUP(K154,Proposito_programa!$C$2:$E$59,3,FALSE))," ",VLOOKUP(K154,Proposito_programa!$C$2:$E$59,3,FALSE)) -> Propósito 5: Construir Bogotá - Región con gobierno abierto, transparente y ciudadanía consciente | N154: 1696 | O154: 1 | P154: 19339243 | Q154: JAIME RODRIGUEZ BAUTISTA | R154: Persona Natural | W154: $15.000.000 | AA154: 15000000 | AB154: 15000000 | AC154: 2023-02-03 | AD154: 2023-02-08 | AE154: 2023-05-07 | AF154: 90 | AQ154: Terminado | AR154: 1
A155: CPS-142-2023 | B155: 2023 | C155: FDRS-CD-065-2023 | D155: https://community.secop.gov.co/Public/Tendering/OpportunityDetail/Index?noticeUID=CO1.NTC.3885005&isFromPublicArea=True&isModal=False | E155: Contratos de prestación de servicios profesionales y de apoyo a la gestión | F155: Contratación directa | G155: Prestación de servicios profesionales y de apoyo a la gestión, o para la ejecución de trabajos artísticos que sólo puedan encomendarse a determinadas personas naturales | H155: PRESTAR LOS SERVICIOS ADMINISTRATIVOS A LAS ÁREAS DE LA ALCALDÍA LOCAL DE SUMAPAZ | I155: Inversión | J155: Un nuevo contrato social y ambiental para la Bogotá del Siglo XXI | K155: 57 | L155: =IF(ISERROR(VLOOKUP(K155,Proposito_programa!$C$2:$E$59,2,FALSE))," ",VLOOKUP(K155,Proposito_programa!$C$2:$E$59,2,FALSE)) -> Gestión pública local | M155: =IF(ISERROR(VLOOKUP(K155,Proposito_programa!$C$2:$E$59,3,FALSE))," ",VLOOKUP(K155,Proposito_programa!$C$2:$E$59,3,FALSE)) -> Propósito 5: Construir Bogotá - Región con gobierno abierto, transparente y ciudadanía consciente | N155: 1696 | O155: 1 | P155: 1023024870 | Q155: MAICOL STEVEN LEYTON ROJAS | R155: Persona Natural | W155: $29.700.000 | Y155: 1 | Z155: 5400000 | AA155: 35100000 | AB155: 26370000 | AC155: 2023-02-03 | AD155: 2023-02-08 | AE155: 2024-03-07 | AF155: 330 | AG155: 1 | AH155: 60 | AQ155: En ejecución | AR155: 0.7512820513
A156: CPS-143-2023 | B156: 2023 | C156: FDRS-CD-111-2023 | D156: https://community.secop.gov.co/Public/Tendering/OpportunityDetail/Index?noticeUID=CO1.NTC.3936300&isFromPublicArea=True&isModal=False | E156: Contratos de prestación de servicios profesionales y de apoyo a la gestión | F156: Contratación directa | G156: Prestación de servicios profesionales y de apoyo a la gestión, o para la ejecución de trabajos artísticos que sólo puedan encomendarse a determinadas personas naturales | H156: PRESTAR SUS SERVICIOS COMO AUXILIAR PARA APOYAR EL DESARROLLO DE LAS ACTIVIDADES PARA EL BUEN FUNCIONAMIENTO Y ADECUADA OPERACIÓN DE LAS UNIDADES PRODUCTIVAS AGROPECUARIAS DE LOS PROYECTOS EXISTENTES EN LA GRANJA LLANO GRANDE DE LA ALCALDÍA LOCAL SUMAPAZ | I156: Inversión | J156: Un nuevo contrato social y ambiental para la Bogotá del Siglo XXI | K156: 23 | L156: =IF(ISERROR(VLOOKUP(K156,Proposito_programa!$C$2:$E$59,2,FALSE))," ",VLOOKUP(K156,Proposito_programa!$C$2:$E$59,2,FALSE)) -> Bogotá rural | M156: =IF(ISERROR(VLOOKUP(K156,Proposito_programa!$C$2:$E$59,3,FALSE))," ",VLOOKUP(K156,Proposito_programa!$C$2:$E$59,3,FALSE)) -> Propósito 1: Hacer un nuevo contrato social para incrementar la inclusión social, productiva y política | N156: 1634 | O156: 1 | P156: 1001170050 | Q156: YENY LILIANA PALACIOS MORALES | R156: Persona Natural | W156: $22.000.000 | AA156: 22000000 | AB156: 16866666 | AC156: 2023-02-06 | AD156: 2023-02-23 | AE156: 2024-02-23 | AF156: 330 | AQ156: En ejecución | AR156: 0.7666666364
A157: CPS-144-2023 | B157: 2023 | C157: FDRS-CD-112-2023 | D157: https://community.secop.gov.co/Public/Tendering/OpportunityDetail/Index?noticeUID=CO1.NTC.3936901&isFromPublicArea=True&isModal=False | E157: Contratos de prestación de servicios profesionales y de apoyo a la gestión | F157: Contratación directa | G157: Prestación de servicios profesionales y de apoyo a la gestión, o para la ejecución de trabajos artísticos que sólo puedan encomendarse a determinadas personas naturales | H157: PRESTAR LOS SERVICIOS PROFESIONALES PARA APOYAR LA FORMULACIÓN, EJECUCIÓN, SEGUIMIENTO Y MEJORA CONTINUA DE LAS HERRAMIENTAS QUE CONFORMAN LA GESTIÓN AMBIENTAL INSTITUCIONAL DE LA ALCALDÍA LOCAL | I157: Inversión | J157: Un nuevo contrato social y ambiental para la Bogotá del Siglo XXI | K157: 38 | L157: =IF(ISERROR(VLOOKUP(K157,Proposito_programa!$C$2:$E$59,2,FALSE))," ",VLOOKUP(K157,Proposito_programa!$C$2:$E$59,2,FALSE)) -> Ecoeficiencia, reciclaje, manejo de residuos e inclusión de la población recicladora | M157: =IF(ISERROR(VLOOKUP(K157,Proposito_programa!$C$2:$E$59,3,FALSE))," ",VLOOKUP(K157,Proposito_programa!$C$2:$E$59,3,FALSE)) -> Propósito 2 : Cambiar Nuestros Hábitos de Vida para Reverdecer a Bogotá y Adaptarnos y Mitigar la Crisis Climática | N157: 1669 | O157: 1 | P157: 1136886950 | Q157: ALEXANDRA RIPPE ABRIL | R157: Persona Natural | W157: $60.500.000 | Y157: 1 | Z157: 5500000 | AA157: 66000000 | AB157: 53716667 | AC157: 2023-02-06 | AD157: 2023-02-08 | AE157: 2024-02-07 | AF157: 330 | AG157: 1 | AH157: 30 | AQ157: En ejecución | AR157: 0.8138888939
A158: CPS-145-2023 | B158: 2023 | C158: FDRS-CD-113-2023 | D158: https://community.secop.gov.co/Public/Tendering/OpportunityDetail/Index?noticeUID=CO1.NTC.3940272&isFromPublicArea=True&isModal=False | E158: Contratos de prestación de servicios profesionales y de apoyo a la gestión | F158: Contratación directa | G158: Prestación de servicios profesionales y de apoyo a la gestión, o para la ejecución de trabajos artísticos que sólo puedan encomendarse a determinadas personas naturales | H158: PRESTAR LOS SERVICIOS TÉCNICOS PARA APOYAR A LA ALCALDÍA LOCAL DE SUMAPAZ EN LA IMPLEMENTACIÓN DEL SISTEMA INTEGRADO DE GESTIÓN Y EL SG-SST, ORIENTADOS POR EL NIVEL CENTRAL" 1688 | I158: Inversión | J158: Un nuevo contrato social y ambiental para la Bogotá del Siglo XXI | K158: 49 | L158: =IF(ISERROR(VLOOKUP(K158,Proposito_programa!$C$2:$E$59,2,FALSE))," ",VLOOKUP(K158,Proposito_programa!$C$2:$E$59,2,FALSE)) -> Movilidad segura, sostenible y accesible | M158: =IF(ISERROR(VLOOKUP(K158,Proposito_programa!$C$2:$E$59,3,FALSE))," ",VLOOKUP(K158,Proposito_programa!$C$2:$E$59,3,FALSE)) -> Propósito 4: Hacer de Bogotá Región un modelo de movilidad multimodal, incluyente y sostenible | N158: 1688 | O158: 1 | P158: 1022969793 | Q158: ISIS KATERINE ESPITIA TORRES | R158: Persona Natural | W158: $44.000.000 | AA158: 44000000 | AB158: 34266661 | AC158: 2023-02-07 | AD158: 2023-02-14 | AE158: 2024-01-13 | AF158: 330 | AQ158: Terminado | AR158: 0.77878775
A159: CPS-146-2023 | B159: 2023 | C159: FDRS-CD-114-2023 | D159: https://community.secop.gov.co/Public/Tendering/OpportunityDetail/Index?noticeUID=CO1.NTC.3948043&isFromPublicArea=True&isModal=False | E159: Contratos de prestación de servicios profesionales y de apoyo a la gestión | F159: Contratación directa | G159: Prestación de servicios profesionales y de apoyo a la gestión, o para la ejecución de trabajos artísticos que sólo puedan encomendarse a determinadas personas naturales | H159: PRESTAR LOS SERVICIOS ADMINISTRATIVOS PARA APOYAR LAS LABORES DE OFICIOS VARIOS Y DE NOTIFICACIÓN PARA LA CUENCA DEL RIO SUMAPAZ, DE LA ALCALDÍA LOCAL DE SUMAPAZ | I159: Inversión | J159: Un nuevo contrato social y ambiental para la Bogotá del Siglo XXI | K159: 57 | L159: =IF(ISERROR(VLOOKUP(K159,Proposito_programa!$C$2:$E$59,2,FALSE))," ",VLOOKUP(K159,Proposito_programa!$C$2:$E$59,2,FALSE)) -> Gestión pública local | M159: =IF(ISERROR(VLOOKUP(K159,Proposito_programa!$C$2:$E$59,3,FALSE))," ",VLOOKUP(K159,Proposito_programa!$C$2:$E$59,3,FALSE)) -> Propósito 5: Construir Bogotá - Región con gobierno abierto, transparente y ciudadanía consciente | N159: 1696 | O159: 1 | P159: 1069743456 | Q159: JESUS ARBEY HENAO POLO | R159: Persona Natural | W159: $24.200.000 | AA159: 24200000 | AB159: 20606666 | AC159: 2023-02-08 | AD159: 2023-02-20 | AE159: 2024-01-19 | AF159: 330 | AQ159: En ejecución | AR159: 0.851515124
A160: CPS-147-2023 | B160: 2023 | C160: FDRS-CD-115-2023 | D160: https://community.secop.gov.co/Public/Tendering/OpportunityDetail/Index?noticeUID=CO1.NTC.3942999&isFromPublicArea=True&isModal=False | E160: Contratos de prestación de servicios profesionales y de apoyo a la gestión | F160: Contratación directa | G160: Prestación de servicios profesionales y de apoyo a la gestión, o para la ejecución de trabajos artísticos que sólo puedan encomendarse a determinadas personas naturales | H160: PRESTAR LOS SERVICIOS PROFESIONALES COMO ABOGADO (A) DE APOYO A LAS ÁREAS DE GESTIÓN POLICIVA-JURÍDICA Y DE GESTIÓN DE DESARROLLO LOCAL, DE LA ALCALDÍA LOCAL DE SUMAPAZ | I160: Inversión | J160: Un nuevo contrato social y ambiental para la Bogotá del Siglo XXI | K160: 57 | L160: =IF(ISERROR(VLOOKUP(K160,Proposito_programa!$C$2:$E$59,2,FALSE))," ",VLOOKUP(K160,Proposito_programa!$C$2:$E$59,2,FALSE)) -> Gestión pública local | M160: =IF(ISERROR(VLOOKUP(K160,Proposito_programa!$C$2:$E$59,3,FALSE))," ",VLOOKUP(K160,Proposito_programa!$C$2:$E$59,3,FALSE)) -> Propósito 5: Construir Bogotá - Región con gobierno abierto, transparente y ciudadanía consciente | N160: 1696 | O160: 1 | P160: 79954722 | Q160: HEMERSSON LEANDRO PEÑA JARAMILLO | R160: Persona Natural | W160: $28.000.000 | AA160: 28000000 | AB160: 25900000 | AC160: 2023-02-02 | AD160: 2023-02-10 | AE160: 2023-06-09 | AF160: 120 | AQ160: Terminado | AR160: 0.925
A161: CPS-148-2023 | B161: 2023 | C161: FDRS-CD-116-2023 | D161: https://community.secop.gov.co/Public/Tendering/OpportunityDetail/Index?noticeUID=CO1.NTC.3944517&isFromPublicArea=True&isModal=False | E161: Contratos de prestación de servicios profesionales y de apoyo a la gestión | F161: Contratación directa | G161: Prestación de servicios profesionales y de apoyo a la gestión, o para la ejecución de trabajos artísticos que sólo puedan encomendarse a determinadas personas naturales | H161: PRESTAR LOS SERVICIOS PROFESIONALES COMO ABOGADO (A) DE APOYO AL ÁREA DE GESTIÓN POLICIVA-JURÍDICA DE LA ALCALDÍA LOCAL DE SUMAPAZ | I161: Inversión | J161: Un nuevo contrato social y ambiental para la Bogotá del Siglo XXI | K161: 57 | L161: =IF(ISERROR(VLOOKUP(K161,Proposito_programa!$C$2:$E$59,2,FALSE))," ",VLOOKUP(K161,Proposito_programa!$C$2:$E$59,2,FALSE)) -> Gestión pública local | M161: =IF(ISERROR(VLOOKUP(K161,Proposito_programa!$C$2:$E$59,3,FALSE))," ",VLOOKUP(K161,Proposito_programa!$C$2:$E$59,3,FALSE)) -> Propósito 5: Construir Bogotá - Región con gobierno abierto, transparente y ciudadanía consciente | N161: 1696 | O161: 1 | P161: 79632494 | Q161: ELZON FERNEY DELGADO MORALES | R161: Persona Natural | W161: $77.000.000 | AA161: 77000000 | AB161: 68133333 | AC161: 2023-02-02 | AD161: 2023-02-09 | AE161: 2024-01-08 | AF161: 330 | AQ161: Terminado | AR161: 0.8848484805
A162: CPS-149-2023 | B162: 2023 | C162: FDRS-CD-117-2023 | D162: https://community.secop.gov.co/Public/Tendering/OpportunityDetail/Index?noticeUID=CO1.NTC.3948274&isFromPublicArea=True&isModal=False | E162: Contratos de prestación de servicios profesionales y de apoyo a la gestión | F162: Contratación directa | G162: Prestación de servicios profesionales y de apoyo a la gestión, o para la ejecución de trabajos artísticos que sólo puedan encomendarse a determinadas personas naturales | H162: PRESTAR LOS SERVICIOS PARA OPERAR Y/O MANEJAR LA MAQUINARIA PESADA QUE LE SEA ASIGNADA, DE PROPIEDAD O TENENCIA DEL FONDO DE DESARROLLO LOCAL DE SUMAPAZ- 1688 | I162: Inversión | J162: Un nuevo contrato social y ambiental para la Bogotá del Siglo XXI | K162: 49 | L162: =IF(ISERROR(VLOOKUP(K162,Proposito_programa!$C$2:$E$59,2,FALSE))," ",VLOOKUP(K162,Proposito_programa!$C$2:$E$59,2,FALSE)) -> Movilidad segura, sostenible y accesible | M162: =IF(ISERROR(VLOOKUP(K162,Proposito_programa!$C$2:$E$59,3,FALSE))," ",VLOOKUP(K162,Proposito_programa!$C$2:$E$59,3,FALSE)) -> Propósito 4: Hacer de Bogotá Región un modelo de movilidad multimodal, incluyente y sostenible | N162: 1688 | O162: 1 | P162: 1022938049 | Q162: ALEXANDER BUSTOS CHAVARRO | R162: Persona Natural | W162: $10.800.000 | AA162: 10800000 | AB162: 10800000 | AC162: 2023-02-02 | AD162: 2023-02-17 | AE162: 2023-06-16 | AF162: 120 | AQ162: Terminado | AR162: 1
A163: CPS-150-2023 | B163: 2023 | C163: FDRS-CD-118-2023 | D163: https://community.secop.gov.co/Public/Tendering/OpportunityDetail/Index?noticeUID=CO1.NTC.3950653&isFromPublicArea=True&isModal=False | E163: Contratos de prestación de servicios profesionales y de apoyo a la gestión | F163: Contratación directa | G163: Prestación de servicios profesionales y de apoyo a la gestión, o para la ejecución de trabajos artísticos que sólo puedan encomendarse a determinadas personas naturales | H163: PRESTAR LOS SERVICIOS PROFESIONALES COMO ABOGADO, PARA EL TRÁMITE DE LOS ASUNTOS JURÍDICOS Y LEGALES, QUE REQUIERAN LOS PROCESOS MISIONALES Y ADMINISTRATIVOS QUE SE ADELANTAN EN EL FONDO DESARROLLO LOCAL SUMAPAZ | I163: Inversión | J163: Un nuevo contrato social y ambiental para la Bogotá del Siglo XXI | K163: 57 | L163: =IF(ISERROR(VLOOKUP(K163,Proposito_programa!$C$2:$E$59,2,FALSE))," ",VLOOKUP(K163,Proposito_programa!$C$2:$E$59,2,FALSE)) -> Gestión pública local | M163: =IF(ISERROR(VLOOKUP(K163,Proposito_programa!$C$2:$E$59,3,FALSE))," ",VLOOKUP(K163,Proposito_programa!$C$2:$E$59,3,FALSE)) -> Propósito 5: Construir Bogotá - Región con gobierno abierto, transparente y ciudadanía consciente | N163: 1696 | O163: 1 | P163: 1012413960 | Q163: JANEIRY ROMERO HERNANDEZ | R163: Persona Natural | W163: $55.000.000 | Y163: 1 | Z163: 10000000 | AA163: 65000000 | AB163: 47666666 | AC163: 2023-02-07 | AD163: 2023-02-15 | AE163: 2024-03-14 | AF163: 330 | AG163: 1 | AH163: 60 | AQ163: En ejecución | AR163: 0.7333333231
A164: CPS-151-2023 | B164: 2023 | C164: FDRS-CD-119-2023 | D164: https://community.secop.gov.co/Public/Tendering/OpportunityDetail/Index?noticeUID=CO1.NTC.3945200&isFromPublicArea=True&isModal=False | E164: Contratos de prestación de servicios profesionales y de apoyo a la gestión | F164: Contratación directa | G164: Prestación de servicios profesionales y de apoyo a la gestión, o para la ejecución de trabajos artísticos que sólo puedan encomendarse a determinadas personas naturales | H164: PRESTAR LOS SERVICIOS PARA EL APOYO ADMINISTRATIVO Y DE COMUNICACIONES A LA JUNTA ADMINISTRADORA LOCAL | I164: Inversión | J164: Un nuevo contrato social y ambiental para la Bogotá del Siglo XXI | K164: 57 | L164: =IF(ISERROR(VLOOKUP(K164,Proposito_programa!$C$2:$E$59,2,FALSE))," ",VLOOKUP(K164,Proposito_programa!$C$2:$E$59,2,FALSE)) -> Gestión pública local | M164: =IF(ISERROR(VLOOKUP(K164,Proposito_programa!$C$2:$E$59,3,FALSE))," ",VLOOKUP(K164,Proposito_programa!$C$2:$E$59,3,FALSE)) -> Propósito 5: Construir Bogotá - Región con gobierno abierto, transparente y ciudadanía consciente | N164: 1696 | O164: 1 | P164: 1069757495 | Q164: DEISY YURANY PERDOMO | R164: Persona Natural | W164: $29.700.000 | AA164: 29700000 | AB164: 23670000 | AC164: 2023-02-24 | AD164: 2023-03-08 | AE164: 2024-02-07 | AF164: 330 | AQ164: En ejecución | AR164: 0.796969697
A165: CPS-152-2023 | B165: 2023 | C165: FDRS-CD-120-2023 | D165: https://community.secop.gov.co/Public/Tendering/OpportunityDetail/Index?noticeUID=CO1.NTC.3947767&isFromPublicArea=True&isModal=False | E165: Contratos de prestación de servicios profesionales y de apoyo a la gestión | F165: Contratación directa | G165: Prestación de servicios profesionales y de apoyo a la gestión, o para la ejecución de trabajos artísticos que sólo puedan encomendarse a determinadas personas naturales | H165: PRESTAR LOS SERVICIOS COMO AYUDANTES DE MAQUINARIA PESADA DE PROPIEDAD O TENENCIA DEL FONDO DE DESARROLLO LOCAL DE SUMAPAZ | I165: Inversión | J165: Un nuevo contrato social y ambiental para la Bogotá del Siglo XXI | K165: 49 | L165: =IF(ISERROR(VLOOKUP(K165,Proposito_programa!$C$2:$E$59,2,FALSE))," ",VLOOKUP(K165,Proposito_programa!$C$2:$E$59,2,FALSE)) -> Movilidad segura, sostenible y accesible | M165: =IF(ISERROR(VLOOKUP(K165,Proposito_programa!$C$2:$E$59,3,FALSE))," ",VLOOKUP(K165,Proposito_programa!$C$2:$E$59,3,FALSE)) -> Propósito 4: Hacer de Bogotá Región un modelo de movilidad multimodal, incluyente y sostenible | N165: 1688 | O165: 1 | P165: 1069749786 | Q165: YILBER ADAMES RAMIREZ | R165: Persona Natural | W165: $10.400.000 | AA165: 10400000 | AB165: 10399999 | AC165: 2023-02-02 | AD165: 2023-02-15 | AE165: 2023-06-14 | AF165: 120 | AQ165: Terminado | AR165: 0.9999999038
A166: CPS-153-2023 | B166: 2023 | C166: FDRS-CD-120-2023 | D166: https://community.secop.gov.co/Public/Tendering/OpportunityDetail/Index?noticeUID=CO1.NTC.3947767&isFromPublicArea=True&isModal=False | E166: Contratos de prestación de servicios profesionales y de apoyo a la gestión | F166: Contratación directa | G166: Prestación de servicios profesionales y de apoyo a la gestión, o para la ejecución de trabajos artísticos que sólo puedan encomendarse a determinadas personas naturales | H166: PRESTAR LOS SERVICIOS COMO AYUDANTES DE MAQUINARIA PESADA DE PROPIEDAD O TENENCIA DEL FONDO DE DESARROLLO LOCAL DE SUMAPAZ | I166: Inversión | J166: Un nuevo contrato social y ambiental para la Bogotá del Siglo XXI | K166: 49 | L166: =IF(ISERROR(VLOOKUP(K166,Proposito_programa!$C$2:$E$59,2,FALSE))," ",VLOOKUP(K166,Proposito_programa!$C$2:$E$59,2,FALSE)) -> Movilidad segura, sostenible y accesible | M166: =IF(ISERROR(VLOOKUP(K166,Proposito_programa!$C$2:$E$59,3,FALSE))," ",VLOOKUP(K166,Proposito_programa!$C$2:$E$59,3,FALSE)) -> Propósito 4: Hacer de Bogotá Región un modelo de movilidad multimodal, incluyente y sostenible | N166: 1688 | O166: 1 | P166: 1023006848 | Q166: MARIA DEL PILAR CONTRETAS | R166: Persona Natural | W166: $10.400.000 | AA166: 10400000 | AB166: 10400000 | AC166: 2023-02-02 | AD166: 2023-02-16 | AE166: 2023-06-15 | AF166: 120 | AI166: 1032656232 | AJ166: NIDIA ROCIO CONTRERAS MOLINA | AK166: 2023-04-01 | AL166: 9050000 | AQ166: Terminado | AR166: 1
A167: CPS-154-2023 | B167: 2023 | C167: FDRS-CD-121-2023 | D167: https://community.secop.gov.co/Public/Tendering/OpportunityDetail/Index?noticeUID=CO1.NTC.3947011&isFromPublicArea=True&isModal=False | E167: Contratos de prestación de servicios profesionales y de apoyo a la gestión | F167: Contratación directa | G167: Prestación de servicios profesionales y de apoyo a la gestión, o para la ejecución de trabajos artísticos que sólo puedan encomendarse a determinadas personas naturales | H167: PRESTAR LOS SERVICIOS TECNICOS PARA QUE APOYEN LAS ACTIVIDADES ADMINISTRATIVAS Y OPERATIVAS DEL PARQUE AUTOMOTOR EN LA ALCALDÍA LOCAL DE SUMAPAZ | I167: Inversión | J167: Un nuevo contrato social y ambiental para la Bogotá del Siglo XXI | K167: 49 | L167: =IF(ISERROR(VLOOKUP(K167,Proposito_programa!$C$2:$E$59,2,FALSE))," ",VLOOKUP(K167,Proposito_programa!$C$2:$E$59,2,FALSE)) -> Movilidad segura, sostenible y accesible | M167: =IF(ISERROR(VLOOKUP(K167,Proposito_programa!$C$2:$E$59,3,FALSE))," ",VLOOKUP(K167,Proposito_programa!$C$2:$E$59,3,FALSE)) -> Propósito 4: Hacer de Bogotá Región un modelo de movilidad multimodal, incluyente y sostenible | N167: 1688 | O167: 1 | P167: 52558577 | Q167: GLORIA ISABEL AGUILERA ACOSTA | R167: Persona Natural | W167: $44.000.000 | Y167: 1 | Z167: 8000000 | AA167: 52000000 | AB167: 38933333 | AC167: 2023-02-02 | AD167: 2023-02-09 | AE167: 2024-03-08 | AF167: 330 | AG167: 1 | AH167: 60 | AQ167: En ejecución | AR167: 0.7487179423
A168: CPS-155-2023 | B168: 2023 | C168: FDRS-CD-120-2023 | D168: https://community.secop.gov.co/Public/Tendering/OpportunityDetail/Index?noticeUID=CO1.NTC.3947767&isFromPublicArea=True&isModal=False | E168: Contratos de prestación de servicios profesionales y de apoyo a la gestión | F168: Contratación directa | G168: Prestación de servicios profesionales y de apoyo a la gestión, o para la ejecución de trabajos artísticos que sólo puedan encomendarse a determinadas personas naturales | H168: PRESTAR LOS SERVICIOS COMO AYUDANTES DE MAQUINARIA PESADA DE PROPIEDAD O TENENCIA DEL FONDO DE DESARROLLO LOCAL DE SUMAPAZ | I168: Inversión | J168: Un nuevo contrato social y ambiental para la Bogotá del Siglo XXI | K168: 49 | L168: =IF(ISERROR(VLOOKUP(K168,Proposito_programa!$C$2:$E$59,2,FALSE))," ",VLOOKUP(K168,Proposito_programa!$C$2:$E$59,2,FALSE)) -> Movilidad segura, sostenible y accesible | M168: =IF(ISERROR(VLOOKUP(K168,Proposito_programa!$C$2:$E$59,3,FALSE))," ",VLOOKUP(K168,Proposito_programa!$C$2:$E$59,3,FALSE)) -> Propósito 4: Hacer de Bogotá Región un modelo de movilidad multimodal, incluyente y sostenible | N168: 1688 | O168: 1 | P168: 1055314053 | Q168: EDISON JOAQUIN BECERRA GONZALEZ | R168: Persona Natural | W168: $10.400.000 | AA168: 10400000 | AB168: 10399999 | AC168: 2023-02-02 | AD168: 2023-02-15 | AE168: 2023-06-14 | AF168: 120 | AQ168: Terminado | AR168: 0.9999999038
A169: CPS-156-2023 | B169: 2023 | C169: FDRS-CD-122-2023 | D169: https://community.secop.gov.co/Public/Tendering/OpportunityDetail/Index?noticeUID=CO1.NTC.3953190&isFromPublicArea=True&isModal=False | E169: Contratos de prestación de servicios profesionales y de apoyo a la gestión | F169: Contratación directa | G169: Prestación de servicios profesionales y de apoyo a la gestión, o para la ejecución de trabajos artísticos que sólo puedan encomendarse a determinadas personas naturales | H169: PRESTAR SUS SERVICIOS COMO AUXILIAR PARA APOYAR EL DESARROLLO DE LAS ACTIVIDADES REQUERIDAS PARA LA ADECUADA PRESTACIÓN DEL SERVICIO DE ASISTENCIA TÉCNICA AGROPECUARIA EN LA LOCALIDAD-1634 | I169: Inversión | J169: Un nuevo contrato social y ambiental para la Bogotá del Siglo XXI | K169: 23 | L169: =IF(ISERROR(VLOOKUP(K169,Proposito_programa!$C$2:$E$59,2,FALSE))," ",VLOOKUP(K169,Proposito_programa!$C$2:$E$59,2,FALSE)) -> Bogotá rural | M169: =IF(ISERROR(VLOOKUP(K169,Proposito_programa!$C$2:$E$59,3,FALSE))," ",VLOOKUP(K169,Proposito_programa!$C$2:$E$59,3,FALSE)) -> Propósito 1: Hacer un nuevo contrato social para incrementar la inclusión social, productiva y política | N169: 1634 | O169: 1 | P169: 79658217 | Q169: OSCAR AUDEL TAUTIVA RODRIGUEZ | R169: Persona Natural | W169: $26.400.000 | Y169: 1 | Z169: 2400000 | AA169: 28800000 | AB169: 22480000 | AC169: 2023-02-07 | AD169: 2023-02-20 | AE169: 2024-02-19 | AF169: 330 | AG169: 1 | AH169: 30 | AQ169: En ejecución | AR169: 0.7805555556
A170: CPS-157-2023 | B170: 2023 | C170: FDRS-CD-120-2023 | D170: https://community.secop.gov.co/Public/Tendering/OpportunityDetail/Index?noticeUID=CO1.NTC.3947767&isFromPublicArea=True&isModal=False | E170: Contratos de prestación de servicios profesionales y de apoyo a la gestión | F170: Contratación directa | G170: Prestación de servicios profesionales y de apoyo a la gestión, o para la ejecución de trabajos artísticos que sólo puedan encomendarse a determinadas personas naturales | H170: PRESTAR LOS SERVICIOS COMO AYUDANTES DE MAQUINARIA PESADA DE PROPIEDAD O TENENCIA DEL FONDO DE DESARROLLO LOCAL DE SUMAPAZ | I170: Inversión | J170: Un nuevo contrato social y ambiental para la Bogotá del Siglo XXI | K170: 49 | L170: =IF(ISERROR(VLOOKUP(K170,Proposito_programa!$C$2:$E$59,2,FALSE))," ",VLOOKUP(K170,Proposito_programa!$C$2:$E$59,2,FALSE)) -> Movilidad segura, sostenible y accesible | M170: =IF(ISERROR(VLOOKUP(K170,Proposito_programa!$C$2:$E$59,3,FALSE))," ",VLOOKUP(K170,Proposito_programa!$C$2:$E$59,3,FALSE)) -> Propósito 4: Hacer de Bogotá Región un modelo de movilidad multimodal, incluyente y sostenible | N170: 1688 | O170: 1 | P170: 80489721 | Q170: ARNOLDO RAMIREZ MALAGON | R170: Persona Natural | W170: $10.400.000 | X170: -4073334 | AA170: 6326666 | AB170: 6326666 | AC170: 2023-02-07 | AD170: 2023-04-10 | AE170: 2023-06-22 | AF170: 120 | AI170: 174188 | AJ170: RUPERTO VILLALBA ROMÁN | AK170: 2023-03-30 | AL170: 10400000 | AQ170: Terminado | AR170: 1
A171: CPS-158-2023 | B171: 2023 | C171: FDRS-CD-120-2023 | D171: https://community.secop.gov.co/Public/Tendering/OpportunityDetail/Index?noticeUID=CO1.NTC.3947767&isFromPublicArea=True&isModal=False | E171: Contratos de prestación de servicios profesionales y de apoyo a la gestión | F171: Contratación directa | G171: Prestación de servicios profesionales y de apoyo a la gestión, o para la ejecución de trabajos artísticos que sólo puedan encomendarse a determinadas personas naturales | H171: PRESTAR LOS SERVICIOS COMO AYUDANTES DE MAQUINARIA PESADA DE PROPIEDAD O TENENCIA DEL FONDO DE DESARROLLO LOCAL DE SUMAPAZ | I171: Inversión | J171: Un nuevo contrato social y ambiental para la Bogotá del Siglo XXI | K171: 49 | L171: =IF(ISERROR(VLOOKUP(K171,Proposito_programa!$C$2:$E$59,2,FALSE))," ",VLOOKUP(K171,Proposito_programa!$C$2:$E$59,2,FALSE)) -> Movilidad segura, sostenible y accesible | M171: =IF(ISERROR(VLOOKUP(K171,Proposito_programa!$C$2:$E$59,3,FALSE))," ",VLOOKUP(K171,Proposito_programa!$C$2:$E$59,3,FALSE)) -> Propósito 4: Hacer de Bogotá Región un modelo de movilidad multimodal, incluyente y sostenible | N171: 1688 | O171: 1 | P171: 3129847 | Q171: ALEXANDER PEREZ MOLINA | R171: Persona Natural | W171: $10.400.000 | AA171: 10400000 | AB171: 10399999 | AC171: 2023-02-02 | AD171: 2023-02-15 | AE171: 2023-06-14 | AF171: 120 | AQ171: Terminado | AR171: 0.9999999038
A172: CPS-159-2023 | B172: 2023 | C172: FDRS-CD-120-2023 | D172: https://community.secop.gov.co/Public/Tendering/OpportunityDetail/Index?noticeUID=CO1.NTC.3947767&isFromPublicArea=True&isModal=False | E172: Contratos de prestación de servicios profesionales y de apoyo a la gestión | F172: Contratación directa | G172: Prestación de servicios profesionales y de apoyo a la gestión, o para la ejecución de trabajos artísticos que sólo puedan encomendarse a determinadas personas naturales | H172: PRESTAR LOS SERVICIOS COMO AYUDANTES DE MAQUINARIA PESADA DE PROPIEDAD O TENENCIA DEL FONDO DE DESARROLLO LOCAL DE SUMAPAZ | I172: Inversión | J172: Un nuevo contrato social y ambiental para la Bogotá del Siglo XXI | K172: 49 | L172: =IF(ISERROR(VLOOKUP(K172,Proposito_programa!$C$2:$E$59,2,FALSE))," ",VLOOKUP(K172,Proposito_programa!$C$2:$E$59,2,FALSE)) -> Movilidad segura, sostenible y accesible | M172: =IF(ISERROR(VLOOKUP(K172,Proposito_programa!$C$2:$E$59,3,FALSE))," ",VLOOKUP(K172,Proposito_programa!$C$2:$E$59,3,FALSE)) -> Propósito 4: Hacer de Bogotá Región un modelo de movilidad multimodal, incluyente y sostenible | N172: 1688 | O172: 1 | P172: 79632427 | Q172: HECTOR GERARDO IBAÑEZ QUINTERO | R172: Persona Natural | W172: $10.400.000 | AA172: 10400000 | AB172: 10399999 | AC172: 2023-02-02 | AD172: 2023-02-15 | AE172: 2023-06-14 | AF172: 120 | AQ172: Terminado | AR172: 0.9999999038
A173: CPS-160-2023 | B173: 2023 | C173: FDRS-CD-120-2023 | D173: https://community.secop.gov.co/Public/Tendering/OpportunityDetail/Index?noticeUID=CO1.NTC.3947767&isFromPublicArea=True&isModal=False | E173: Contratos de prestación de servicios profesionales y de apoyo a la gestión | F173: Contratación directa | G173: Prestación de servicios profesionales y de apoyo a la gestión, o para la ejecución de trabajos artísticos que sólo puedan encomendarse a determinadas personas naturales | H173: PRESTAR LOS SERVICIOS COMO AYUDANTES DE MAQUINARIA PESADA DE PROPIEDAD O TENENCIA DEL FONDO DE DESARROLLO LOCAL DE SUMAPAZ | I173: Inversión | J173: Un nuevo contrato social y ambiental para la Bogotá del Siglo XXI | K173: 49 | L173: =IF(ISERROR(VLOOKUP(K173,Proposito_programa!$C$2:$E$59,2,FALSE))," ",VLOOKUP(K173,Proposito_programa!$C$2:$E$59,2,FALSE)) -> Movilidad segura, sostenible y accesible | M173: =IF(ISERROR(VLOOKUP(K173,Proposito_programa!$C$2:$E$59,3,FALSE))," ",VLOOKUP(K173,Proposito_programa!$C$2:$E$59,3,FALSE)) -> Propósito 4: Hacer de Bogotá Región un modelo de movilidad multimodal, incluyente y sostenible | N173: 1688 | O173: 1 | P173: 1032656063 | Q173: LUIS ENRRIQUE MARTINEZ BENAVIDES | R173: Persona Natural | W173: $10.400.000 | AA173: 10400000 | AB173: 10400000 | AC173: 2023-02-02 | AD173: 2023-02-16 | AE173: 2023-06-15 | AF173: 120 | AQ173: Terminado | AR173: 1
A174: CPS-161-2023 | B174: 2023 | C174: FDRS-CD-122-2023 | D174: https://community.secop.gov.co/Public/Tendering/OpportunityDetail/Index?noticeUID=CO1.NTC.3953190&isFromPublicArea=True&isModal=False | E174: Contratos de prestación de servicios profesionales y de apoyo a la gestión | F174: Contratación directa | G174: Prestación de servicios profesionales y de apoyo a la gestión, o para la ejecución de trabajos artísticos que sólo puedan encomendarse a determinadas personas naturales | H174: PRESTAR SUS SERVICIOS COMO AUXILIAR PARA APOYAR EL DESARROLLO DE LAS ACTIVIDADES REQUERIDAS PARA LA ADECUADA PRESTACIÓN DEL SERVICIO DE ASISTENCIA TÉCNICA AGROPECUARIA EN LA LOCALIDAD-1634 | I174: Inversión | J174: Un nuevo contrato social y ambiental para la Bogotá del Siglo XXI | K174: 23 | L174: =IF(ISERROR(VLOOKUP(K174,Proposito_programa!$C$2:$E$59,2,FALSE))," ",VLOOKUP(K174,Proposito_programa!$C$2:$E$59,2,FALSE)) -> Bogotá rural | M174: =IF(ISERROR(VLOOKUP(K174,Proposito_programa!$C$2:$E$59,3,FALSE))," ",VLOOKUP(K174,Proposito_programa!$C$2:$E$59,3,FALSE)) -> Propósito 1: Hacer un nuevo contrato social para incrementar la inclusión social, productiva y política | N174: 1634 | O174: 1 | P174: 80374930 | Q174: LEOPOLDO ROMERO HERRERA | R174: Persona Natural | W174: $26.400.000 | Y174: 1 | Z174: 2400000 | AA174: 28800000 | AB174: 22480000 | AC174: 2023-02-07 | AD174: 2023-02-20 | AE174: 2024-02-19 | AF174: 330 | AG174: 1 | AH174: 30 | AQ174: En ejecución | AR174: 0.7805555556
A175: CPS-162-2023 | B175: 2023 | C175: FDRS-CD-123-2023 | D175: https://community.secop.gov.co/Public/Tendering/OpportunityDetail/Index?noticeUID=CO1.NTC.3953544&isFromPublicArea=True&isModal=False | E175: Contratos de prestación de servicios profesionales y de apoyo a la gestión | F175: Contratación directa | G175: Prestación de servicios profesionales y de apoyo a la gestión, o para la ejecución de trabajos artísticos que sólo puedan encomendarse a determinadas personas naturales | H175: PRESTAR LOS SERVICIOS PROFESIONALES EN PRODUCCIÓN PECUARIA PARA EL FORTALECIMIENTO DEL SERVICIO DE ASISTENCIA TÉCNICA AGROPECUARIA DE LA LOCALIDAD DE SUMAPAZ-1634 | I175: Inversión | J175: Un nuevo contrato social y ambiental para la Bogotá del Siglo XXI | K175: 23 | L175: =IF(ISERROR(VLOOKUP(K175,Proposito_programa!$C$2:$E$59,2,FALSE))," ",VLOOKUP(K175,Proposito_programa!$C$2:$E$59,2,FALSE)) -> Bogotá rural | M175: =IF(ISERROR(VLOOKUP(K175,Proposito_programa!$C$2:$E$59,3,FALSE))," ",VLOOKUP(K175,Proposito_programa!$C$2:$E$59,3,FALSE)) -> Propósito 1: Hacer un nuevo contrato social para incrementar la inclusión social, productiva y política | N175: 1634 | O175: 1 | P175: 1022982961 | Q175: EDUIN EDUARDO PARADA MACANA | R175: Persona Natural | W175: $60.500.000 | AA175: 60500000 | AB175: 51516666 | AC175: 2023-02-07 | AD175: 2023-02-20 | AE175: 2024-01-19 | AF175: 330 | AQ175: En ejecución | AR175: 0.8515151405
A176: CPS-163-2023 | B176: 2023 | C176: FDRS-CD-120-2023 | D176: https://community.secop.gov.co/Public/Tendering/OpportunityDetail/Index?noticeUID=CO1.NTC.3947767&isFromPublicArea=True&isModal=False | E176: Contratos de prestación de servicios profesionales y de apoyo a la gestión | F176: Contratación directa | G176: Prestación de servicios profesionales y de apoyo a la gestión, o para la ejecución de trabajos artísticos que sólo puedan encomendarse a determinadas personas naturales | H176: PRESTAR LOS SERVICIOS COMO AYUDANTES DE MAQUINARIA PESADA DE PROPIEDAD O TENENCIA DEL FONDO DE DESARROLLO LOCAL DE SUMAPAZ | I176: Inversión | J176: Un nuevo contrato social y ambiental para la Bogotá del Siglo XXI | K176: 49 | L176: =IF(ISERROR(VLOOKUP(K176,Proposito_programa!$C$2:$E$59,2,FALSE))," ",VLOOKUP(K176,Proposito_programa!$C$2:$E$59,2,FALSE)) -> Movilidad segura, sostenible y accesible | M176: =IF(ISERROR(VLOOKUP(K176,Proposito_programa!$C$2:$E$59,3,FALSE))," ",VLOOKUP(K176,Proposito_programa!$C$2:$E$59,3,FALSE)) -> Propósito 4: Hacer de Bogotá Región un modelo de movilidad multimodal, incluyente y sostenible | N176: 1688 | O176: 1 | P176: 1024559011 | Q176: HECTOR ORLANDO PENAGOS PAVON | R176: Persona Natural | W176: $10.400.000 | AA176: 10400000 | AB176: 10400000 | AC176: 2023-02-07 | AD176: 2023-02-16 | AE176: 2023-06-15 | AF176: 120 | AQ176: Terminado | AR176: 1
A177: CPS-164-2023 | B177: 2023 | C177: FDRS-CD-120-2023 | D177: https://community.secop.gov.co/Public/Tendering/ContractNoticePhases/View?PPI=CO1.PPI.23062758&isFromPublicArea=True&isModal=False | E177: Contratos de prestación de servicios profesionales y de apoyo a la gestión | F177: Contratación directa | G177: Prestación de servicios profesionales y de apoyo a la gestión, o para la ejecución de trabajos artísticos que sólo puedan encomendarse a determinadas personas naturales | H177: PRESTAR LOS SERVICIOS COMO AYUDANTES DE MAQUINARIA PESADA DE PROPIEDAD O TENENCIA DEL FONDO DE DESARROLLO LOCAL DE SUMAPAZ | I177: Inversión | J177: Un nuevo contrato social y ambiental para la Bogotá del Siglo XXI | K177: 49 | L177: =IF(ISERROR(VLOOKUP(K177,Proposito_programa!$C$2:$E$59,2,FALSE))," ",VLOOKUP(K177,Proposito_programa!$C$2:$E$59,2,FALSE)) -> Movilidad segura, sostenible y accesible | M177: =IF(ISERROR(VLOOKUP(K177,Proposito_programa!$C$2:$E$59,3,FALSE))," ",VLOOKUP(K177,Proposito_programa!$C$2:$E$59,3,FALSE)) -> Propósito 4: Hacer de Bogotá Región un modelo de movilidad multimodal, incluyente y sostenible | N177: 1688 | O177: 1 | P177: 348293 | Q177: RAMIRO CASTELLANOS | R177: Persona Natural | W177: $10.400.000 | AA177: 10400000 | AB177: 10400000 | AC177: 2023-02-07 | AD177: 2023-02-16 | AE177: 2023-06-15 | AF177: 120 | AQ177: Terminado | AR177: 1
A178: CPS-165-2023 | B178: 2023 | C178: FDRS-CD-124-2023 | D178: https://community.secop.gov.co/Public/Tendering/OpportunityDetail/Index?noticeUID=CO1.NTC.3949562&isFromPublicArea=True&isModal=False | E178: Contratos de prestación de servicios profesionales y de apoyo a la gestión | F178: Contratación directa | G178: Prestación de servicios profesionales y de apoyo a la gestión, o para la ejecución de trabajos artísticos que sólo puedan encomendarse a determinadas personas naturales | H178: PRESTAR SUS SERVICIOS PROFESIONALES PARA APOYAR AL EQUIPO DE PRENSA Y COMUNICACIONES DE LA ALCALDÍA LOCAL EN EL CUBRIMIENTO DE LAS ACTIVIDADES, CRONOGRAMAS Y AGENDA DE LA ALCALDÍA LOCAL A NIVEL INTERNO Y EXTERNO, ASÍ COMO LA GENERACIÓN DE CONTENIDOS PERIODÍSTICOS | I178: Inversión | J178: Un nuevo contrato social y ambiental para la Bogotá del Siglo XXI | K178: 57 | L178: =IF(ISERROR(VLOOKUP(K178,Proposito_programa!$C$2:$E$59,2,FALSE))," ",VLOOKUP(K178,Proposito_programa!$C$2:$E$59,2,FALSE)) -> Gestión pública local | M178: =IF(ISERROR(VLOOKUP(K178,Proposito_programa!$C$2:$E$59,3,FALSE))," ",VLOOKUP(K178,Proposito_programa!$C$2:$E$59,3,FALSE)) -> Propósito 5: Construir Bogotá - Región con gobierno abierto, transparente y ciudadanía consciente | N178: 1696 | O178: 1 | P178: 1026562610 | Q178: SILVANA LORENA SANCHEZ PINEDA | R178: Persona Natural | W178: $16.500.000 | AA178: 16500000 | AB178: 16500000 | AC178: 2023-02-02 | AD178: 2023-02-22 | AE178: 2023-05-21 | AF178: 90 | AQ178: Terminado | AR178: 1
A179: CPS-166-2023 | B179: 2023 | C179: FDRS-CD-124-2023 | D179: https://community.secop.gov.co/Public/Tendering/OpportunityDetail/Index?noticeUID=CO1.NTC.3949562&isFromPublicArea=True&isModal=False | E179: Contratos de prestación de servicios profesionales y de apoyo a la gestión | F179: Contratación directa | G179: Prestación de servicios profesionales y de apoyo a la gestión, o para la ejecución de trabajos artísticos que sólo puedan encomendarse a determinadas personas naturales | H179: PRESTAR SUS SERVICIOS PROFESIONALES PARA APOYAR AL EQUIPO DE PRENSA Y COMUNICACIONES DE LA ALCALDÍA LOCAL EN EL CUBRIMIENTO DE LAS ACTIVIDADES, CRONOGRAMAS Y AGENDA DE LA ALCALDÍA LOCAL A NIVEL INTERNO Y EXTERNO, ASÍ COMO LA GENERACIÓN DE CONTENIDOS PERIODÍSTICOS | I179: Inversión | J179: Un nuevo contrato social y ambiental para la Bogotá del Siglo XXI | K179: 57 | L179: =IF(ISERROR(VLOOKUP(K179,Proposito_programa!$C$2:$E$59,2,FALSE))," ",VLOOKUP(K179,Proposito_programa!$C$2:$E$59,2,FALSE)) -> Gestión pública local | M179: =IF(ISERROR(VLOOKUP(K179,Proposito_programa!$C$2:$E$59,3,FALSE))," ",VLOOKUP(K179,Proposito_programa!$C$2:$E$59,3,FALSE)) -> Propósito 5: Construir Bogotá - Región con gobierno abierto, transparente y ciudadanía consciente | N179: 1696 | O179: 1 | P179: 80865365 | Q179: VICTOR HUGO OLAYA JIMENEZ | R179: Persona Natural | W179: $16.500.000 | AA179: 16500000 | AB179: 16500000 | AC179: 2023-02-07 | AD179: 2023-02-22 | AE179: 2023-05-21 | AF179: 90 | AQ179: Terminado | AR179: 1
A180: CPS-167-2023 | B180: 2023 | C180: FDRS-CD-125-2023 | D180: https://community.secop.gov.co/Public/Tendering/OpportunityDetail/Index?noticeUID=CO1.NTC.3950962&isFromPublicArea=True&isModal=False | E180: Contratos de prestación de servicios profesionales y de apoyo a la gestión | F180: Contratación directa | G180: Prestación de servicios profesionales y de apoyo a la gestión, o para la ejecución de trabajos artísticos que sólo puedan encomendarse a determinadas personas naturales | H180: PRESTAR LOS SERVICIOS PROFESIONALES AL ÁREA DE GESTIÓN DE DESARROLLO LOCAL PARA APOYAR LA PLANEACIÓN, EJECUCIÓN Y SEGUIMIENTO A LOS PROYECTOS DE INVERSIÓN DE MEJORAMIENTO DE VIVIENDA RURAL QUE LE SEAN DESIGNADOS | I180: Inversión | J180: Un nuevo contrato social y ambiental para la Bogotá del Siglo XXI | K180: 19 | L180: =IF(ISERROR(VLOOKUP(K180,Proposito_programa!$C$2:$E$59,2,FALSE))," ",VLOOKUP(K180,Proposito_programa!$C$2:$E$59,2,FALSE)) -> Vivienda y entornos dignos en el territorio urbano y rural | M180: =IF(ISERROR(VLOOKUP(K180,Proposito_programa!$C$2:$E$59,3,FALSE))," ",VLOOKUP(K180,Proposito_programa!$C$2:$E$59,3,FALSE)) -> Propósito 1: Hacer un nuevo contrato social para incrementar la inclusión social, productiva y política | N180: 1589 | O180: 1 | P180: 80829029 | Q180: VLADYMIR MARTINEZ MARTINEZ | R180: Persona Natural | W180: $18.000.000 | AA180: 18000000 | AB180: 18000000 | AC180: 2023-02-02 | AD180: 2023-02-20 | AE180: 2023-05-19 | AF180: 90 | AQ180: Terminado | AR180: 1
A181: CPS-168-2023 | B181: 2023 | C181: FDRS-CD-126-2023 | D181: https://community.secop.gov.co/Public/Tendering/OpportunityDetail/Index?noticeUID=CO1.NTC.3952289&isFromPublicArea=True&isModal=False | E181: Contratos de prestación de servicios profesionales y de apoyo a la gestión | F181: Contratación directa | G181: Prestación de servicios profesionales y de apoyo a la gestión, o para la ejecución de trabajos artísticos que sólo puedan encomendarse a determinadas personas naturales | H181: PRESTAR SUS SERVICIOS COMO AUXILIAR PARA APOYAR EL DESARROLLO DE LAS ACTIVIDADES DE CAMPO REQUERIDAS EN LOS PROYECTOS DE RESTAURACIÓN ECOLÓGICA DE LOCALIDAD DE SUMAPAZ | I181: Inversión | J181: Un nuevo contrato social y ambiental para la Bogotá del Siglo XXI | K181: 28 | L181: =IF(ISERROR(VLOOKUP(K181,Proposito_programa!$C$2:$E$59,2,FALSE))," ",VLOOKUP(K181,Proposito_programa!$C$2:$E$59,2,FALSE)) -> Bogotá protectora de sus recursos naturales | M181: =IF(ISERROR(VLOOKUP(K181,Proposito_programa!$C$2:$E$59,3,FALSE))," ",VLOOKUP(K181,Proposito_programa!$C$2:$E$59,3,FALSE)) -> Propósito 2 : Cambiar Nuestros Hábitos de Vida para Reverdecer a Bogotá y Adaptarnos y Mitigar la Crisis Climática | N181: 1651 | O181: 1 | P181: 1000694141 | Q181: YERALDINE CASTRO PARRA | R181: Persona Natural | W181: $19.800.000 | Y181: 1 | Z181: 2040000 | AA181: 21840000 | AB181: 16680000 | AC181: 2023-02-02 | AD181: 2023-02-23 | AE181: 2024-02-26 | AF181: 330 | AG181: 1 | AH181: 34 | AQ181: En ejecución | AR181: 0.7637362637
A182: CPS-169-2023 | B182: 2023 | C182: FDRS-CD-127-2023 | D182: https://community.secop.gov.co/Public/Tendering/OpportunityDetail/Index?noticeUID=CO1.NTC.3956422&isFromPublicArea=True&isModal=False | E182: Contratos de prestación de servicios profesionales y de apoyo a la gestión | F182: Contratación directa | G182: Prestación de servicios profesionales y de apoyo a la gestión, o para la ejecución de trabajos artísticos que sólo puedan encomendarse a determinadas personas naturales | H182: PRESTAR LOS SERVICIOS TECNICOS PARA APOYAR LA GESTIÓN CONTRACTUAL Y ADMINISTRATIVA DEL ÁREA DE GESTIÓN DE DESARROLLO LOCAL DE SUMAPAZ, DE LA ALCALDÍA LOCAL DE SUMAPAZ. PROYECTO 1696 | I182: Inversión | J182: Un nuevo contrato social y ambiental para la Bogotá del Siglo XXI | K182: 57 | L182: =IF(ISERROR(VLOOKUP(K182,Proposito_programa!$C$2:$E$59,2,FALSE))," ",VLOOKUP(K182,Proposito_programa!$C$2:$E$59,2,FALSE)) -> Gestión pública local | M182: =IF(ISERROR(VLOOKUP(K182,Proposito_programa!$C$2:$E$59,3,FALSE))," ",VLOOKUP(K182,Proposito_programa!$C$2:$E$59,3,FALSE)) -> Propósito 5: Construir Bogotá - Región con gobierno abierto, transparente y ciudadanía consciente | N182: 1696 | O182: 1 | P182: 1020755846 | Q182: DIANA MARCELA TORRENTE QUINTERO | R182: Persona Natural | W182: $49.500.000 | Y182: 1 | Z182: 9000000 | AA182: 58500000 | AB182: 43860000 | AC182: 2023-02-02 | AD182: 2023-02-14 | AE182: 2024-03-13 | AF182: 330 | AG182: 1 | AH182: 60 | AQ182: En ejecución | AR182: 0.7497435897
A183: CPS-170-2023 | B183: 2023 | C183: FDRS-CD-128-2023 | D183: https://community.secop.gov.co/Public/Tendering/OpportunityDetail/Index?noticeUID=CO1.NTC.3952383&isFromPublicArea=True&isModal=False | E183: Contratos de prestación de servicios profesionales y de apoyo a la gestión | F183: Contratación directa | G183: Prestación de servicios profesionales y de apoyo a la gestión, o para la ejecución de trabajos artísticos que sólo puedan encomendarse a determinadas personas naturales | H183: PRESTAR SUS SERVICIOS PROFESIONALES DE APOYO AL ÁREA DE GESTIÓN DE DESARROLLO LOCAL, EN LAS RESPUESTAS A LAS PROPOSICIONES Y REQUERIMIENTOS QUE SE RADIQUEN EN LA ALCALDÍA DE SUMAPAZ | I183: Inversión | J183: Un nuevo contrato social y ambiental para la Bogotá del Siglo XXI | K183: 49 | L183: =IF(ISERROR(VLOOKUP(K183,Proposito_programa!$C$2:$E$59,2,FALSE))," ",VLOOKUP(K183,Proposito_programa!$C$2:$E$59,2,FALSE)) -> Movilidad segura, sostenible y accesible | M183: =IF(ISERROR(VLOOKUP(K183,Proposito_programa!$C$2:$E$59,3,FALSE))," ",VLOOKUP(K183,Proposito_programa!$C$2:$E$59,3,FALSE)) -> Propósito 4: Hacer de Bogotá Región un modelo de movilidad multimodal, incluyente y sostenible | N183: 1688 | O183: 1 | P183: 93381474 | Q183: CARLOS ANDRES DUQUE GONZALEZ | R183: Persona Natural | W183: $44.000.000 | Y183: 1 | Z183: 12000000 | AA183: 56000000 | AB183: 35200000 | AC183: 2023-02-07 | AD183: 2023-03-07 | AE183: 2024-05-06 | AF183: 330 | AG183: 1 | AH183: 90 | AQ183: En ejecución | AR183: 0.6285714286
A184: CPS-171-2023 | B184: 2023 | C184: FDRS-CD-129-2023 | D184: https://community.secop.gov.co/Public/Tendering/OpportunityDetail/Index?noticeUID=CO1.NTC.3959275&isFromPublicArea=True&isModal=False | E184: Contratos de prestación de servicios profesionales y de apoyo a la gestión | F184: Contratación directa | G184: Prestación de servicios profesionales y de apoyo a la gestión, o para la ejecución de trabajos artísticos que sólo puedan encomendarse a determinadas personas naturales | H184: PRESTAR LOS SERVICIOS PROFESIONALES PARA APOYAR LA EJECUCIÓN DE LA META DE BENEFICIAR A 150 PERSONAS A TRAVÉS DE LA ATENCIÓN Y SEGUIMIENTO A LAS SOLICITUDES DE LEGALIZACIÓN DE PREDIOS Y CREACIÓN DE ESTRATEGIAS PARA EL FORTALECIMIENTOS DE LOS MECANISMOS DE JUSTICIA COMUNITARIA DE LA ALCALDÍA LOCAL DE SUMAPAZ | I184: Inversión | J184: Un nuevo contrato social y ambiental para la Bogotá del Siglo XXI | K184: 48 | L184: =IF(ISERROR(VLOOKUP(K184,Proposito_programa!$C$2:$E$59,2,FALSE))," ",VLOOKUP(K184,Proposito_programa!$C$2:$E$59,2,FALSE)) -> Plataforma institucional para la seguridad y justicia | M184: =IF(ISERROR(VLOOKUP(K184,Proposito_programa!$C$2:$E$59,3,FALSE))," ",VLOOKUP(K184,Proposito_programa!$C$2:$E$59,3,FALSE)) -> Propósito 3: Inspirar confianza y legitimidad para vivir sin miedo y ser epicentro de cultura ciudadana, paz y reconciliación | N184: 1683 | O184: 1 | P184: 1030675132 | Q184: SEBASTIAN REINOSO QUITIAN | R184: Persona Natural | W184: $13.800.000 | AA184: 13800000 | AB184: 13799999 | AC184: 2023-02-07 | AD184: 2023-03-03 | AE184: 2023-06-02 | AF184: 90 | AQ184: Terminado | AR184: 0.9999999275
A185: CPS-172-2023 | B185: 2023 | C185: FDRS-CD-126-2023 | D185: https://community.secop.gov.co/Public/Tendering/OpportunityDetail/Index?noticeUID=CO1.NTC.3952289&isFromPublicArea=True&isModal=False | E185: Contratos de prestación de servicios profesionales y de apoyo a la gestión | F185: Contratación directa | G185: Prestación de servicios profesionales y de apoyo a la gestión, o para la ejecución de trabajos artísticos que sólo puedan encomendarse a determinadas personas naturales | H185: PRESTAR SUS SERVICIOS COMO AUXILIAR PARA APOYAR EL DESARROLLO DE LAS ACTIVIDADES DE CAMPO REQUERIDAS EN LOS PROYECTOS DE RESTAURACIÓN ECOLÓGICA DE LOCALIDAD DE SUMAPAZ | I185: Inversión | J185: Un nuevo contrato social y ambiental para la Bogotá del Siglo XXI | K185: 28 | L185: =IF(ISERROR(VLOOKUP(K185,Proposito_programa!$C$2:$E$59,2,FALSE))," ",VLOOKUP(K185,Proposito_programa!$C$2:$E$59,2,FALSE)) -> Bogotá protectora de sus recursos naturales | M185: =IF(ISERROR(VLOOKUP(K185,Proposito_programa!$C$2:$E$59,3,FALSE))," ",VLOOKUP(K185,Proposito_programa!$C$2:$E$59,3,FALSE)) -> Propósito 2 : Cambiar Nuestros Hábitos de Vida para Reverdecer a Bogotá y Adaptarnos y Mitigar la Crisis Climática | N185: 1651 | O185: 1 | P185: 1071549304 | Q185: MARY LUZ PARRA AVILA | R185: Persona Natural | W185: $19.800.000 | Y185: 1 | Z185: 1800000 | AA185: 21600000 | AB185: 16680000 | AC185: 2023-02-02 | AD185: 2023-02-23 | AE185: 2024-02-22 | AF185: 330 | AG185: 1 | AH185: 30 | AQ185: En ejecución | AR185: 0.7722222222
A186: CPS-173-2023 | B186: 2023 | C186: FDRS-CD-126-2023 | D186: https://community.secop.gov.co/Public/Tendering/OpportunityDetail/Index?noticeUID=CO1.NTC.3952289&isFromPublicArea=True&isModal=False | E186: Contratos de prestación de servicios profesionales y de apoyo a la gestión | F186: Contratación directa | G186: Prestación de servicios profesionales y de apoyo a la gestión, o para la ejecución de trabajos artísticos que sólo puedan encomendarse a determinadas personas naturales | H186: PRESTAR SUS SERVICIOS COMO AUXILIAR PARA APOYAR EL DESARROLLO DE LAS ACTIVIDADES DE CAMPO REQUERIDAS EN LOS PROYECTOS DE RESTAURACIÓN ECOLÓGICA DE LOCALIDAD DE SUMAPAZ | I186: Inversión | J186: Un nuevo contrato social y ambiental para la Bogotá del Siglo XXI | K186: 28 | L186: =IF(ISERROR(VLOOKUP(K186,Proposito_programa!$C$2:$E$59,2,FALSE))," ",VLOOKUP(K186,Proposito_programa!$C$2:$E$59,2,FALSE)) -> Bogotá protectora de sus recursos naturales | M186: =IF(ISERROR(VLOOKUP(K186,Proposito_programa!$C$2:$E$59,3,FALSE))," ",VLOOKUP(K186,Proposito_programa!$C$2:$E$59,3,FALSE)) -> Propósito 2 : Cambiar Nuestros Hábitos de Vida para Reverdecer a Bogotá y Adaptarnos y Mitigar la Crisis Climática | N186: 1651 | O186: 1 | P186: 1023002076 | Q186: JHON EDWIN PEÑALOZA CORTES | R186: Persona Natural | W186: $19.800.000 | Y186: 1 | Z186: 2700000 | AA186: 22500000 | AB186: 16140000 | AC186: 2023-02-02 | AD186: 2023-03-02 | AE186: 2024-03-16 | AF186: 330 | AG186: 1 | AH186: 45 | AQ186: En ejecución | AR186: 0.7173333333
A187: CPS-174-2023 | B187: 2023 | C187: FDRS-CD-126-2023 | D187: https://community.secop.gov.co/Public/Tendering/OpportunityDetail/Index?noticeUID=CO1.NTC.3952289&isFromPublicArea=True&isModal=False | E187: Contratos de prestación de servicios profesionales y de apoyo a la gestión | F187: Contratación directa | G187: Prestación de servicios profesionales y de apoyo a la gestión, o para la ejecución de trabajos artísticos que sólo puedan encomendarse a determinadas personas naturales | H187: PRESTAR SUS SERVICIOS COMO AUXILIAR PARA APOYAR EL DESARROLLO DE LAS ACTIVIDADES DE CAMPO REQUERIDAS EN LOS PROYECTOS DE RESTAURACIÓN ECOLÓGICA DE LOCALIDAD DE SUMAPAZ | I187: Inversión | J187: Un nuevo contrato social y ambiental para la Bogotá del Siglo XXI | K187: 28 | L187: =IF(ISERROR(VLOOKUP(K187,Proposito_programa!$C$2:$E$59,2,FALSE))," ",VLOOKUP(K187,Proposito_programa!$C$2:$E$59,2,FALSE)) -> Bogotá protectora de sus recursos naturales | M187: =IF(ISERROR(VLOOKUP(K187,Proposito_programa!$C$2:$E$59,3,FALSE))," ",VLOOKUP(K187,Proposito_programa!$C$2:$E$59,3,FALSE)) -> Propósito 2 : Cambiar Nuestros Hábitos de Vida para Reverdecer a Bogotá y Adaptarnos y Mitigar la Crisis Climática | N187: 1651 | O187: 1 | P187: 1069756761 | Q187: CRISTIAN HERNAN DIMATE | R187: Persona Natural | W187: $19.800.000 | Y187: 1 | Z187: 2700000 | AA187: 22500000 | AB187: 16140000 | AC187: 2023-02-02 | AD187: 2023-03-02 | AE187: 2024-03-16 | AF187: 330 | AG187: 1 | AH187: 45 | AQ187: En ejecución | AR187: 0.7173333333
A188: CPS-175-2023 | B188: 2023 | C188: FDRS-CD-120-2023 | D188: https://community.secop.gov.co/Public/Tendering/OpportunityDetail/Index?noticeUID=CO1.NTC.3947767&isFromPublicArea=True&isModal=False | E188: Contratos de prestación de servicios profesionales y de apoyo a la gestión | F188: Contratación directa | G188: Prestación de servicios profesionales y de apoyo a la gestión, o para la ejecución de trabajos artísticos que sólo puedan encomendarse a determinadas personas naturales | H188: PRESTAR LOS SERVICIOS COMO AYUDANTES DE MAQUINARIA PESADA DE PROPIEDAD O TENENCIA DEL FONDO DE DESARROLLO LOCAL DE SUMAPAZ | I188: Inversión | J188: Un nuevo contrato social y ambiental para la Bogotá del Siglo XXI | K188: 49 | L188: =IF(ISERROR(VLOOKUP(K188,Proposito_programa!$C$2:$E$59,2,FALSE))," ",VLOOKUP(K188,Proposito_programa!$C$2:$E$59,2,FALSE)) -> Movilidad segura, sostenible y accesible | M188: =IF(ISERROR(VLOOKUP(K188,Proposito_programa!$C$2:$E$59,3,FALSE))," ",VLOOKUP(K188,Proposito_programa!$C$2:$E$59,3,FALSE)) -> Propósito 4: Hacer de Bogotá Región un modelo de movilidad multimodal, incluyente y sostenible | N188: 1688 | O188: 1 | P188: 1072895770 | Q188: JOSE ALFREDO PEÑALOZA MORENO | R188: Persona Natural | W188: $10.400.000 | AA188: 10400000 | AB188: 10400000 | AC188: 2023-02-07 | AD188: 2023-02-16 | AE188: 2023-06-15 | AF188: 120 | AQ188: Terminado | AR188: 1
A189: CPS-176-2023 | B189: 2023 | C189: FDRS-CD-130-2023 | D189: https://community.secop.gov.co/Public/Tendering/OpportunityDetail/Index?noticeUID=CO1.NTC.3956532&isFromPublicArea=True&isModal=False | E189: Contratos de prestación de servicios profesionales y de apoyo a la gestión | F189: Contratación directa | G189: Prestación de servicios profesionales y de apoyo a la gestión, o para la ejecución de trabajos artísticos que sólo puedan encomendarse a determinadas personas naturales | H189: PRESTAR LOS SERVICIOS PROFESIONALES PARA APOYAR TÉCNICAMENTE A LOS RESPONSABLES E INTEGRANTES DE LOS PROCESOS EN LA IMPLEMENTACIÓN DE HERRAMIENTAS DE GESTIÓN, SIGUIENDO LOS LINEAMIENTOS METODOLÓGICOS | I189: Inversión | J189: Un nuevo contrato social y ambiental para la Bogotá del Siglo XXI | K189: 57 | L189: =IF(ISERROR(VLOOKUP(K189,Proposito_programa!$C$2:$E$59,2,FALSE))," ",VLOOKUP(K189,Proposito_programa!$C$2:$E$59,2,FALSE)) -> Gestión pública local | M189: =IF(ISERROR(VLOOKUP(K189,Proposito_programa!$C$2:$E$59,3,FALSE))," ",VLOOKUP(K189,Proposito_programa!$C$2:$E$59,3,FALSE)) -> Propósito 5: Construir Bogotá - Región con gobierno abierto, transparente y ciudadanía consciente | N189: 1696 | O189: 1 | P189: 52211430 | Q189: GLORIA ESPERANZA PIRAJON TEJEDOR | R189: Persona Natural | W189: $88.000.000 | Y189: 1 | Z189: 8000000 | AA189: 96000000 | AB189: 76800000 | AC189: 2023-02-02 | AD189: 2023-02-13 | AE189: 2024-02-12 | AF189: 330 | AG189: 1 | AH189: 30 | AQ189: En ejecución | AR189: 0.8
A190: CPS-177-2023 | B190: 2023 | C190: FDRS-CD-131-2023 | D190: https://community.secop.gov.co/Public/Tendering/OpportunityDetail/Index?noticeUID=CO1.NTC.3952692&isFromPublicArea=True&isModal=False | E190: Contratos de prestación de servicios profesionales y de apoyo a la gestión | F190: Contratación directa | G190: Prestación de servicios profesionales y de apoyo a la gestión, o para la ejecución de trabajos artísticos que sólo puedan encomendarse a determinadas personas naturales | H190: PRESTAR SUS SERVICIOS PROFESIONALES DE APOYO AL ÁREA DE GESTIÓN DE DESARROLLO LOCAL, EN LAS RESPUESTAS A LAS PROPOSICIONES Y REQUERIMIENTOS QUE SE RADIQUEN EN LA ALCALDÍA DE SUMAPAZ | I190: Inversión | J190: Un nuevo contrato social y ambiental para la Bogotá del Siglo XXI | K190: 57 | L190: =IF(ISERROR(VLOOKUP(K190,Proposito_programa!$C$2:$E$59,2,FALSE))," ",VLOOKUP(K190,Proposito_programa!$C$2:$E$59,2,FALSE)) -> Gestión pública local | M190: =IF(ISERROR(VLOOKUP(K190,Proposito_programa!$C$2:$E$59,3,FALSE))," ",VLOOKUP(K190,Proposito_programa!$C$2:$E$59,3,FALSE)) -> Propósito 5: Construir Bogotá - Región con gobierno abierto, transparente y ciudadanía consciente | N190: 1696 | O190: 1 | P190: 1121890356 | Q190: JESSICA ANDREA JIMENEZ POLANIA | R190: Persona Natural | W190: $18.400.000 | AA190: 18400000 | AB190: 17786666 | AC190: 2023-02-07 | AD190: 2023-02-27 | AE190: 2023-06-26 | AF190: 120 | AQ190: Terminado | AR190: 0.9666666304
A191: CPS-178-2023 | B191: 2023 | C191: FDRS-CD-132-2023 | D191: https://community.secop.gov.co/Public/Tendering/OpportunityDetail/Index?noticeUID=CO1.NTC.3955213&isFromPublicArea=True&isModal=False | E191: Contratos de prestación de servicios profesionales y de apoyo a la gestión | F191: Contratación directa | G191: Prestación de servicios profesionales y de apoyo a la gestión, o para la ejecución de trabajos artísticos que sólo puedan encomendarse a determinadas personas naturales | H191: PRESTAR LOS SERVICIOS TECNICOS ADMINISTRATIVOS AL ÁREA DE GESTIÓN DE DESARROLLO LOCAL, EN LA GESTIÓN CULTURAL, DE RECREACIÓN Y DEPORTE DE LA LOCALIDAD DE SUMAPAZ | I191: Inversión | J191: Un nuevo contrato social y ambiental para la Bogotá del Siglo XXI | K191: 20 | L191: =IF(ISERROR(VLOOKUP(K191,Proposito_programa!$C$2:$E$59,2,FALSE))," ",VLOOKUP(K191,Proposito_programa!$C$2:$E$59,2,FALSE)) -> Bogotá, referente en cultura, deporte, recreación y actividad física, con parques para el desarrollo y la salud | M191: =IF(ISERROR(VLOOKUP(K191,Proposito_programa!$C$2:$E$59,3,FALSE))," ",VLOOKUP(K191,Proposito_programa!$C$2:$E$59,3,FALSE)) -> Propósito 1: Hacer un nuevo contrato social para incrementar la inclusión social, productiva y política | N191: 1590 | O191: 1 | P191: 1022972630 | Q191: DIYER GERARDO PRIETO HURTADO | R191: Persona Natural | W191: $34.100.000 | AA191: 34100000 | AB191: 28933333 | AC191: 2023-02-02 | AD191: 2023-02-21 | AE191: 2024-01-20 | AF191: 330 | AQ191: En ejecución | AR191: 0.8484848387
A192: CPS-179-2023 | B192: 2023 | C192: FDRS-CD-126-2023 | D192: https://community.secop.gov.co/Public/Tendering/OpportunityDetail/Index?noticeUID=CO1.NTC.3952289&isFromPublicArea=True&isModal=False | E192: Contratos de prestación de servicios profesionales y de apoyo a la gestión | F192: Contratación directa | G192: Prestación de servicios profesionales y de apoyo a la gestión, o para la ejecución de trabajos artísticos que sólo puedan encomendarse a determinadas personas naturales | H192: PRESTAR SUS SERVICIOS COMO AUXILIAR PARA APOYAR EL DESARROLLO DE LAS ACTIVIDADES DE CAMPO REQUERIDAS EN LOS PROYECTOS DE RESTAURACIÓN ECOLÓGICA DE LOCALIDAD DE SUMAPAZ | I192: Inversión | J192: Un nuevo contrato social y ambiental para la Bogotá del Siglo XXI | K192: 28 | L192: =IF(ISERROR(VLOOKUP(K192,Proposito_programa!$C$2:$E$59,2,FALSE))," ",VLOOKUP(K192,Proposito_programa!$C$2:$E$59,2,FALSE)) -> Bogotá protectora de sus recursos naturales | M192: =IF(ISERROR(VLOOKUP(K192,Proposito_programa!$C$2:$E$59,3,FALSE))," ",VLOOKUP(K192,Proposito_programa!$C$2:$E$59,3,FALSE)) -> Propósito 2 : Cambiar Nuestros Hábitos de Vida para Reverdecer a Bogotá y Adaptarnos y Mitigar la Crisis Climática | N192: 1651 | O192: 1 | P192: 80812274 | Q192: ALFONSO HERNANDEZ MARTINEZ | R192: Persona Natural | W192: $19.800.000 | Y192: 1 | Z192: 2700000 | AA192: 22500000 | AB192: 16200000 | AC192: 2023-02-02 | AD192: 2023-03-01 | AE192: 2024-03-17 | AF192: 330 | AG192: 1 | AH192: 45 | AQ192: En ejecución | AR192: 0.72
A193: CPS-180-2023 | B193: 2023 | C193: FDRS-CD-133-2023 | D193: https://community.secop.gov.co/Public/Tendering/OpportunityDetail/Index?noticeUID=CO1.NTC.3959378&isFromPublicArea=True&isModal=False | E193: Contratos de prestación de servicios profesionales y de apoyo a la gestión | F193: Contratación directa | G193: Prestación de servicios profesionales y de apoyo a la gestión, o para la ejecución de trabajos artísticos que sólo puedan encomendarse a determinadas personas naturales | H193: PRESTAR LOS SERVICIOS PROFESIONALES PARA ATENDER EL PROYECTO DE ATENCIÓN DE VÍCTIMAS, LEGALIZACIÓN DE PREDIOS, JUSTICIA RESTAURATIVA, ENTRE OTROS, PARA LA ALCALDÍA LOCAL DE SUMAPAZ | I193: Inversión | J193: Un nuevo contrato social y ambiental para la Bogotá del Siglo XXI | K193: 39 | L193: =IF(ISERROR(VLOOKUP(K193,Proposito_programa!$C$2:$E$59,2,FALSE))," ",VLOOKUP(K193,Proposito_programa!$C$2:$E$59,2,FALSE)) -> Bogotá territorio de paz y atención integral a las víctimas del conflicto armado | M193: =IF(ISERROR(VLOOKUP(K193,Proposito_programa!$C$2:$E$59,3,FALSE))," ",VLOOKUP(K193,Proposito_programa!$C$2:$E$59,3,FALSE)) -> Propósito 3: Inspirar confianza y legitimidad para vivir sin miedo y ser epicentro de cultura ciudadana, paz y reconciliación | N193: 1672 | O193: 1 | P193: 52524344 | Q193: DIANA MARCELA ROMERO RUBIO | R193: Persona Natural | W193: $77.000.000 | AA193: 77000000 | AB193: 64866667 | AC193: 2023-02-02 | AD193: 2023-02-23 | AE193: 2024-01-22 | AF193: 330 | AQ193: En ejecución | AR193: 0.8424242468
A194: CPS-181-2023 | B194: 2023 | C194: FDRS-CD-117-2023 | D194: https://community.secop.gov.co/Public/Tendering/OpportunityDetail/Index?noticeUID=CO1.NTC.3948274&isFromPublicArea=True&isModal=False | E194: Contratos de prestación de servicios profesionales y de apoyo a la gestión | F194: Contratación directa | G194: Prestación de servicios profesionales y de apoyo a la gestión, o para la ejecución de trabajos artísticos que sólo puedan encomendarse a determinadas personas naturales | H194: PRESTAR LOS SERVICIOS PARA OPERAR Y/O MANEJAR LA MAQUINARIA PESADA QUE LE SEA ASIGNADA, DE PROPIEDAD O TENENCIA DEL FONDO DE DESARROLLO LOCAL DE SUMAPAZ- 1688 | I194: Inversión | J194: Un nuevo contrato social y ambiental para la Bogotá del Siglo XXI | K194: 49 | L194: =IF(ISERROR(VLOOKUP(K194,Proposito_programa!$C$2:$E$59,2,FALSE))," ",VLOOKUP(K194,Proposito_programa!$C$2:$E$59,2,FALSE)) -> Movilidad segura, sostenible y accesible | M194: =IF(ISERROR(VLOOKUP(K194,Proposito_programa!$C$2:$E$59,3,FALSE))," ",VLOOKUP(K194,Proposito_programa!$C$2:$E$59,3,FALSE)) -> Propósito 4: Hacer de Bogotá Región un modelo de movilidad multimodal, incluyente y sostenible | N194: 1688 | O194: 1 | P194: 79519512 | Q194: RAMIRO MARTINEZ HILARION | R194: Persona Natural | W194: $10.800.000 | AA194: 10800000 | AB194: 10800000 | AC194: 2023-02-02 | AD194: 2023-02-17 | AE194: 2023-06-16 | AF194: 120 | AQ194: Terminado | AR194: 1
A195: CPS-182-2023 | B195: 2023 | C195: FDRS-CD-134-2023 | D195: https://community.secop.gov.co/Public/Tendering/OpportunityDetail/Index?noticeUID=CO1.NTC.3965001&isFromPublicArea=True&isModal=False | E195: Contratos de prestación de servicios profesionales y de apoyo a la gestión | F195: Contratación directa | G195: Prestación de servicios profesionales y de apoyo a la gestión, o para la ejecución de trabajos artísticos que sólo puedan encomendarse a determinadas personas naturales | H195: PRESTAR LOS SERVICIOS PROFESIONALES PARA EL APOYO AL FORTALECIMIENTO DE LOS EMPRENDIMIENTOS PRODUCTIVOS AGROPECUARIOS DE LA LOCALIDAD DE SUMAPAZ-1637 | I195: Inversión | J195: Un nuevo contrato social y ambiental para la Bogotá del Siglo XXI | K195: 6 | L195: =IF(ISERROR(VLOOKUP(K195,Proposito_programa!$C$2:$E$59,2,FALSE))," ",VLOOKUP(K195,Proposito_programa!$C$2:$E$59,2,FALSE)) -> Sistema Distrital de Cuidado | M195: =IF(ISERROR(VLOOKUP(K195,Proposito_programa!$C$2:$E$59,3,FALSE))," ",VLOOKUP(K195,Proposito_programa!$C$2:$E$59,3,FALSE)) -> Propósito 1: Hacer un nuevo contrato social para incrementar la inclusión social, productiva y política | N195: 1637 | O195: 1 | P195: 1070010719 | Q195: LUIS MIGUEL CABRERA ORTEGA | R195: Persona Natural | W195: $66.000.000 | Y195: 1 | Z195: 12000000 | AA195: 78000000 | AB195: 55600000 | AC195: 2023-02-02 | AD195: 2023-02-23 | AE195: 2024-03-22 | AF195: 330 | AG195: 1 | AH195: 60 | AQ195: En ejecución | AR195: 0.7128205128
A196: CPS-183-2023 | B196: 2023 | C196: FDRS-CD-135-2023 | D196: https://community.secop.gov.co/Public/Tendering/OpportunityDetail/Index?noticeUID=CO1.NTC.3968383&isFromPublicArea=True&isModal=False | E196: Contratos de prestación de servicios profesionales y de apoyo a la gestión | F196: Contratación directa | G196: Prestación de servicios profesionales y de apoyo a la gestión, o para la ejecución de trabajos artísticos que sólo puedan encomendarse a determinadas personas naturales | H196: PRESTAR SUS SERVICIOS COMO TECNICO PARA APOYAR Y DAR SOPORTE AL ADMINISTRADOR Y USUARIO FINAL DE LA RED DE SISTEMAS Y TECNOLOGÍA E INFORMACIÓN DE LA ALCALDÍA LOCAL | I196: Inversión | J196: Un nuevo contrato social y ambiental para la Bogotá del Siglo XXI | K196: 57 | L196: =IF(ISERROR(VLOOKUP(K196,Proposito_programa!$C$2:$E$59,2,FALSE))," ",VLOOKUP(K196,Proposito_programa!$C$2:$E$59,2,FALSE)) -> Gestión pública local | M196: =IF(ISERROR(VLOOKUP(K196,Proposito_programa!$C$2:$E$59,3,FALSE))," ",VLOOKUP(K196,Proposito_programa!$C$2:$E$59,3,FALSE)) -> Propósito 5: Construir Bogotá - Región con gobierno abierto, transparente y ciudadanía consciente | N196: 1696 | O196: 1 | P196: 79556596 | Q196: REYNALDO RUBIO GALVIS | R196: Persona Natural | W196: $44.000.000 | Y196: 1 | Z196: 8000000 | AA196: 52000000 | AB196: 37466667 | AC196: 2023-02-02 | AD196: 2023-02-20 | AE196: 2024-03-19 | AF196: 330 | AG196: 1 | AH196: 60 | AQ196: En ejecución | AR196: 0.7205128269
A197: CPS-184-2023 | B197: 2023 | C197: FDRS-CD-136-2023 | D197: https://community.secop.gov.co/Public/Tendering/OpportunityDetail/Index?noticeUID=CO1.NTC.3966820&isFromPublicArea=True&isModal=False | E197: Contratos de prestación de servicios profesionales y de apoyo a la gestión | F197: Contratación directa | G197: Prestación de servicios profesionales y de apoyo a la gestión, o para la ejecución de trabajos artísticos que sólo puedan encomendarse a determinadas personas naturales | H197: PRESTAR LOS SERVICIOS TECNICOS PARA APOYAR LA FORMULACIÓN Y EJECUCIÓN DEL PROYECTO MEJORES CONDICIONES DE SALUD EN LA RURALIDAD | I197: Inversión | J197: Un nuevo contrato social y ambiental para la Bogotá del Siglo XXI | K197: 6 | L197: =IF(ISERROR(VLOOKUP(K197,Proposito_programa!$C$2:$E$59,2,FALSE))," ",VLOOKUP(K197,Proposito_programa!$C$2:$E$59,2,FALSE)) -> Sistema Distrital de Cuidado | M197: =IF(ISERROR(VLOOKUP(K197,Proposito_programa!$C$2:$E$59,3,FALSE))," ",VLOOKUP(K197,Proposito_programa!$C$2:$E$59,3,FALSE)) -> Propósito 1: Hacer un nuevo contrato social para incrementar la inclusión social, productiva y política | N197: 1643 | O197: 1 | P197: 1000691517 | Q197: LAURA XIMENA RUBIANO CARRILLO | R197: Persona Natural | W197: 38933334 | AA197: 38933334 | AB197: 28000000 | AC197: 2023-02-09 | AD197: 2023-02-23 | AE197: 2024-01-22 | AF197: 330 | AQ197: En ejecución | AR197: 0.7191780699
A198: CPS-186-2023 | B198: 2023 | C198: FDRS-CD-117-2023 | D198: https://community.secop.gov.co/Public/Tendering/OpportunityDetail/Index?noticeUID=CO1.NTC.3948274&isFromPublicArea=True&isModal=False | E198: Contratos de prestación de servicios profesionales y de apoyo a la gestión | F198: Contratación directa | G198: Prestación de servicios profesionales y de apoyo a la gestión, o para la ejecución de trabajos artísticos que sólo puedan encomendarse a determinadas personas naturales | H198: PRESTAR LOS SERVICIOS PARA OPERAR Y/O MANEJAR LA MAQUINARIA PESADA QUE LE SEA ASIGNADA, DE PROPIEDAD O TENENCIA DEL FONDO DE DESARROLLO LOCAL DE SUMAPAZ- 1688 | I198: Inversión | J198: Un nuevo contrato social y ambiental para la Bogotá del Siglo XXI | K198: 49 | L198: =IF(ISERROR(VLOOKUP(K198,Proposito_programa!$C$2:$E$59,2,FALSE))," ",VLOOKUP(K198,Proposito_programa!$C$2:$E$59,2,FALSE)) -> Movilidad segura, sostenible y accesible | M198: =IF(ISERROR(VLOOKUP(K198,Proposito_programa!$C$2:$E$59,3,FALSE))," ",VLOOKUP(K198,Proposito_programa!$C$2:$E$59,3,FALSE)) -> Propósito 4: Hacer de Bogotá Región un modelo de movilidad multimodal, incluyente y sostenible | N198: 1688 | O198: 1 | P198: 80452262 | Q198: GUSTAVO MARTINEZ HERNADEZ | R198: Persona Natural | W198: $10.800.000 | AA198: 10800000 | AB198: 10800000 | AC198: 2023-02-09 | AD198: 2023-02-17 | AE198: 2023-06-16 | AF198: 120 | AQ198: Terminado | AR198: 1
A199: CPS-187-2023 | B199: 2023 | C199: FDRS-CD-117-2023 | D199: https://community.secop.gov.co/Public/Tendering/OpportunityDetail/Index?noticeUID=CO1.NTC.3948274&isFromPublicArea=True&isModal=False | E199: Contratos de prestación de servicios profesionales y de apoyo a la gestión | F199: Contratación directa | G199: Prestación de servicios profesionales y de apoyo a la gestión, o para la ejecución de trabajos artísticos que sólo puedan encomendarse a determinadas personas naturales | H199: PRESTAR LOS SERVICIOS PARA OPERAR Y/O MANEJAR LA MAQUINARIA PESADA QUE LE SEA ASIGNADA, DE PROPIEDAD O TENENCIA DEL FONDO DE DESARROLLO LOCAL DE SUMAPAZ- 1688 | I199: Inversión | J199: Un nuevo contrato social y ambiental para la Bogotá del Siglo XXI | K199: 49 | L199: =IF(ISERROR(VLOOKUP(K199,Proposito_programa!$C$2:$E$59,2,FALSE))," ",VLOOKUP(K199,Proposito_programa!$C$2:$E$59,2,FALSE)) -> Movilidad segura, sostenible y accesible | M199: =IF(ISERROR(VLOOKUP(K199,Proposito_programa!$C$2:$E$59,3,FALSE))," ",VLOOKUP(K199,Proposito_programa!$C$2:$E$59,3,FALSE)) -> Propósito 4: Hacer de Bogotá Región un modelo de movilidad multimodal, incluyente y sostenible | N199: 1688 | O199: 1 | P199: 79216776 | Q199: ERIZMENDIS CASTELLANOS | R199: Persona Natural | W199: $10.800.000 | AA199: 10800000 | AB199: 10800000 | AC199: 2023-02-09 | AD199: 2023-02-28 | AE199: 2023-06-27 | AF199: 120 | AQ199: Terminado | AR199: 1
A200: CPS-188-2023 | B200: 2023 | C200: FDRS-CD-036-2023 | D200: https://community.secop.gov.co/Public/Tendering/OpportunityDetail/Index?noticeUID=CO1.NTC.3844070&isFromPublicArea=True&isModal=False | E200: Contratos de prestación de servicios profesionales y de apoyo a la gestión | F200: Contratación directa | G200: Prestación de servicios profesionales y de apoyo a la gestión, o para la ejecución de trabajos artísticos que sólo puedan encomendarse a determinadas personas naturales | H200: PRESTAR LOS SERVICIOS PROFESIONALES PARA APOYAR LOS PROCESOS ADMINISTRATIVOS, CONTABLES Y FINANCIEROS DEL ÁREA DE GESTIÓN DE DESARROLLO LOCAL, DE LA ALCALDÍA LOCAL DE SUMAPAZ | I200: Inversión | J200: Un nuevo contrato social y ambiental para la Bogotá del Siglo XXI | K200: 57 | L200: =IF(ISERROR(VLOOKUP(K200,Proposito_programa!$C$2:$E$59,2,FALSE))," ",VLOOKUP(K200,Proposito_programa!$C$2:$E$59,2,FALSE)) -> Gestión pública local | M200: =IF(ISERROR(VLOOKUP(K200,Proposito_programa!$C$2:$E$59,3,FALSE))," ",VLOOKUP(K200,Proposito_programa!$C$2:$E$59,3,FALSE)) -> Propósito 5: Construir Bogotá - Región con gobierno abierto, transparente y ciudadanía consciente | N200: 1696 | O200: 1 | P200: 81715296 | Q200: EDWIN ANDRES CHAVEZ CASTRO | R200: Persona Natural | W200: $13.800.000 | AA200: 13800000 | AB200: 13493333 | AC200: 2023-02-09 | AD200: 2023-03-03 | AE200: 2023-06-02 | AF200: 90 | AQ200: Terminado | AR200: 0.9777777536
A201: CPS-189-2023 | B201: 2023 | C201: FDRS-CD-137-2023 | D201: https://community.secop.gov.co/Public/Tendering/OpportunityDetail/Index?noticeUID=CO1.NTC.3968764&isFromPublicArea=True&isModal=False | E201: Contratos de prestación de servicios profesionales y de apoyo a la gestión | F201: Contratación directa | G201: Prestación de servicios profesionales y de apoyo a la gestión, o para la ejecución de trabajos artísticos que sólo puedan encomendarse a determinadas personas naturales | H201: PRESTAR SUS SERVICIOS ARTISTICOS Y DANCISTICOS PARA APOYAR LA GESTIÓN CULTURAL DE LA LOCALIDAD DE SUMAPAZ. | I201: Inversión | J201: Un nuevo contrato social y ambiental para la Bogotá del Siglo XXI | K201: 21 | L201: =IF(ISERROR(VLOOKUP(K201,Proposito_programa!$C$2:$E$59,2,FALSE))," ",VLOOKUP(K201,Proposito_programa!$C$2:$E$59,2,FALSE)) -> Creación y vida cotidiana: Apropiación ciudadana del arte, la cultura y el patrimonio, para la democracia cultural | M201: =IF(ISERROR(VLOOKUP(K201,Proposito_programa!$C$2:$E$59,3,FALSE))," ",VLOOKUP(K201,Proposito_programa!$C$2:$E$59,3,FALSE)) -> Propósito 1: Hacer un nuevo contrato social para incrementar la inclusión social, productiva y política | N201: 1633 | O201: 1 | P201: 80499300 | Q201: MAURICIO TORRES DIAZ | R201: Persona Natural | W201: $50.600.000 | Y201: 1 | Z201: 4600000 | AA201: 55200000 | AB201: 42626666 | AC201: 2023-02-09 | AD201: 2023-02-23 | AE201: 2024-02-22 | AF201: 330 | AG201: 1 | AH201: 30 | AQ201: En ejecución | AR201: 0.7722222101
A202: CPS-190-2023 | B202: 2023 | C202: FDRS-CD-138-2023 | D202: https://community.secop.gov.co/Public/Tendering/OpportunityDetail/Index?noticeUID=CO1.NTC.3983033&isFromPublicArea=True&isModal=False | E202: Contratos de prestación de servicios profesionales y de apoyo a la gestión | F202: Contratación directa | G202: Prestación de servicios profesionales y de apoyo a la gestión, o para la ejecución de trabajos artísticos que sólo puedan encomendarse a determinadas personas naturales | H202: PRESTAR LOS SERVICIOS TECNICOS PARA LA OPERACIÓN, SEGUIMIENTO Y CUMPLIMIENTO DE LOS PROCESOS Y PROCEDIMIENTOS DEL SERVICIO APOYOS PARA LA SEGURIDAD ECONÓMICA TIPO C REQUERIDOS PARA EL OPORTUNO Y ADECUADO REGISTRO CRUCE Y REPORTE DE LOS DATOS EN EL SISTEMA MISIONAL SIRBE QUE CONTRIBUYAN A LA GARANTÍA DE LOS DERECHOS DE LA POBLACIÓN MAYOR EN EL MARCO DE LA POLÍTICA PÚBLICA SOCIAL PARA EL ENVEJECIMIENTO Y LA VEJEZ1 EN EL DISTRITO CAPITAL A CARGO DE LA ALCALDÍA LOCAL | I202: Inversión | J202: Un nuevo contrato social y ambiental para la Bogotá del Siglo XXI | K202: 1 | L202: =IF(ISERROR(VLOOKUP(K202,Proposito_programa!$C$2:$E$59,2,FALSE))," ",VLOOKUP(K202,Proposito_programa!$C$2:$E$59,2,FALSE)) -> Subsidios y transferencias para la equidad | M202: =IF(ISERROR(VLOOKUP(K202,Proposito_programa!$C$2:$E$59,3,FALSE))," ",VLOOKUP(K202,Proposito_programa!$C$2:$E$59,3,FALSE)) -> Propósito 1: Hacer un nuevo contrato social para incrementar la inclusión social, productiva y política | N202: 1583 | O202: 1 | P202: 1022998108 | Q202: CRISTIAN ANDRES VASQUEZ CHINGATE | R202: Persona Natural | W202: $44.000.000 | Y202: 1 | Z202: 4000000 | AA202: 48000000 | AB202: 37066666 | AC202: 2023-02-10 | AD202: 2023-02-23 | AE202: 2024-01-22 | AF202: 330 | AG202: 1 | AH202: 30 | AQ202: En ejecución | AR202: 0.7722222083
... 665 more rows

Sheet Proposito_programa
B2: PDD | C2: No. Programa | D2: Programa | E2: Propósito
A3: Acuerdo 761 2020 | B3: Un Nuevo Contrato Social y Ambiental para la Bogotá del Siglo XXI | C3: 1 | D3: Subsidios y transferencias para la equidad | E3: Propósito 1: Hacer un nuevo contrato social para incrementar la inclusión social, productiva y política
A4: Pag. 51 | B4: Un Nuevo Contrato Social y Ambiental para la Bogotá del Siglo XXI | C4: =+C3+1 -> 2 | D4: Igualdad de oportunidades y desarrollo de capacidades para las mujeres | E4: Propósito 1: Hacer un nuevo contrato social para incrementar la inclusión social, productiva y política
B5: Un Nuevo Contrato Social y Ambiental para la Bogotá del Siglo XXI | C5: =+C4+1 -> 3 | D5: Movilidad social integral | E5: Propósito 1: Hacer un nuevo contrato social para incrementar la inclusión social, productiva y política
B6: Un Nuevo Contrato Social y Ambiental para la Bogotá del Siglo XXI | C6: 4 | D6: Prevención de la exclusión por razones étnicas, religiosas, sociales, políticas y de orientación sexual | E6: Propósito 1: Hacer un nuevo contrato social para incrementar la inclusión social, productiva y política
B7: Un Nuevo Contrato Social y Ambiental para la Bogotá del Siglo XXI | C7: 5 | D7: Promoción de la igualdad, el desarrollo de capacidades y el reconocimiento de las mujeres | E7: Propósito 1: Hacer un nuevo contrato social para incrementar la inclusión social, productiva y política
B8: Un Nuevo Contrato Social y Ambiental para la Bogotá del Siglo XXI | C8: 6 | D8: Sistema Distrital de Cuidado | E8: Propósito 1: Hacer un nuevo contrato social para incrementar la inclusión social, productiva y política
B9: Un Nuevo Contrato Social y Ambiental para la Bogotá del Siglo XXI | C9: 7 | D9: Mejora de la gestión de instituciones de salud | E9: Propósito 1: Hacer un nuevo contrato social para incrementar la inclusión social, productiva y política
B10: Un Nuevo Contrato Social y Ambiental para la Bogotá del Siglo XXI | C10: 8 | D10: Prevención y atención de maternidad temprana | E10: Propósito 1: Hacer un nuevo contrato social para incrementar la inclusión social, productiva y política
B11: Un Nuevo Contrato Social y Ambiental para la Bogotá del Siglo XXI | C11: 9 | D11: Prevención y cambios para mejorar la salud de la población | E11: Propósito 1: Hacer un nuevo contrato social para incrementar la inclusión social, productiva y política
B12: Un Nuevo Contrato Social y Ambiental para la Bogotá del Siglo XXI | C12: 10 | D12: Salud para la vida y el bienestar | E12: Propósito 1: Hacer un nuevo contrato social para incrementar la inclusión social, productiva y política
B13: Un Nuevo Contrato Social y Ambiental para la Bogotá del Siglo XXI | C13: 11 | D13: Salud y bienestar para niñas y niños | E13: Propósito 1: Hacer un nuevo contrato social para incrementar la inclusión social, productiva y política
B14: Un Nuevo Contrato Social y Ambiental para la Bogotá del Siglo XXI | C14: 12 | D14: Educación inicial: Bases sólidas para la vida. | E14: Propósito 1: Hacer un nuevo contrato social para incrementar la inclusión social, productiva y política
B15: Un Nuevo Contrato Social y Ambiental para la Bogotá del Siglo XXI | C15: 13 | D15: Educación para todos y todas: acceso y permanencia con equidad y énfasis en educación rural | E15: Propósito 1: Hacer un nuevo contrato social para incrementar la inclusión social, productiva y política
B16: Un Nuevo Contrato Social y Ambiental para la Bogotá del Siglo XXI | C16: 14 | D16: Formación integral: más y mejor tiempo en los colegios | E16: Propósito 1: Hacer un nuevo contrato social para incrementar la inclusión social, productiva y política
B17: Un Nuevo Contrato Social y Ambiental para la Bogotá del Siglo XXI | C17: 15 | D17: Plan Distrital de Lectura, Escritura y Oralidad: "Leer para la vida" | E17: Propósito 1: Hacer un nuevo contrato social para incrementar la inclusión social, productiva y política
B18: Un Nuevo Contrato Social y Ambiental para la Bogotá del Siglo XXI | C18: 16 | D18: Transformación pedagógica y mejoramiento de la gestión educativa. Es con los maestros y maestras. | E18: Propósito 1: Hacer un nuevo contrato social para incrementar la inclusión social, productiva y política
B19: Un Nuevo Contrato Social y Ambiental para la Bogotá del Siglo XXI | C19: 17 | D19: Jóvenes con capacidades: Proyecto de vida para la ciudadanía, la innovación y el trabajo del siglo XXI | E19: Propósito 1: Hacer un nuevo contrato social para incrementar la inclusión social, productiva y política
B20: Un Nuevo Contrato Social y Ambiental para la Bogotá del Siglo XXI | C20: 18 | D20: Cierre de brechas para la inclusión productiva urbano rural | E20: Propósito 1: Hacer un nuevo contrato social para incrementar la inclusión social, productiva y política
B21: Un Nuevo Contrato Social y Ambiental para la Bogotá del Siglo XXI | C21: 19 | D21: Vivienda y entornos dignos en el territorio urbano y rural | E21: Propósito 1: Hacer un nuevo contrato social para incrementar la inclusión social, productiva y política
B22: Un Nuevo Contrato Social y Ambiental para la Bogotá del Siglo XXI | C22: 20 | D22: Bogotá, referente en cultura, deporte, recreación y actividad física, con parques para el desarrollo y la salud | E22: Propósito 1: Hacer un nuevo contrato social para incrementar la inclusión social, productiva y política
B23: Un Nuevo Contrato Social y Ambiental para la Bogotá del Siglo XXI | C23: 21 | D23: Creación y vida cotidiana: Apropiación ciudadana del arte, la cultura y el patrimonio, para la democracia cultural | E23: Propósito 1: Hacer un nuevo contrato social para incrementar la inclusión social, productiva y política
B24: Un Nuevo Contrato Social y Ambiental para la Bogotá del Siglo XXI | C24: 22 | D24: Transformación cultural para la conciencia ambiental y el cuidado de la fauna doméstica | E24: Propósito 1: Hacer un nuevo contrato social para incrementar la inclusión social, productiva y política
B25: Un Nuevo Contrato Social y Ambiental para la Bogotá del Siglo XXI | C25: 23 | D25: Bogotá rural | E25: Propósito 1: Hacer un nuevo contrato social para incrementar la inclusión social, productiva y política
B26: Un Nuevo Contrato Social y Ambiental para la Bogotá del Siglo XXI | C26: 24 | D26: Bogotá región emprendedora e innovadora | E26: Propósito 1: Hacer un nuevo contrato social para incrementar la inclusión social, productiva y política
B27: Un Nuevo Contrato Social y Ambiental para la Bogotá del Siglo XXI | C27: 25 | D27: Bogotá región productiva y competitiva | E27: Propósito 1: Hacer un nuevo contrato social para incrementar la inclusión social, productiva y política
B28: Un Nuevo Contrato Social y Ambiental para la Bogotá del Siglo XXI | C28: 26 | D28: Bogotá - región, el mejor destino para visitar | E28: Propósito 1: Hacer un nuevo contrato social para incrementar la inclusión social, productiva y política
B29: Un Nuevo Contrato Social y Ambiental para la Bogotá del Siglo XXI | C29: 27 | D29: Cambio cultural para la gestión de la crisis climática | E29: Propósito 2 : Cambiar Nuestros Hábitos de Vida para Reverdecer a Bogotá y Adaptarnos y Mitigar la Crisis Climática
B30: Un Nuevo Contrato Social y Ambiental para la Bogotá del Siglo XXI | C30: =+C29+1 -> 28 | D30: Bogotá protectora de sus recursos naturales | E30: Propósito 2 : Cambiar Nuestros Hábitos de Vida para Reverdecer a Bogotá y Adaptarnos y Mitigar la Crisis Climática
B31: Un Nuevo Contrato Social y Ambiental para la Bogotá del Siglo XXI | C31: =+C30+1 -> 29 | D31: Asentamientos y entornos protectores | E31: Propósito 2 : Cambiar Nuestros Hábitos de Vida para Reverdecer a Bogotá y Adaptarnos y Mitigar la Crisis Climática
B32: Un Nuevo Contrato Social y Ambiental para la Bogotá del Siglo XXI | C32: 30 | D32: Eficiencia en la atención de emergencias | E32: Propósito 2 : Cambiar Nuestros Hábitos de Vida para Reverdecer a Bogotá y Adaptarnos y Mitigar la Crisis Climática
B33: Un Nuevo Contrato Social y Ambiental para la Bogotá del Siglo XXI | C33: 31 | D33: Protección y valoración del patrimonio tangible e intangible en Bogotá y la región | E33: Propósito 2 : Cambiar Nuestros Hábitos de Vida para Reverdecer a Bogotá y Adaptarnos y Mitigar la Crisis Climática
B34: Un Nuevo Contrato Social y Ambiental para la Bogotá del Siglo XXI | C34: 32 | D34: Revitalización urbana para la competitividad | E34: Propósito 2 : Cambiar Nuestros Hábitos de Vida para Reverdecer a Bogotá y Adaptarnos y Mitigar la Crisis Climática
B35: Un Nuevo Contrato Social y Ambiental para la Bogotá del Siglo XXI | C35: 33 | D35: Más árboles y más y mejor espacio público | E35: Propósito 2 : Cambiar Nuestros Hábitos de Vida para Reverdecer a Bogotá y Adaptarnos y Mitigar la Crisis Climática
B36: Un Nuevo Contrato Social y Ambiental para la Bogotá del Siglo XXI | C36: 34 | D36: Bogotá protectora de los animales | E36: Propósito 2 : Cambiar Nuestros Hábitos de Vida para Reverdecer a Bogotá y Adaptarnos y Mitigar la Crisis Climática
B37: Un Nuevo Contrato Social y Ambiental para la Bogotá del Siglo XXI | C37: 35 | D37: Manejo y prevención de contaminación | E37: Propósito 2 : Cambiar Nuestros Hábitos de Vida para Reverdecer a Bogotá y Adaptarnos y Mitigar la Crisis Climática
B38: Un Nuevo Contrato Social y Ambiental para la Bogotá del Siglo XXI | C38: 36 | D38: Manejo y saneamiento de los cuerpos de agua | E38: Propósito 2 : Cambiar Nuestros Hábitos de Vida para Reverdecer a Bogotá y Adaptarnos y Mitigar la Crisis Climática
B39: Un Nuevo Contrato Social y Ambiental para la Bogotá del Siglo XXI | C39: 37 | D39: Provisión y mejoramiento de servicios públicos | E39: Propósito 2 : Cambiar Nuestros Hábitos de Vida para Reverdecer a Bogotá y Adaptarnos y Mitigar la Crisis Climática
B40: Un Nuevo Contrato Social y Ambiental para la Bogotá del Siglo XXI | C40: 38 | D40: Ecoeficiencia, reciclaje, manejo de residuos e inclusión de la población recicladora | E40: Propósito 2 : Cambiar Nuestros Hábitos de Vida para Reverdecer a Bogotá y Adaptarnos y Mitigar la Crisis Climática
B41: Un Nuevo Contrato Social y Ambiental para la Bogotá del Siglo XXI | C41: 39 | D41: Bogotá territorio de paz y atención integral a las víctimas del conflicto armado | E41: Propósito 3: Inspirar confianza y legitimidad para vivir sin miedo y ser epicentro de cultura ciudadana, paz y reconciliación
B42: Un Nuevo Contrato Social y Ambiental para la Bogotá del Siglo XXI | C42: =+C41+1 -> 40 | D42: Más mujeres viven una vida libre de violencias, se sienten seguras y acceden con confianza al sistema de justicia | E42: Propósito 3: Inspirar confianza y legitimidad para vivir sin miedo y ser epicentro de cultura ciudadana, paz y reconciliación
B43: Un Nuevo Contrato Social y Ambiental para la Bogotá del Siglo XXI | C43: =+C42+1 -> 41 | D43: Sin machismo ni violencias contra las mujeres, las niñas y los niños | E43: Propósito 3: Inspirar confianza y legitimidad para vivir sin miedo y ser epicentro de cultura ciudadana, paz y reconciliación
B44: Un Nuevo Contrato Social y Ambiental para la Bogotá del Siglo XXI | C44: 42 | D44: Conciencia y cultura ciudadana para la seguridad, la convivencia y la construcción de confianza | E44: Propósito 3: Inspirar confianza y legitimidad para vivir sin miedo y ser epicentro de cultura ciudadana, paz y reconciliación
B45: Un Nuevo Contrato Social y Ambiental para la Bogotá del Siglo XXI | C45: 43 | D45: Cultura ciudadana para la confianza, la convivencia y la participación desde la vida cotidiana | E45: Propósito 3: Inspirar confianza y legitimidad para vivir sin miedo y ser epicentro de cultura ciudadana, paz y reconciliación
B46: Un Nuevo Contrato Social y Ambiental para la Bogotá del Siglo XXI | C46: 44 | D46: Autoconciencia, respeto y cuidado en el espacio público | E46: Propósito 3: Inspirar confianza y legitimidad para vivir sin miedo y ser epicentro de cultura ciudadana, paz y reconciliación
B47: Un Nuevo Contrato Social y Ambiental para la Bogotá del Siglo XXI | C47: 45 | D47: Espacio público más seguro y construido colectivamente | E47: Propósito 3: Inspirar confianza y legitimidad para vivir sin miedo y ser epicentro de cultura ciudadana, paz y reconciliación
B48: Un Nuevo Contrato Social y Ambiental para la Bogotá del Siglo XXI | C48: 46 | D48: Atención a jóvenes y adultos infractores con impacto en su proyecto de vida | E48: Propósito 3: Inspirar confianza y legitimidad para vivir sin miedo y ser epicentro de cultura ciudadana, paz y reconciliación
B49: Un Nuevo Contrato Social y Ambiental para la Bogotá del Siglo XXI | C49: 47 | D49: Calidad de Vida y Derechos de la Población privada de la libertad | E49: Propósito 3: Inspirar confianza y legitimidad para vivir sin miedo y ser epicentro de cultura ciudadana, paz y reconciliación
B50: Un Nuevo Contrato Social y Ambiental para la Bogotá del Siglo XXI | C50: 48 | D50: Plataforma institucional para la seguridad y justicia | E50: Propósito 3: Inspirar confianza y legitimidad para vivir sin miedo y ser epicentro de cultura ciudadana, paz y reconciliación
B51: Un Nuevo Contrato Social y Ambiental para la Bogotá del Siglo XXI | C51: 49 | D51: Movilidad segura, sostenible y accesible | E51: Propósito 4: Hacer de Bogotá Región un modelo de movilidad multimodal, incluyente y sostenible
B52: Un Nuevo Contrato Social y Ambiental para la Bogotá del Siglo XXI | C52: =+C51+1 -> 50 | D52: Red de metros | E52: Propósito 4: Hacer de Bogotá Región un modelo de movilidad multimodal, incluyente y sostenible
B53: Un Nuevo Contrato Social y Ambiental para la Bogotá del Siglo XXI | C53: 51 | D53: Gobierno Abierto | E53: Propósito 5: Construir Bogotá - Región con gobierno abierto, transparente y ciudadanía consciente
B54: Un Nuevo Contrato Social y Ambiental para la Bogotá del Siglo XXI | C54: =+C53+1 -> 52 | D54: Integración regional, distrital y local | E54: Propósito 5: Construir Bogotá - Región con gobierno abierto, transparente y ciudadanía consciente
B55: Un Nuevo Contrato Social y Ambiental para la Bogotá del Siglo XXI | C55: =+C54+1 -> 53 | D55: Información para la toma de decisiones | E55: Propósito 5: Construir Bogotá - Región con gobierno abierto, transparente y ciudadanía consciente
B56: Un Nuevo Contrato Social y Ambiental para la Bogotá del Siglo XXI | C56: 54 | D56: Transformación digital y gestión de TIC para un territorio inteligente | E56: Propósito 5: Construir Bogotá - Región con gobierno abierto, transparente y ciudadanía consciente
B57: Un Nuevo Contrato Social y Ambiental para la Bogotá del Siglo XXI | C57: 55 | D57: Fortalecimiento de cultura ciudadana y su institucionalidad | E57: Propósito 5: Construir Bogotá - Región con gobierno abierto, transparente y ciudadanía consciente
B58: Un Nuevo Contrato Social y Ambiental para la Bogotá del Siglo XXI | C58: 56 | D58: Gestión pública efectiva | E58: Propósito 5: Construir Bogotá - Región con gobierno abierto, transparente y ciudadanía consciente
B59: Un Nuevo Contrato Social y Ambiental para la Bogotá del Siglo XXI | C59: 57 | D59: Gestión pública local | E59: Propósito 5: Construir Bogotá - Región con gobierno abierto, transparente y ciudadanía consciente

Sheet Tipo (hidden)
C1: Modalidad de Selección | D1: afectacion | E1: Naturaleza Jurídica
A2: 1 | C2: Concurso de méritos | D2: Funcionamiento | E2: Persona Natural
A3: 2 | C3: Contratación directa | D3: Inversión | E3: Persona Jurídica
A4: 3 | C4: Contratación mínima cuantia | D4: Operación | E4: Unión Temporal
A5: 4 | C5: Selección abreviada | E5: Consorcio
A6: 5 | C6: Licitación pública | E6: Sociedad con objeto único
A7: 6 | C7: Otros | E7: Persona jurídica extranjera
A8: 7 | C8: Régimen especial | E8: Sin ánimo de lucro
A9: 8 | E9: Cabildo indígena
A10: 9 | E10: Consejo comunitario de las comunidades negras
A11: 10 | C11: Selección abreviada | E11: Organizaciones de segundo nivel
A12: 11 | C12: Subasta inversa | E12: Formas o expresiones organizativas, afrocolombianas, raizales y palenqueras
A13: 12 | C13: Bolsas de productos | E13: Organizaciones de base de comunidades negras
A14: 13 | C14: Acuerdo marco de precios | E14: Asociaciones de autoridades tradicionales indígenas
A15: 14 | C15: Selección abreviada por menor cuantía
A16: 15
A17: 16 | C17: contratacion directa
A18: 17 | C18: Urgencia manifiesta
A19: 18 | C19: Contratación de empréstitos
A20: 19 | C20: Contratos interadministrativos
A21: 20 | C21: Contratación de bienes y servicios en el sector Defensa
B22: SECTOR | C22: Contratos para el desarrollo de actividades científicas y tecnológicas
A23: 1 | B23: Gestión Pública | C23: Contratos de encargo fiduciario que celebren las entidades territoriales cuando inician el Acuerdo de Reestructuración de Pasivos
A24: =+A23+1 -> 2 | B24: Gobierno | C24: Cuando no exista pluralidad de oferentes en el mercado
A25: =+A24+1 -> 3 | B25: Hacienda | C25: Prestación de servicios profesionales y de apoyo a la gestión, o para la ejecución de trabajos artísticos que sólo puedan encomendarse a determinadas personas naturales
A26: 4 | B26: Planeación | C26: El arrendamiento o adquisición de inmuebles
A27: 5 | B27: Desarrollo Económico, Industria y Turismo | C27: Contratación de bienes y servicios de la Dirección Nacional de Inteligencia (DNI)
A28: 6 | B28: Educación
A29: 7 | B29: Salud
A30: 8 | B30: Integración Social | C30: Decreto 92 de 2017
A31: 9 | B31: Cultura, Recreación y Deporte | C31: No aplica
A32: 10 | B32: Ambiente
A33: 11 | B33: Movilidad | C33: SECOP I
A34: 12 | B34: Hábitat | C34: SECOP II
A35: 13 | B35: Mujeres
A36: 14 | B36: Seguridad, Convivencia y Justicia | C36: Bogotá Mejor para Todos
A37: 15 | B37: Gestión Juridíca | C37: Un Nuevo Contrato Social y Ambiental para la Bogotá del Siglo XXI
A38: 16 | B38: descentralizado territorialmente
B40: 16 - AL | C40: Estado
C41: Celebrado o por iniciar
B42: Plan de desarrollo distrital | C42: En ejecución
B43: Un nuevo contrato social y ambiental para la Bogotá del Siglo XXI | C43: Terminado
C44: Liquidado
B46: Tipo
B47: Obra pública
B48: Consultoría
B49: Interventoría
B50: Contratos de prestación de servicios
B51: Contratos de prestación de servicios profesionales y de apoyo a la gestión
B52: Compraventa de bienes muebles
B53: Compraventa de bienes inmuebles
B54: Arrendamiento de bienes muebles
B55: Arrendamiento de bienes inmuebles
B56: Seguro
B57: Suministro
B58: Empréstitos
B59: Fiducia mercantil o encargo fiduciario
B60: Concesión
B61: Convenios de cooperacion
B62: Convenios/Contratos interadministrativos
B63: Convenios de apoyo o convenios de asociación
B64: Convenios solidarios
B65: Asociaciones Público Privadas
B66: Otros
B67: Otros gastos
